{"text_format":"1","workbook":"xlsx","n_sheets":1,"sheets":["CinnostiSk (2)"],"not_rendered":{"charts":0,"images":0,"macros":0,"external_links":0,"defined_names":0,"comments":0,"pivot_tables":0},"unopened":[],"bounds":{"document_bytes":16777216,"sheet_cells":100000,"rows_first":2000,"rows_last":500,"rows_between":2000,"halvings":0,"cell_chars":16384,"cell_head_chars":4096},"cells_cut":0,"cells_raw":0,"read":"whole","date_system":"1900"}

{"sheet":"CinnostiSk (2)","index":0,"n_rows":2372,"n_cols":8,"rows_kept":2372,"cut":false,"hidden":false,"merged":[[0,1,0,3],[1,1,1,3],[2,1,2,2],[3,1,3,2]]}
[null,"SÚPIS POLOŽIEK II"]
[null,"I/68 Plavnica - preložka cesty"]
[null,"Číslo",null,"OBJEKT","M.J.","Množstvo","Cena jedn.","RN celkom EUR"]
[null,"položky",null,"Názov položky",null,"M.J.","v EUR","PODĽA ZoD"]
[null,null,null,"I/68 Plavnica, preložka cesty",""]
[null,null,null,"000-00 Všeobecné položky","",null,null,{"$f":"SUM(H7:H15)","v":0}]
[null,null,"100-01","Zariadenie staveniska - zriadenie","kpl",1,null,{"$f":"F7*G7","v":0}]
[null,null,"100-02","Zariadenie staveniska - prevádzka","mes",36,null,{"$f":"F8*G8","v":0}]
[null,null,"100-07","Zariadenie staveniska - odstránenie","kpl",1,null,0]
[null,null,"100-09","Geometrický plán v 6 vyhotoveniach","kpl",1,null,{"$f":"F10*G10","v":0}]
[null,null,"100-10","Archeologický prieskum formou sledovania výkopových prác","kpl",1,null,0]
[null,null,"100-10-1","Archeologický prieskum - záchranný plošný archeologický výskum","hod.",{"$f":"2*(90*8*10)","v":14400},null,{"$f":"F12*G12","v":0}]
[null,null,"100-10-2","Archeologický prieskum - ošetrenie, spracovanie a uskladnenie vzoriek","hod.",{"$f":"90*8*2","v":1440},null,0]
[null,null,"100-10-3","Archeologický prieskum - vypracovanie záverečnej správy z AV","kpl.",1,null,0]
[null,null,null,null,null,null,null,{"$f":"F15*G15","v":0}]
[null,null,null,"031-00  Rekultivácia dočasne zabratej pôdy",null,null,null,{"$f":"SUM(H17:H35)","v":0}]
[null,null,"45.11.11_05","Búracie práce a demolácie"]
[null,null,"05080200","Doprava vybúraných hmôt a sutiny - na skládku - vrátane poplatkov"]
[null,null,"05080200.031_1","Vodorovná doprava vybúraných hmôt a sutiny po suchu na skládku, vrátane poplatkov za skladovanie","t",2318.6999999999998,null,{"$f":"F19*G19","v":0}]
[null,null,"05030162","Odstránenie spevnených plôch  vozoviek krytov bitúmenových"]
[null,null,"05030162.031_1","Odstránenie krytu a podkladu asfaltového hr. 150 mm  - časti 101-00 a 102-00 po ukončení výstavby","m2",2950,null,0]
[null,null,"05030264","Odstránenie spevnených plôch  vozoviek podkladov z kameniva "]
[null,null,"05030264.031_1","Odstránenie podkladu z kameniva spevneného cementom hr. 150 mm - časti 101-00 a 102-00 po ukončení výstavby","m2",2950,null,{"$f":"F23*G23","v":0}]
[null,null,"05030264.031_2","Odstránenie podkladu zo štrkodrvy hr. 150 mm - časti 101-00 a 102-00 po ukončení výstavby","m2",2950,null,0]
[null,null,"45.11.20_01","Zemné práce"]
[null,null,"01020101","Odkopávky a prekopávky humóznej vrstvy ornice"]
[null,null,"01020101.031_1","Odstránenie ornice a podornice s naložením, premiestnením na dočasné skládky ","m3",6450,null,0]
[null,null,"45.11.23_01","Zemné práce"]
[null,null,"01080501","Povrchové úpravy terénu úpravy povrchov rozprestretím ornice"]
[null,null,"01080501.031_1","Rozprestretie ornice, hrúbka 200 mm, vrátane dovozu z medziskládky - všetky rekultivované plochy","m2",30018,null,{"$f":"F30*G30","v":0}]
[null,null,"01080501.031_2","Rozprestretie podornice, hrúbka 100 mm, vrátane dovozu z medziskládky - plochy stavebných dvorov","m2",10359,null,0]
[null,null,"01080501.031_3","Rozprestretie ornice, hrúbka 250 mm, vrátane dovozu z medziskládky - plochy búraných vozoviek","m2",2950,null,0]
[null,null,"01080603","Povrchové úpravy terénu úpravy obrobením pôdy"]
[null,null,"01080603.031_1","Obrobenie pôdy podrývaním do hĺbky nad 500 do 600 mm ","m2",30018,null,0]
[]
[null,null,null,"060-00  Vegetačné úpravy cesty I/68",null,null,null,{"$f":"SUM(H37:H65)","v":0}]
[null,null,"00040222","Požiadavky Objednávateľa - DSRS"]
[null,null,"00040222.060_1","DSRS","kpl",1,null,{"$f":"F38*G38","v":0}]
[null,null,"45.11.20_01","Zemné práce"]
[null,null,"01030602","Hĺbené vykopávky jamiek, rýh pre vysadzovanie rastlín"]
[null,null,"01030602.060_1","Hĺbenie jamiek pre výsadbu v horn. 1-4 s výmenou pôdy do 50% v rovine objemu nad 0,01 do 0,02 m3 - popínavé rastliny","ks",1300,null,{"$f":"F41*G41","v":0}]
[null,null,"01030602.060_2","Hĺbenie jamiek pre výsadbu v horn. 1-4 s výmenou pôdy do 50% v rovine objemu nad 0,02 do 0,05 m3 - záhonová výsadba","ks",1285,null,0]
[null,null,"01030602.060_3","Hĺbenie jamiek pre výsadbu v horn. 1-4 s výmenou pôdy do 50% v rovine objemu nad 0,05 do 0,125 m3 - kere stromov","ks",7,null,0]
[null,null,"01030602.060_4","Hĺbenie jamiek pre výsadbu v horn. 1-4 s výmenou pôdy do 50% v rovine objemu nad 0,125 do 0,40 m3 - stromy","ks",3,null,0]
[null,null,"01030602.060_5","Hĺbenie jamiek pre výsadbu v hornine 1 až 4 s výmenou pôdy do 50% na svahu nad 0, 02 do 0,05 m3 kríky ihličnaté a listnaté","ks",8242,null,0]
[null,null,"01030602.060_6","Hĺbenie jamiek pre výsadbu v hornine 1 až 4 s výmenou pôdy do 50% na svahu objemu nad 0, 05 do 0,125 m3 - kere stromov","ks",460,null,0]
[null,null,"01030602.060_7","Hĺbenie jamiek pre výsadbu v hornine 1 až 4 s výmenou pôdy do 50% na svahu objemu nad 0, 125 do 0,40m3 - stromy","ks",22,null,{"$f":"F47*G47","v":0}]
[null,null,"45.11.23_01","Zemné práce"]
[null,null,"01080505","Povrchové úpravy terénu úpravy povrchov mulčovaním"]
[null,null,"01080505.060_1","Mulčovanie rastlín pri hrúbke mulča nad 50 do 100 mm v rovine , vrátane mulčovacej textílie a kôry","m2",492.2,null,0]
[null,null,"01080505.060_2","Mulčovanie rastlín pri hrúbke mulča nad 50 do 100 mm na svahu, vrátane mulčovacej textílie a kôry ","m2",2539.8000000000002,null,0]
[null,null,"01080801","Povrchové úpravy terénu sadenie, presádzanie, kríkov s balom"]
[null,null,"01080801.060_1","Výsadba dreviny so zaliatím - záhonová výsadba, s balom v rovine, priemer balu nad 200 do 300 mm, vrátane dodania podľa špecifikácie v projekte","ks",1285,null,0]
[null,null,"01080801.060_2","Výsadba dreviny so zaliatím - ker stromu, s balom v rovine, priemer balu nad 400 do 500 mm, vrátane dodania podľa špecifikácie v projekte","ks",7,null,0]
[null,null,"01080801.060_3","Výsadba dreviny so zaliatím - krík ihličnatý alebo listnatý, s balom na svahu, priemer balu nad 200 do 300 mm, vrátane dodania podľa špecifikácie v projekte","ks",8242,null,0]
[null,null,"01080801.060_4","Výsadba dreviny so zaliatím- ker stromu, s balom na svahu, priemer balu nad 400 do 500 mm, vrátane dodania podľa špecifikácie v projekte","ks",460,null,0]
[null,null,"01080803","Povrchové úpravy terénu sadenie, presádzanie, stromov s balom"]
[null,null,"01080803.060_1","Výsadba stromov s balom v rovine, pri priemere balu nad 500 do 600 mm, vrátane dodania podľa špecifikácie v projekte","ks",3,null,{"$f":"F58*G58","v":0}]
[null,null,"01080803.060_2","Výsadba stromov s balom na svahu, pri priemere balu nad 500 do 600 mm, vrátane dodania podľa špecifikácie v projekte","ks",22,null,0]
[null,null,"01080806","Povrchové úpravy terénu sadenie, presádzanie, ochrana stromov"]
[null,null,"01080806.060_1","Zakotvenie stromu troma a viac kolmi pri priemere kolov do 100 mm pri dĺžke kolov od 2 m do 3 m, vrátane dodania kolov","ks",25,null,0]
[null,null,"01080806.060_2","Ošetrovanie a ochrana stromov proti škodám spôsobených zverinou pletivom","ks",25,null,0]
[null,null,"01080808","Povrchové úpravy terénu sadenie, presádzanie, rastlín"]
[null,null,"01080808.060_1","Výsadba popínavých rastlín, vrátane dodania podľa špecifikácie v projekte","ks",1300,null,0]
[]
[null,null,null,"100-00  Cesta I/68",null,null,null,{"$f":"SUM(H67:H235)","v":0}]
[null,null,"00040222","Požiadavky Objednávateľa - DSRS"]
[null,null,"00040222.100_1","DSRS","kpl",1,null,{"$f":"F68*G68","v":0}]
[null,null,"45.11.11_05","Búracie práce a demolácie"]
[null,null,"05030507","Odstránenie doplňujúcich konštrukcií "]
[null,null,"05030507.100_1","Odstránenie dopravných značiek, komplet vrátane odvozu","ks",2,null,0]
[null,null,"05030507.100_2","Odstránenie zabezpečenia priecestia, komplet vrátane odvozu","ks",1,null,0]
[null,null,"05080200","Doprava vybúraných hmôt a sutiny - na skládku - vrátane poplatkov"]
[null,null,"05080200.100_1","Vodorovná doprava vybúraných hmôt a sutiny po suchu na skládku, vrátane uloženia a poplatkov za skladovanie","t",4996.8149999999996,null,0]
[null,null,"05090362","Doplňujúce práce frézovanie bitúmenového krytu, podkladu"]
[null,null,"05090362.100_1","Frézovanie asfaltového podkladu alebo krytu bez prekážok, hr. 100 mm ","m2",3120,null,0]
[null,null,"05090362.100_2","Frézovanie asfaltového podkladu alebo krytu bez prekážok, hr. 200 mm ","m2",3785,null,0]
[null,null,"05090362.100_3","Frézovanie asfaltového podkladu alebo krytu bez prekážok, hr. 50 mm - výmena krytu na pôvodnej ceste v intraviláne","m2",17965,null,{"$f":"F78*G78","v":0}]
[null,null,"45.11.12_01","Zemné práce"]
[null,null,"01010103","Prípravné práce odstránenie porastov krovín s odvozom a likvidáciou drevnej hmoty"]
[null,null,"01010103.100_1","Odstránenie krovín a stromov s koreňom s priemerom kmeňa do 100 mm s naložením na dopr. prostriedok","m2",7160,null,0]
[null,null,"01010103.100_2","Vodorovné premiestnenie vyklčovaných krovín do priemeru kmeňa 100 mm ","m2",7160,null,{"$f":"F82*G82","v":0}]
[null,null,"01010201","Prípravné práce rúbanie stromov, vrátane odstránenia pňov, s odvozom a likvidáciou drevnej hmoty"]
[null,null,"01010201.100_1","Rúbanie stromov s odrezaním kmeňa a s odvetvením s naložením na dopravný prostriedok - priemerný priemer 300 mm","ks",1228,null,{"$f":"F84*G84","v":0}]
[null,null,"01010201.100_2","Odstránenie pňov s ich vykopaním, vytrhaním alebo odstrelením, s presekaním koreňov a s naložením na dopravný prostriedok, priemerný priemer 300 mm","ks",1228,null,0]
[null,null,"01010201.100_3","Vodorovné premiestnenie konárov, kmeňov a pňov stromov - priemerný priemer stromu 300 mm, vrátane likvidácie","ks",1228,null,0]
[null,null,"45.11.12_02","Práce špeciálneho zakladania"]
[null,null,"02010309","Zlepšovanie základovej pôdy trativody kompletné z potrubia plastické"]
[null,null,"02010309.100_1","Trativody z drenážnych rúr plastových DN 200 mm, so štrkovým lôžkom v otvorenom výkope","m",900,null,0]
[null,null,"45.11.20_01","Zemné práce"]
[null,null,"01020101","Odkopávky a prekopávky humóznej vrstvy ornice"]
[null,null,"01020101.100_1","Odstránenie ornice s naložením, premiestnením na dočasné skládky a s uložením","m3",28505,null,0]
[null,null,"01020300","Odkopávky a prekopávky - V zemníkoch - nákup a dovoz vhodnej zeminy"]
[null,null,"01020300.100_1","Výkop v zemníku na suchu v hornine 1 až 4 , nákup a dovoz vhodnej zeminy","m3",266700,null,{"$f":"F94*G94","v":0}]
[null,null,"01020400","Odkopávky a prekopávky - Pre cesty nezapažené"]
[null,null,"01020400.100_1","Odkopávka nezapažená pre cesty, v hornine 1 až 4, vrátane hutnenia pláne v záreze a úpravy trvalých svahov v záreze","m3",119800,null,0]
[null,null,"01020400.100_2","Odkopávka pre výmenu podložia v hornine 1 až 4","m3",42000,null,0]
[null,null,"01030103","Hĺbené vykopávky jám pre stožiare, vrátane zásypov a zaistenia stien výkopu"]
[null,null,"01030103.100_1","Jama pre stožiar meteostanice a blikačov, vrátane zásypu","ks",5,null,0]
[null,null,"01030203","Hĺbené výkopy a zásypy káblových rýh, vrátane doplňujúcich konštrukcií"]
[null,null,"01030203.100_1","Hĺbenie a zásyp káblovej ryhy 35 cm širokej a 80 cm hlbokej, vrátane lôžka, fólie a provizórnej úpravy terénu","m",900,null,0]
[null,null,"01040202","Konštrukcie z hornín násypy so zhutnením"]
[null,null,"01040202.100_1","Uloženie sypaniny do násypu nesúdržných a súdržných hornín s predpísanou mierou zhutnenia, vrátane hutnenia pláne a úpravy trvalých svahov násypov - zemina z odkopávok pre cesty","m3",119800,null,0]
[null,null,"01040202.100_2","Uloženie sypaniny do násypu nesúdržných a súdržných hornín s predpísanou mierou zhutnenia, vrátane hutnenia pláne a úpravy trvalých svahov násypov - zemina zo zemníka","m3",266700,null,0]
[null,null,"01060207","Premiestnenie vodorovné zemín schopných zúrodnenia"]
[null,null,"01060207.100_1","Vodorovné premiestnenie prebytočnej ornice, vrátane nakladania","m3",24185,null,0]
[null,null,"01060208","Premiestnenie vodorovné výkopku na medziskládku"]
[null,null,"01060208.100_1","Vodorovné premiestnenie odkopávky/výkopku na medziskládku","m3",119800,null,0]
[null,null,"01060209","Premiestnenie vodorovné - nevhodná zemina na skládku "]
[null,null,"01060209.100_1","Vodorovné premiestnenie nevhodnej zeminy z výmeny podložia na skládku, uloženie, poplatok","m3",42000,null,0]
[null,null,"45.11.23_01","Zemné práce"]
[null,null,"01080501","Povrchové úpravy terénu úpravy povrchov rozprestretím ornice"]
[null,null,"01080501.100_1","Rozprestretie ornice, hrúbka 200 mm, vrátane dovozu z medziskládky - objem 4320 m3","m2",21600,null,{"$f":"F113*G113","v":0}]
[null,null,"01080503","Povrchové úpravy terénu úpravy povrchov založením trávnika"]
[null,null,"01080503.100_1","Výsev trávniku hydroosevom na ornicu, vrátane trávneho semena a prípravy pôdy pred výsevom","m2",21600,null,0]
[null,null,"45.23.13_11","Betonárske práce"]
[null,null,"11250803","Doplňujúce konštrukcie výustný objekt odvodnenia"]
[null,null,"11250803.100_1","Výustný objekt odvodnenia - sklz z betónových tvárnic, betónové prahy, spevnenie svahu","ks",20,null,0]
[null,null,"45.23.13_27","Montážne práce na plynovodoch, vodovodoch, kanalizáciach, teplovod., produkt. a rozvod. medi. plynov"]
[null,null,"27030422","Kanalizácie rúry plastové",null,null,null,0]
[null,null,"27030422.100_1","Kanalizačné plastové potrubie DN 150 (montáž a dodávka) - prípojka z uličnej vpusti, vrátane lôžka a obsypu - štrkopiesok","m",132,null,{"$f":"F121*G121","v":0}]
[null,null,"27031172","Kanalizácie ostatné konštrukcie vpusty kanalizačné"]
[null,null,"27031172.100_1","Vpust uličný z betónových dielcov, vrátane liatinovej mreže s nálevkou","ks",20,null,0]
[null,null,"45.23.31_12","Murárske práce"]
[null,null,"12021005","Múry oporné lomový kameň"]
[null,null,"12021005.100_1","Oporný/zárubný múr z prefabrikovaných drôtokamenných košov s kamennou výplňou - dĺžka 20 m, výška 2 m, šírka 1 m, vrátane doplňujúcich konštrukcií podľa projektu","m3",40,null,{"$f":"F126*G126","v":0}]
[null,null,"45.23.31_22","Práce na pozemných komunikáciach a letiskách"]
[null,null,"22010104","Podkladné a krycie vrstvy bez spojiva nestmelené štrkodrva"]
[null,null,"22010104.100_1","Podklad zo štrkodrviny s rozprestretím a zhutnením, po zhutnení hr. 260 mm","m2",57146,null,0]
[null,null,"22010104.100_2","Podklad zo štrkodrviny s rozprestretím a zhutnením, po zhutnení hr. 150 mm - vývodná vrstva krajnice","m2",12235,null,0]
[null,null,"22010201","Podkladné a krycie vrstvy bez spojiva spevnenie krajníc zo zeminy"]
[null,null,"22010201.100_1","Zhotovenie zemných krajníc z hornín nenamŕzavých so zhutnením","m3",4282.25,null,0]
[null,null,"22010204","Podkladné a krycie vrstvy bez spojiva spevnenie krajníc štrkodrva"]
[null,null,"22010204.100_1","Spevnenie krajníc s rozprestretím a zhutnením, štrkodrvinou hr. 100 mm","m2",12235,null,0]
[null,null,"22020421","Podkladné a krycie vrstvy s hydraulickým spojivom  kamenivo spevnené cementom"]
[null,null,"22020421.100_1","Podklad z kameniva stmeleného cementom s rozprestretím a zhutnením, CBGM C 8/10, po zhutnení hr. 180 mm","m2",57146,null,0]
[null,null,"22030640","Podkladné a krycie vrstvy z asfaltových zmesí bitúmenové vrstvy asfaltový betón"]
[null,null,"22030640.100_1","Podklad z asfaltového betónu AC 22 P s rozprestretím a zhutnením, po zhutnení hr. 60 mm","m2",57146,null,{"$f":"F138*G138","v":0}]
[null,null,"22030640.100_2","Asfaltový betón vrstva ložná AC 16 L z nemodifik. asfaltu tr. I, po zhutnení hr. 60 mm","m2",57146,null,0]
[null,null,"22030640.100_3","Asfaltový betón vrstva obrusná AC 11 O z nemodifik. asfaltu tr. I, po zhutnení hr. 50 mm - výmena krytu na pôvodnej ceste v intraviláne","m2",17965,null,0]
[null,null,"22030640.100_4","Asfaltový betón vrstva obrusná AC 11 O z nemodifik. asfaltu tr. I, po zhutnení hr. 50 mm - nový kryt na pôvodnej ceste v extraviláne","m2",24132,null,0]
[null,null,"22030640.100_5","Asfaltový betón vrstva ložná AC 11 z nemodifik. asfaltu tr. II, po zhutnení hr. od 20 do 40 mm - vyrovnanie povrchu na pôvodnej ceste v extraviláne - predpoklad 50 % z celkovej plochy 24132 m2","m2",12066,null,0]
[null,null,"22030641","Podkladné a krycie vrstvy z asfaltových zmesí bitúmenové vrstvy asfaltový koberec mastixový"]
[null,null,"22030641.100_1","Koberec asfaltový mastixový SMA 11 O strednozrnný, po zhutnení hr. 40 mm ","m2",57146,null,0]
[null,null,"22040618","Dláždený rigol z tvárnic betónových"]
[null,null,"22040618.100_1","Rigol dláždený do lôžka z betónu prostého z prefabrikátov - pozdĺž protihlukovej steny, zaústenie do vpustí","m",600,null,0]
[null,null,"22250162","Doplňujúce konštrukcie zábradlie kovové"]
[null,null,"22250162.100_1","Osadenie, montáž a dodanie cestného zábradlia oceľového, vrátane povrchovej úpravy","m",40,null,0]
[null,null,"22250363","Doplňujúce konštrukcie zvodidlá oceľové cestné H1"]
[null,null,"22250363.100_1","Osadenie, montáž a dodávka cestného zvodidla oceľového jednostranného úrovne zachytenia H1 so zabaranením stĺpikov ","m",558,null,0]
[null,null,"22250364","Doplňujúce konštrukcie zvodidlá oceľové cestné H2"]
[null,null,"22250364.100_1","Osadenie, montáž a dodávka cestného zvodidla oceľového jednostranného úrovne zachytenia H2 so zabaranením stĺpikov","m",5654,null,0]
[null,null,"22250464","Doplňujúce konštrukcie ochranné zariadenia smerové stĺpiky"]
[null,null,"22250464.100_1","Osadenie a dodávka cestného smerového stĺpika plastového s vykopaním alebo vyvŕtaním jamôk","ks",90,null,0]
[null,null,"22250670","Dočasné dopravné značenie - komplet"]
[null,null,"22250670.100_1","Dočasné dopravné značenie zvislé aj vodorovné - komplet","kpl",1,null,0]
[null,null,"22250671","Zvislé dopravné značky normálny, zväčšený alebo zmenšený rozmer"]
[null,null,"22250671.100_1","Zvislá dopravná značka zväčšený rozmer - 14 ks - špecifikácia podľa PD, dodanie, montáž a osadenie na stĺpik - komplet, vrátane dodania stĺpika a zhotovenia základu","ks",14,null,0]
[null,null,"22250672","Zvislé dopravné značky veľkorozmerné"]
[null,null,"22250672.100_1","Zvislá dopravná značka veľkorozmerná - 36 ks - špecifikácia podľa PD, dodanie, montáž a osadenie na dva stĺpiky - komplet, vrátane dodania stĺpikov a zhotovenia základu","ks",36,null,0]
[null,null,"22250785","Vodorovné dopravné značenie striekané a náterové - vodiace čiary - štruktúrovaný plast"]
[null,null,"22250785.100_1","Vodorovné dopravné značenie dvojzložkovým studeným plastom vodiacich čiar šírky 250 mm biela retroreflexná","m",16675,null,0]
[null,null,"22250786","Vodorovné dopravné značenie striekané a náterové - deliace čiary - štruktúrovaný plast"]
[null,null,"22250786.100_1","Vodorovné dopravné značenie dvojzložkovým studeným plastom deliacich čiar šírky 125 mm biela retroreflexná","m",9506,null,0]
[null,null,"22250787","Vodorovné dopravné značenie striekané a náterové - plochy - štruktúrovaný plast"]
[null,null,"22250787.100_1","Vodorovné dopravné značenie dvojzložkovým studeným plastom - plochy - biela retroreflexná","m2",562,null,0]
[null,null,"22250787.100_2","Vodorovné dopravné značenie dvojzložkovým studeným plastom -  šípky 74 ks - biela retroreflexná","m2",133.19999999999999,null,0]
[null,null,"22250787.100_3","Vodorovné dopravné značenie dvojzložkovým studeným plastom - BUS V11a 8ks - biela retroreflexná","m2",120,null,0]
[null,null,"22250787.100_4","Vodorovné dopravné značenie dvojzložkovým studeným plastom - priechody š. 3 m, dĺžka 52 m - biela retroreflexná","m2",156,null,0]
[null,null,"22251161","Doplňujúce konštrukcie otvorené žľaby z betónových tvárnic"]
[null,null,"22251161.100_1","Priekopový žľab/dláždená priekopa do lôžka hr. 100 mm z betónu, betónové priekopové tvárnice 500 x 500 x 100 mm - trojuholníkový tvar šírka 1,0 m dĺžka 4687 m","m2",4687,null,0]
[null,null,"22251161.100_2","Priekopový žľab/dláždená priekopa do lôžka hr. 100 mm z betónu, betónové priekopové tvárnice 500 x 500 x 100 mm - lichobežníkový tvar šírka 1,5 m dĺžka 675 m","m2",1012.5,null,0]
[null,null,"22251661","Doplňujúce konštrukcie uzavreté žľabové systémy z betónu"]
[null,null,"22251661.100_1","Odvodňovací uzavretý žľabový systém s roštom osadený do lôžka z betónu","m",170,null,0]
[null,null,"45.24.70_11","Betonárske práce"]
[null,null,"11200101","Podkladné konštrukcie podkladné vrstvy betón prostý"]
[null,null,"11200101.100_1","Podklad pod dlažbu z betónu prostého hr. do 100 mm, vrátane prahov - úpravy na vtoku a výtoku pri priepustoch","m3",16.899999999999999,null,0]
[null,null,"11200101.100_2","Podklad pod dlažbu z betónu prostého hr. do 100 mm - priekopa km 4,1540 - 4,2750","m3",46.1,null,0]
[null,null,"11250701","Doplňujúce konštrukcie vtokové nádržky betón prostý"]
[null,null,"11250701.100_1","Vtoková nádržka/kalová jama z betónu prostého tr. C 25/30 priepustu km 0,33769 - rozmer 2,3 x 2,4 x 3,0 - komplet vrátane doplňujúcich konštrukcií - podklad, zábradlie, prekrytie, dlažba","ks",1,null,0]
[null,null,"45.24.70_31","Hydromelioračné práce"]
[null,null,"31080208","Objekty melioračné drenážne šachty normálne z betónových dielcov"]
[null,null,"31080208.100_1","Drenážna šachta typová normálna/kontrolná z betónových dielcov - priemer 600 mm","ks",16,null,0]
[null,null,"31080308","Objekty melioračné drenážne šachty kontrolné z betónových dielcov"]
[null,null,"31080308.100_1","Drenážna šachta typová kontrolná z betónových dielcov - priemer 800 mm - v miestach vyústenia drenáže","ks",7,null,0]
[null,null,"31080609","Objekty melioračné drenážne vyústenie "]
[null,null,"31080609.100_1","Drenážne vyústenie komplet podľa projektu - sklz z betónových tvárnic, betónové prahy, spevnenie svahu","ks",7,null,0]
[null,null,"31200308","Podkladné konštrukcie zaisťovací prah, pätka betónové dielce"]
[null,null,"31200308.100_1","Brehová pätka z prefabrikovaných dielcov - tvárnica TBM-500x500x1200 mm-hmotnosť 690 kg-dĺžka osadenia 1340 m","ks",1117,null,0]
[null,null,"31210303","Spevnené plochy dlažby lomový kameň"]
[null,null,"31210303.100_1","Dlažba z lomového kameňa kladená do malty s vyplnením škár maltou MC 10 hrúbka 200mm - úprava pri vtoku a výtoku priepustov - 139,20 m2","m3",27.84,null,0]
[null,null,"31210303.100_2","Dlažba z lomového kameňa kladená do malty s vyplnením škár maltou MC 10 hrúbka 200mm -  priekopa km 4,1540 - 4,2750 - 460,80 m2","m3",92.16,null,0]
[null,null,31210308,"Spevnené plochy dlažby betónové dielce, tvárnice"]
[null,null,"31210308.100_1","Dlažba z bet. dosiek a tvárnic na sucho s vyplnením škár pieskom - polovegetačné tvárnice IZT 170/10 - 800 x 1200 x 140 mm ","m2",6020,null,0]
[null,null,"31210308.100_2","Výplne vyľahčených a dierovaných tvárnic na plochách vodorovných i na svahu štrkom","m2",6020,null,0]
[null,null,"31250111","Doplňujúce konštrukcie rúrové priepusty DN 800"]
[null,null,"31250111.100_1","Rúrový priepust km 4,32500 - oceľová rúra flexibilná, špirálovite vinutý pozinkovaný plech s ochrannou fóliou - priemer 800 mm, vrátane lôžka a obsypu podľa technologického predpisu dodávateľa potrubia - dĺžka 24,00","m",24,null,0]
[null,null,"31250113","Doplňujúce konštrukcie rúrové priepusty DN 1200"]
[null,null,"31250113.100_1","Rúrový priepust km 0,33769 - oceľová rúra flexibilná, špirálovite vinutý pozinkovaný plech s ochrannou fóliou - priemer 1200 mm, vrátane lôžka a obsypu podľa technologického predpisu dodávateľa potrubia - dĺžka 39,50","m",39.5,null,{"$f":"F199*G199","v":0}]
[null,null,"31250113.100_2","Rúrový priepust km 2,61367 - oceľová rúra flexibilná, špirálovite vinutý pozinkovaný plech s ochrannou fóliou -  priemer 1200 mm, vrátane lôžka a obsypu podľa technologického predpisu dodávateľa potrubia - dĺžka 21,65","m",21.65,null,0]
[null,null,"31250113.100_3","Rúrový priepust km 4,15000 - oceľová rúra flexibilná, špirálovite vinutý pozinkovaný plech s ochrannou fóliou -  priemer 1200 mm, vrátane lôžka a obsypu podľa technologického predpisu dodávateľa potrubia - dĺžka 31,00","m",31,null,0]
[null,null,"31250114","Doplňujúce konštrukcie rúrové priepusty DN 1500"]
[null,null,"31250114.100_1","Rúrový priepust km 4,20000 - oceľová rúra flexibilná, špirálovite vinutý pozinkovaný plech s ochrannou fóliou -  priemer 1500 mm, vrátane lôžka a obsypu podľa technologického predpisu dodávateľa potrubia - dĺžka 26,35","m",26.35,null,0]
[null,null,"45.26.22_02","Práce špeciálneho zakladania"]
[null,null,"02010554","Zlepšovanie základovej pôdy - prefabrikované drény"]
[null,null,"02010554.100_1","Zvislé konsolidačné prefabrikované drény celkovej hĺbky jedného vpichu od 0 do 5 m;  plocha aplikácie = 15285 m2; celkový počet 16228 ks drénov","m",81140,null,0]
[null,null,"02010601","Zlepšovanie základovej pôdy sanačné vrstvy kamenivo"]
[null,null,"02010601.100_1","Zlepšenie podložia - vrstvy hrúbky 0,5 m zo štrkodrvy - obalenie geotextíliou a vystuženie geomrežou je ocenené samostatne","m3",57800,null,0]
[null,null,"02060905","Spevňovanie hornín a konštrukcií - opláštenie - geotextília"]
[null,null,"02060905.100_1","Vrstva zo separačnej geotextílie - obalenie vrstiev ŠD zlepšujúcich podložie","m2",162102,null,0]
[null,null,"02060905.100_2","Vrstva zo separačnej geotextílie - oddelenie rastlého terénu a novej konštrukcie","m2",82452,null,0]
[null,null,"02060906","Spevňovanie hornín a konštrukcií  - spevnenie - jednoosá geomrežovina"]
[null,null,"02060906.100_1","Geomreža ohybná jednoosá, pevnosť v ťahu do 50/5  kN/m - vystuženie strmého svahu","m2",8370,null,0]
[null,null,"02060906.100_2","Geomreža ohybná jednoosá, pevnosť v ťahu do 80/5  kN/m - vystuženie strmého svahu","m2",4407,null,0]
[null,null,"02060906.100_3","Geomreža ohybná jednoosá, pevnosť v ťahu do 200/5  kN/m - vystuženie strmého svahu","m2",2886,null,0]
[null,null,"02060907","Spevňovanie hornín a konštrukcií  - spevnenie - dvojosá geomrežovina"]
[null,null,"02060907.100_1","Geomreža pre stabilizáciu podkladu, tuhá dvojosá z polypropylénu pevnosť v ťahu 40/40 kN/m - zlepšenie podložia","m2",44958,null,0]
[null,null,"02060953","Spevňovanie hornín a konštrukcií opláštenie, spevnenie prefabrikovanými výstužnými blokmi"]
[null,null,"02060953.100_1","Výstužný modulárny blok so zeleným lícom z oceľovej  siete (typ 8×10), vrátane protieróznej rohože, výstužného čelného panelu, podpier a rozpier - rozmer 3x3x0,69 m (45°) - vystuženie strmých svahov na ploche svahu 2780 m2","ks",1343,null,0]
[null,null,"45.26.23_11","Betonárske práce"]
[null,null,"11010200","Základy pätky pre stožiare betón prostý"]
[null,null,"11010200.100_1","Betónový základ - pätka stožiara, prostý betón tr. C 25/30, vrátane debnenia a osadenia kotevného roštu, ktorý je dodávkou stožiara","ks",5,null,0]
[null,null,"45.31.62_91","Montáž silnoprúdových rozvodov a zariadení"]
[null,null,"91040102","Vedenia nadzemné NN stožiare NN jednoduché oceľové, rúrové"]
[null,null,"91040102.100_1","Rúrkový oceľový stožiar prírubový výšky 3,3 metra, vrátane výstroja a základového roštu","ks",5,null,0]
[null,null,"91080101","Káble Cu NN káble silové"]
[null,null,"91080101.100_1","Kábel medený uložený voľne CYKY 450/750 V 4x6, vrátane doplňujúcich činností na kábloch","m",2650,null,0]
[null,null,"91140601","Prístroje ovládacie,  signalizačné a návestné ukazovatele stavov"]
[null,null,"91140601.100_1","Cestná meteostanica so senzormi a prepojením na blikače varovania pred námrazou, vrátane solárnych panelov.","ks",1,null,0]
[null,null,"91140601.100_2","Cestná svetelná signalizácia - blikače varovania pred námrazou","ks",4,null,0]
[null,null,"91140601.100_3","Sčítač dopravy","ks",1,null,0]
[null,null,"91190107","Rozvádzače NN - komplet"]
[null,null,"91190107.100_1","Rozvádzač NN R1 - napojenie meteostanice","ks",1,null,0]
[null,null,"91190107.100_2","Rozvádzač NN R2 - napojenie sčítača dopravy","ks",1,null,0]
[]
[null,null,null,"101-00  Križovatka Ľubovnianske kúpele",null,null,null,{"$f":"SUM(H237:H314)","v":0}]
[null,null,"00040222","Požiadavky Objednávateľa - DSRS"]
[null,null,"00040222.101_1","DSRS","kpl",1,null,{"$f":"F238*G238","v":0}]
[null,null,"45.11.11_05","Búracie práce a demolácie"]
[null,null,"05030507","Odstránenie doplňujúcich konštrukcií "]
[null,null,"05030507.101_1","Odstránenie reklamnej tabule, komplet vrátane odvozu","ks",1,null,0]
[null,null,"05080200","Doprava vybúraných hmôt a sutiny - na skládku - vrátane poplatkov"]
[null,null,"05080200.101_1","Vodorovná doprava vybúraných hmôt a sutiny po suchu na skládku, vrátane uloženia a poplatkov za skladovanie","t",392.17599999999999,null,0]
[null,null,"05090362","Doplňujúce práce frézovanie bitúmenového krytu, podkladu"]
[null,null,"05090362.101_1","Frézovanie asf. podkladu alebo krytu bez prekážok, hr. 50 mm ","m2",228,null,0]
[null,null,"05090362.101_2","Frézovanie asf. podkladu alebo krytu bez prekážok, hr. 200 mm  ","m2",715,null,0]
[null,null,"45.11.20_01","Zemné práce"]
[null,null,"01020101","Odkopávky a prekopávky humóznej vrstvy ornice"]
[null,null,"01020101.101_1","Odstránenie ornice s naložením, premiestnením na dočasné skládky a s uložením","m3",339,null,0]
[null,null,"01020300","Odkopávky a prekopávky - V zemníkoch - nákup a dovoz vhodnej zeminy"]
[null,null,"01020300.101_1","Výkop v zemníku na suchu v hornine 1 až 4 , nákup a dovoz vhodnej zeminy","m3",6045,null,0]
[null,null,"01020400","Odkopávky a prekopávky - Pre cesty nezapažené"]
[null,null,"01020400.101_1","Odkopávka a prekopávka nezapažená pre cesty, v hornine 1 až 4, vrátane hutnenia pláne v záreze a úpravy trvalých svahov v záreze  ","m3",1147,null,0]
[null,null,"01020400.101_2","Odkopávka pre výmenu podložia, v hornine 1 až 4 ","m3",375,null,0]
[null,null,"01040202","Konštrukcie z hornín násypy so zhutnením"]
[null,null,"01040202.101_1","Uloženie sypaniny do násypu nesúdržných a súdržných hornín s predpísanou mierou zhutnenia, vrátane hutnenia pláne a úpravy trvalých svahov násypov - zemina z odkopávok pre cesty","m3",1147,null,0]
[null,null,"01040202.101_2","Uloženie sypaniny do násypu nesúdržných a súdržných hornín s predpísanou mierou zhutnenia, vrátane hutnenia pláne a úpravy trvalých svahov násypov - zemina zo zemníka","m3",6045,null,{"$f":"F257*G257","v":0}]
[null,null,"01060207","Premiestnenie vodorovné zemín schopných zúrodnenia"]
[null,null,"01060207.101_1","Vodorovné premiestnenie prebytočnej ornice, vrátane nakladania","m3",153,null,0]
[null,null,"01060208","Premiestnenie vodorovné výkopku na medziskládku"]
[null,null,"01060208.101_1","Vodorovné premiestnenie odkopávky/výkopku na medziskládku","m3",1147,null,0]
[null,null,"01060209","Premiestnenie vodorovné - nevhodná zemina na skládku "]
[null,null,"01060209.101_1","Vodorovné premiestnenie nevhodnej zeminy z výmeny podložia na skládku, uloženie, poplatok","m3",375,null,0]
[null,null,"45.11.23_01","Zemné práce"]
[null,null,"01080501","Povrchové úpravy terénu úpravy povrchov rozprestretím ornice"]
[null,null,"01080501.101_1","Rozprestretie ornice, hrúbka 200 mm, vrátane dovozu z medziskládky - objem 186 m3","m2",930,null,0]
[null,null,"01080503","Povrchové úpravy terénu úpravy povrchov založením trávnika"]
[null,null,"01080503.101_1","Výsev trávniku hydroosevom na ornicu, vrátane trávneho semena a prípravy pôdy pred výsevom","m2",930,null,0]
[null,null,"45.23.31_22","Práce na pozemných komunikáciach a letiskách"]
[null,null,"22010104","Podkladné a krycie vrstvy bez spojiva nestmelené (bez spojiva) štrkodrva"]
[null,null,"22010104.101_1","Podklad zo štrkodrviny s rozprestretím a zhutnením, po zhutnení hr. 150 mm - vozovka","m2",1505,null,{"$f":"F271*G271","v":0}]
[null,null,"22010104.101_2","Podklad zo štrkodrviny s rozprestretím a zhutnením, po zhutnení hr. 150 mm - vývodná vrstva krajnice","m2",177.75,null,0]
[null,null,"22010201","Podkladné a krycie vrstvy bez spojiva spevnenie krajníc zo zeminy"]
[null,null,"22010201.101_1","Zhotovenie zemných krajníc z hornín nenamŕzavých so zhutnením","m3",35.549999999999997,null,0]
[null,null,"22010204","Podkladné a krycie vrstvy bez spojiva spevnenie krajníc štrkodrva"]
[null,null,"22010204.101_1","Spevnenie krajníc s rozprestretím a zhutnením, štrkodrvinou hr. 100 mm","m2",177.75,null,0]
[null,null,"22020421","Podkladné a krycie vrstvy s hydraulickým spojivom  kamenivo spevnené cementom"]
[null,null,"22020421.101_1","Podklad z kameniva stmeleného cementom s rozprestretím a zhutnením, CBGM C 5/6, po zhutnení hr. 150 mm ","m2",1505,null,0]
[null,null,"22030640","Podkladné a krycie vrstvy z asfaltových zmesí bitúmenové vrstvy asfaltový betón"]
[null,null,"22030640.101_1","Podklad z asfaltového betónu AC 22 P s rozprestretím a zhutnením po zhutnení hr. 60 mm ","m2",1505,null,0]
[null,null,"22030640.101_2","Asfaltový betón vrstva obrusná alebo ložná AC 16 z modifik. asfaltu tr. I, po zhutnení hr. 50 mm ","m2",1505,null,0]
[null,null,"22030640.101_3","Asfaltový betón vrstva obrusná  AC 11 z modifik. asfaltu tr. I, po zhutnení hr. 40 mm ","m2",1505,null,0]
[null,null,"22250364","Doplňujúce konštrukcie zvodidlá oceľové cestné H2"]
[null,null,"22250364.101_1","Osadenie, montáž a dodávka cestného zvodidla oceľového jednostranného úrovne zachytenia H2 so zabaranením stĺpikov","m",52,null,{"$f":"F284*G284","v":0}]
[null,null,"22250464","Doplňujúce konštrukcie ochranné zariadenia smerové stĺpiky"]
[null,null,"22250464.101_1","Osadenie a dodávka cestného smerového stĺpika plastového s vykopaním alebo vyvŕtaním jamôk","ks",11,null,0]
[null,null,"22250670","Dočasné dopravné značenie - komplet"]
[null,null,"22250670.101_1","Dočasné dopravné značenie zvislé aj vodorovné - komplet","kpl",1,null,0]
[null,null,"22250671","Zvislé dopravné značky normálny, zväčšený alebo zmenšený rozmer"]
[null,null,"22250671.101_1","Zvislá dopravná značka normálny (základný) rozmer - P1=2 ks, dodanie, montáž a osadenie na stĺpik - komplet, vrátane dodania stĺpika a zhotovenia základu","ks",2,null,0]
[null,null,"22250671.101_2","Zvislá dopravná značka zmenšený rozmer - C6a=2 ks, C6c=1 ks, dodanie, montáž a osadenie na stĺpik - komplet, vrátane dodania stĺpika a zhotovenia základu","ks",3,null,0]
[null,null,"22250672","Zvislé dopravné značky veľkorozmerné"]
[null,null,"22250672.101_1","Zvislá dopravná značka veľkorozmerná - IS9=1 ks, IS18b=2 ks, IS18a=1 ks, dodanie, montáž a osadenie na dva stĺpiky - komplet, vrátane dodania stĺpikov a zhotovenia základu","ks",4,null,0]
[null,null,"22250785","Vodorovné dopravné značenie striekané a náterové - vodiace čiary - štruktúrovaný plast"]
[null,null,"22250785.101_1","Vodorovné dopravné značenie dvojzložkovým studeným plastom vodiacich čiar šírky 250 mm biela retroreflexná","m",382,null,0]
[null,null,"22250786","Vodorovné dopravné značenie striekané a náterové - deliace čiary - štruktúrovaný plast"]
[null,null,"22250786.101_1","Vodorovné dopravné značenie dvojzložkovým studeným plastom deliacich čiar šírky 125 mm biela retroreflexná","m",45,null,0]
[null,null,"22250787","Vodorovné dopravné značenie striekané a náterové - plochy - štruktúrovaný plast"]
[null,null,"22250787.101_1","Vodorovné dopravné značenie dvojzložkovým studeným plastom - plochy - biela retroreflexná","m2",71,null,0]
[null,null,"22250787.101_2","Vodorovné dopravné značenie dvojzložkovým studeným plastom -  šípky 3 ks -  biela retroreflexná","m2",5.4,null,0]
[null,null,"22250787.101_3","Vodorovné dopravné značenie dvojzložkovým studeným plastom - priečne čiary šírka 500 mm - 17 m biela retroreflexná","m2",8.5,null,0]
[null,null,"22250980","Doplňujúce konštrukcie obrubníky cestné"]
[null,null,"22250980.101_1","Obrubník betónový do lôžka z betónu prostého tr. C 20/25 s bočnou oporou - cestný obrubník so skosením, výška 250 mm, šírka 150 mm - ohraničenie ostrovčekov v križovatke","m",73,null,0]
[null,null,"22251161","Doplňujúce konštrukcie otvorené žľaby z betónových tvárnic"]
[null,null,"22251161.101_1","Priekopový žľab/dláždená priekopa do lôžka hr. 100 mm z betónu, betónové priekopové tvárnice 500 x 500 x 100 mm - trojuholníkový tvar šírka 1,0 m dĺžka 61,0 m","m2",61,null,0]
[null,null,"22251596","Doplňujúce konštrukcie - Čistenie "]
[null,null,"22251596.101_1","Čistenie priepustu, vrátane odvozu a likvidácie odstráneného nánosu s prípadnou úpravou vtoku, dĺžka 40 m","kpl",1,null,0]
[null,null,"45.26.22_02","Práce špeciálneho zakladania"]
[null,null,"02010601","Zlepšovanie základovej pôdy sanačné vrstvy kamenivo"]
[null,null,"02010601.101_1","Zlepšenie podložia - vrstvy hrúbky 0,5 m zo štrkodrvy - obalenie geotextíliou je ocenené samostatne","m3",375,null,0]
[null,null,"02060905","Spevňovanie hornín a konštrukcií - opláštenie - geotextília"]
[null,null,"02060905.101_1","Vrstva zo separačnej geotextílie - obalenie vrstiev ŠD zlepšujúcich podložie","m2",1820,null,0]
[null,null,"02060905.101_2","Vrstva zo separačnej geotextílie - oddelenie rastlého terénu a novej konštrukcie","m2",1240,null,0]
[]
[null,null,null,"102-00  Križovatka Hajtovka",null,null,null,{"$f":"SUM(H316:H418)","v":0}]
[null,null,"00040222","Požiadavky Objednávateľa - DSRS"]
[null,null,"00040222.102_1","DSRS","kpl",1,null,{"$f":"F317*G317","v":0}]
[null,null,"45.11.11_05","Búracie práce a demolácie"]
[null,null,"05080200","Doprava vybúraných hmôt a sutiny - na skládku - vrátane poplatkov"]
[null,null,"05080200.102_1","Vodorovná doprava vybúraných hmôt a sutiny po suchu na skládku, vrátane poplatkov za skladovanie","t",772.16,null,0]
[null,null,"05090362","Doplňujúce práce frézovanie bitúmenového krytu, podkladu"]
[null,null,"05090362.102_1","Frézovanie asf. podkladu alebo krytu bez prekážok, hr. 100 mm ","m2",3040,null,0]
[null,null,"45.11.12_02","Práce špeciálneho zakladania"]
[null,null,"02010309","Zlepšovanie základovej pôdy trativody kompletné z potrubia plastické"]
[null,null,"02010309.102_1","Trativody z drenážnych rúr plastových DN 200 mm, so štrkovým lôžkom v otvorenom výkope","m",140,null,0]
[null,null,"45.11.20_01","Zemné práce"]
[null,null,"01020101","Odkopávky a prekopávky humóznej vrstvy ornice"]
[null,null,"01020101.102_1","Odstránenie ornice s naložením, premiestnením na dočasné skládky a s uložením","m3",3559,null,0]
[null,null,"01020300","Odkopávky a prekopávky - V zemníkoch - nákup a dovoz vhodnej zeminy"]
[null,null,"01020300.102_1","Výkop v zemníku na suchu v v hornine 1 až 4 , nákup a dovoz vhodnej zeminy","m3",89047,null,0]
[null,null,"01020400","Odkopávky a prekopávky - Pre cesty nezapažené"]
[null,null,"01020400.102_1","Odkopávka a prekopávka nezapažená pre cesty, v hornine 1 až 4, vrátane hutnenia pláne v záreze a úpravy trvalých svahov v záreze  ","m3",788,null,0]
[null,null,"01020400.102_2","Odkopávka pre výmenu podložia, v hornine 1 až 4 ","m3",12785,null,0]
[null,null,"01040202","Konštrukcie z hornín násypy so zhutnením"]
[null,null,"01040202.102_1","Uloženie sypaniny do násypu nesúdržných a súdržných hornín s predpísanou mierou zhutnenia, vrátane hutnenia pláne a úpravy trvalých svahov násypov - zemina z odkopávok pre cesty","m3",788,null,0]
[null,null,"01040202.102_2","Uloženie sypaniny do násypu nesúdržných a súdržných hornín s predpísanou mierou zhutnenia, vrátane hutnenia pláne a úpravy trvalých svahov násypov - zemina zo zemníka","m3",89047,null,0]
[null,null,"01060207","Premiestnenie vodorovné zemín schopných zúrodnenia"]
[null,null,"01060207.102_1","Vodorovné premiestnenie prebytočnej ornice, vrátane nakladania","m3",17,null,{"$f":"F338*G338","v":0}]
[null,null,"01060208","Premiestnenie vodorovné výkopku na medziskládku"]
[null,null,"01060208.102_1","Vodorovné premiestnenie odkopávky/výkopku na medziskládku","m3",788,null,0]
[null,null,"01060209","Premiestnenie vodorovné - nevhodná zemina na skládku "]
[null,null,"01060209.102_1","Vodorovné premiestnenie nevhodnej zeminy z výmeny podložia na skládku, uloženie, poplatok","m3",12785,null,0]
[null,null,"45.11.23_01","Zemné práce"]
[null,null,"01080501","Povrchové úpravy terénu úpravy povrchov rozprestretím ornice"]
[null,null,"01080501.102_1","Rozprestretie ornice, hrúbka 200 mm, vrátane dovozu z medziskládky - objem 3542 m3","m2",17710,null,{"$f":"F345*G345","v":0}]
[null,null,"01080503","Povrchové úpravy terénu úpravy povrchov založením trávnika"]
[null,null,"01080503.102_1","Výsev trávniku hydroosevom na ornicu, vrátane trávneho semena a prípravy pôdy pred výsevom","m2",17710,null,0]
[null,null,"45.23.13_11","Betonárske práce"]
[null,null,"11250803","Doplňujúce konštrukcie výustný objekt odvodnenia"]
[null,null,"11250803.102_1","Výustný objekt odvodnenia - sklz z betónových tvárnic, betónové prahy, spevnenie svahu","ks",9,null,{"$f":"F350*G350","v":0}]
[null,null,"45.23.13_27","Montážne práce na plynovodoch, vodovodoch, kanalizáciach, teplovod., produkt. a rozvod. medi. plynov"]
[null,null,"27030641","Kanalizácie rúry pre odpadové vody"]
[null,null,"27030641.102_1","Potrubie z plastových rúr DN 150 - prípojka/odvádzanie vody z uličnej vpusti, vrátane lôžka a obsypu","m",126,null,0]
[null,null,"27031172","Kanalizácie ostatné konštrukcie vpusty kanalizačné"]
[null,null,"27031172.102_1","Vpust uličný z betónových dielcov, vrátane liatinovej mreže s nálevkou","ks",9,null,0]
[null,null,"45.23.31_22","Práce na pozemných komunikáciach a letiskách"]
[null,null,"22010104","Podkladné a krycie vrstvy bez spojiva nestmelené (bez spojiva) štrkodrva"]
[null,null,"22010104.102_1","Podklad zo štrkodrviny s rozprestretím a zhutnením, po zhutnení hr. 150 mm - vozovka","m2",8440,null,0]
[null,null,"22010104.102_2","Podklad zo štrkodrviny s rozprestretím a zhutnením, po zhutnení hr. 150 mm - vývodná vrstva krajnice","m2",1856,null,0]
[null,null,"22010201","Podkladné a krycie vrstvy bez spojiva spevnenie krajníc zo zeminy"]
[null,null,"22010201.102_1","Zhotovenie zemných krajníc z hornín nenamŕzavých so zhutnením, vrátane nákladov na obstaranie a premiestnenie zeminy na miesto zabudovania","m3",371.25,null,{"$f":"F361*G361","v":0}]
[null,null,"22010204","Podkladné a krycie vrstvy bez spojiva spevnenie krajníc štrkodrva"]
[null,null,"22010204.102_1","Spevnenie krajníc s rozprestretím a zhutnením, štrkodrvinou hr. 100 mm","m2",1856.25,null,0]
[null,null,"22020421","Podkladné a krycie vrstvy s hydraulickým spojivom  kamenivo spevnené cementom"]
[null,null,"22020421.102_1","Podklad z kameniva stmeleného cementom s rozprestretím a zhutnením, CBGM C 5/6, po zhutnení hr. 150 mm ","m2",8440,null,0]
[null,null,"22030640","Podkladné a krycie vrstvy z asfaltových zmesí bitúmenové vrstvy asfaltový betón"]
[null,null,"22030640.102_1","Podklad z asfaltového betónu AC 22 P s rozprestretím a zhutnením po zhutnení hr. 60 mm ","m2",8440,null,0]
[null,null,"22030640.102_2","Asfaltový betón vrstva obrusná alebo ložná AC 16 z modifik. asfaltu tr. I, po zhutnení hr. 50 mm ","m2",8440,null,0]
[null,null,"22030640.102_3","Asfaltový betón vrstva obrusná  AC 11 z modifik. asfaltu tr. I, po zhutnení hr. 40 mm ","m2",8440,null,0]
[null,null,"22040618","Dláždený rigol z tvárnic betónových"]
[null,null,"22040618.102_1","Rigol dláždený do lôžka z betónu prostého z prefabrikátov - pozdĺž protihlukovej steny, zaústenie do vpustí","m",346,null,0]
[null,null,"22250363","Doplňujúce konštrukcie zvodidlá oceľové cestné H1"]
[null,null,"22250363.102_1","Osadenie, montáž a dodávka cestného zvodidla oceľového jednostranného úrovne zachytenia H1 so zabaranením stĺpikov ","m",388,null,0]
[null,null,"22250364","Doplňujúce konštrukcie zvodidlá oceľové cestné H2"]
[null,null,"22250364.102_1","Osadenie, montáž a dodávka cestného zvodidla oceľového jednostranného úrovne zachytenia H2 so zabaranením stĺpikov","m",754,null,0]
[null,null,"22250464","Doplňujúce konštrukcie ochranné zariadenia smerové stĺpiky"]
[null,null,"22250464.102_1","Osadenie a dodávka cestného smerového stĺpika plastového s vykopaním alebo vyvŕtaním jamôk","ks",15,null,0]
[null,null,"22250670","Dočasné dopravné značenie - komplet"]
[null,null,"22250670.102_1","Dočasné dopravné značenie zvislé aj vodorovné - komplet","kpl",1,null,0]
[null,null,"22250671","Zvislé dopravné značky normálny, zväčšený alebo zmenšený rozmer"]
[null,null,"22250671.102_1","Zvislá dopravná značka normálny (základný) rozmer - P1=3 ks, P6=2 ks, P8=2 ks, dodanie, montáž a osadenie na stĺpik - komplet, vrátane dodania stĺpika a zhotovenia základu","ks",7,null,0]
[null,null,"22250671.102_2","Zvislá dopravná značka zmenšený rozmer - C6a=1 ks, C6c=2 ks, dodanie, montáž a osadenie na stĺpik - komplet, vrátane dodania stĺpika a zhotovenia základu","ks",3,null,0]
[null,null,"22250672","Zvislé dopravné značky veľkorozmerné"]
[null,null,"22250672.102_1","Zvislá dopravná značka veľkorozmerná - IS9=1 ks, IS17b=1 ks, IS18b=4 ks, IS18a=2 ks, dodanie, montáž a osadenie na dva stĺpiky - komplet, vrátane dodania stĺpikov a zhotovenia základu","ks",8,null,0]
[null,null,"22250785","Vodorovné dopravné značenie striekané a náterové - vodiace čiary - štruktúrovaný plast"]
[null,null,"22250785.102_1","Vodorovné dopravné značenie dvojzložkovým studeným plastom vodiacich čiar šírky 250 mm biela retroreflexná","m",2200,null,0]
[null,null,"22250786","Vodorovné dopravné značenie striekané a náterové - deliace čiary - štruktúrovaný plast"]
[null,null,"22250786.102_1","Vodorovné dopravné značenie dvojzložkovým studeným plastom deliacich čiar šírky 125 mm biela retroreflexná","m",850,null,0]
[null,null,"22250787","Vodorovné dopravné značenie striekané a náterové - plochy - štruktúrovaný plast"]
[null,null,"22250787.102_1","Vodorovné dopravné značenie dvojzložkovým studeným plastom -  šípky 18 ks -  biela retroreflexná","m2",32.4,null,0]
[null,null,"22250787.102_2","Vodorovné dopravné značenie dvojzložkovým studeným plastom - priečne čiary šírka 500 mm - 25 m biela retroreflexná","m2",12.5,null,0]
[null,null,"22250980","Doplňujúce konštrukcie obrubníky cestné"]
[null,null,"22250980.102_1","Obrubník betónový do lôžka z betónu prostého tr. C 20/25 s bočnou oporou - cestný obrubník so skosením, výška 250 mm, šírka 150 mm - ohraničenie ostrovčekov v križovatke","m",134,null,0]
[null,null,"22251161","Doplňujúce konštrukcie otvorené žľaby z betónových tvárnic"]
[null,null,"22251161.102_1","Priekopový žľab/dláždená priekopa do lôžka hr. 100 mm z betónu, betónové priekopové tvárnice 500 x 500 x 100 mm - trojuholníkový tvar šírka 1,0 m dĺžka 564,0 m","m2",564,null,0]
[null,null,"45.26.22_02","Práce špeciálneho zakladania"]
[null,null,"02010554","Zlepšovanie základovej pôdy - prefabrikované drény"]
[null,null,"02010554.102_1","Zvislé konsolidačné prefabrikované drény celkovej hĺbky jedného vpichu 5 m; plocha aplikácie = 20830 m2; celkový počet 21848 ks drénov","m",109240,null,0]
[null,null,"02010601","Zlepšovanie základovej pôdy sanačné vrstvy kamenivo"]
[null,null,"02010601.102_1","Zlepšenie podložia - vrstvy hrúbky 0,5 m zo štrkodrvy - obalenie geotextíliou a vystuženie geomrežou je ocenené samostatne","m3",36400,null,0]
[null,null,"02060905","Spevňovanie hornín a konštrukcií - opláštenie - geotextília"]
[null,null,"02060905.102_1","Vrstva zo separačnej geotextílie - obalenie vrstiev ŠD zlepšujúcich podložie","m2",101637,null,0]
[null,null,"02060905.102_2","Vrstva zo separačnej geotextílie - oddelenie rastlého terénu a novej konštrukcie","m2",2310,null,0]
[null,null,"02060907","Spevňovanie hornín a konštrukcií  - spevnenie - dvojosá geomrežovina"]
[null,null,"02060907.102_1","Geomreža pre stabilizáciu podkladu, tuhá dvojosá z polypropylénu pevnosť v ťahu 40/40 kN/m - zlepšenie podložia","m2",47100,null,0]
[null,null,"45.24.70_11","Betonárske práce"]
[null,null,"11200101","Podkladné konštrukcie podkladné vrstvy betón prostý"]
[null,null,"11200101.102_1","Podklad pod dlažbu z betónu prostého hr. do 100 mm, vrátane prahov - úpravy na vtoku a výtoku pri priepustoch","m3",2.2999999999999998,null,0]
[null,null,"11250701","Doplňujúce konštrukcie vtokové nádržky betón prostý"]
[null,null,"11250701.102_1","Vtoková nádržka/kalová jama z betónu prostého tr. C 25/30 priepustu km 0,07300 - rozmer 2,0 x 2,3 x 2,15 - komplet vrátane doplňujúcich konštrukcií - podklad, zábradlie, prekrytie, dlažba","ks",1,null,0]
[null,null,"45.24.70_31","Hydromelioračné práce"]
[null,null,"31210303","Spevnené plochy dlažby lomový kameň"]
[null,null,"31210303.102_1","Dlažba z lomového kameňa kladená do malty s vyplnením škár maltou MC 10 hrúbka 200mm - úprava pri vtoku a výtoku priepustov - 23,00 m2","m3",4.5999999999999996,null,0]
[null,null,"31250111","Doplňujúce konštrukcie rúrové priepusty DN 800"]
[null,null,"31250111.102_1","Rúrový priepust km 0,07300 - oceľová rúra flexibilná, špirálovite vinutý pozinkovaný plech s ochrannou fóliou -  priemer 800 mm, vrátane lôžka a obsypu podľa technologického predpisu dodávateľa potrubia - dĺžka 27,40","m",27.4,null,0]
[null,null,"31250112","Doplňujúce konštrukcie rúrové priepusty DN 1000"]
[null,null,"31250112.102_1","Rúrový priepust km 0,13356 - oceľová rúra flexibilná, špirálovite vinutý pozinkovaný plech s ochrannou fóliou -  priemer 1000 mm, vrátane lôžka a obsypu podľa technologického predpisu dodávateľa potrubia - dĺžka 35,55","m",35.549999999999997,null,0]
[]
[null,null,null,"103-00  Križovatka Plavnica",null,null,null,{"$f":"SUM(H420:H486)","v":0}]
[null,null,"00040222","Požiadavky Objednávateľa - DSRS"]
[null,null,"00040222.103_1","DSRS","kpl",1,null,{"$f":"F421*G421","v":0}]
[null,null,"45.11.11_05","Búracie práce a demolácie"]
[null,null,"05080200","Doprava vybúraných hmôt a sutiny - na skládku - vrátane poplatkov"]
[null,null,"05080200.103_1","Vodorovná doprava vybúraných hmôt a sutiny po suchu na skládku, vrátane poplatkov za skladovanie","t",477.52,null,0]
[null,null,"05090362","Doplňujúce práce frézovanie bitúmenového krytu, podkladu"]
[null,null,"05090362.103_1","Frézovanie asf. podkladu alebo krytu bez prekážok, hr. 200 mm  ","m2",940,null,0]
[null,null,"45.11.20_01","Zemné práce"]
[null,null,"01020101","Odkopávky a prekopávky humóznej vrstvy ornice"]
[null,null,"01020101.103_1","Odstránenie ornice s naložením, premiestnením na dočasné skládky a s uložením","m3",461,null,0]
[null,null,"01020400","Odkopávky a prekopávky - Pre cesty nezapažené"]
[null,null,"01020400.103_1","Odkopávka a prekopávka nezapažená pre cesty, v hornine 1 až 4, vrátane hutnenia pláne v záreze a úpravy trvalých svahov v záreze  ","m3",4309,null,0]
[null,null,"01020400.103_2","Odkopávka pre výmenu podložia, v hornine 1 až 4 ","m3",900,null,0]
[null,null,"01040202","Konštrukcie z hornín násypy so zhutnením"]
[null,null,"01040202.103_1","Uloženie sypaniny do násypu nesúdržných a súdržných hornín s predpísanou mierou zhutnenia, vrátane hutnenia pláne a úpravy trvalých svahov násypov - zemina z odkopávok pre cesty","m3",790,null,0]
[null,null,"01060207","Premiestnenie vodorovné zemín schopných zúrodnenia"]
[null,null,"01060207.103_1","Vodorovné premiestnenie prebytočnej ornice, vrátane nakladania","m3",96,null,0]
[null,null,"01060208","Premiestnenie vodorovné výkopku na medziskládku"]
[null,null,"01060208.103_1","Vodorovné premiestnenie odkopávky/výkopku na medziskládku","m3",4309,null,0]
[null,null,"01060209","Premiestnenie vodorovné - nevhodná zemina na skládku "]
[null,null,"01060209.103_1","Vodorovné premiestnenie nevhodnej zeminy z výmeny podložia na skládku, uloženie, poplatok","m3",900,null,0]
[null,null,"45.11.23_01","Zemné práce"]
[null,null,"01080501","Povrchové úpravy terénu úpravy povrchov rozprestretím ornice"]
[null,null,"01080501.103_1","Rozprestretie ornice, hrúbka 200 mm, vrátane dovozu z medziskládky - objem 365 m3","m2",1825,null,0]
[null,null,"01080503","Povrchové úpravy terénu úpravy povrchov založením trávnika"]
[null,null,"01080503.103_1","Výsev trávniku hydroosevom na ornicu, vrátane trávneho semena a prípravy pôdy pred výsevom","m2",1825,null,0]
[null,null,"45.23.31_22","Práce na pozemných komunikáciach a letiskách"]
[null,null,"22010104","Podkladné a krycie vrstvy bez spojiva nestmelené (bez spojiva) štrkodrva"]
[null,null,"22010104.103_1","Podklad zo štrkodrviny s rozprestretím a zhutnením, po zhutnení hr. 150 mm - vozovka","m2",1881,null,{"$f":"F448*G448","v":0}]
[null,null,"22010104.103_2","Podklad zo štrkodrviny s rozprestretím a zhutnením, po zhutnení hr. 150 mm - vývodná vrstva krajnice","m2",218.25,null,0]
[null,null,"22010201","Podkladné a krycie vrstvy bez spojiva spevnenie krajníc zo zeminy"]
[null,null,"22010201.103_1","Zhotovenie zemných krajníc z hornín nenamŕzavých so zhutnením","m3",43.65,null,0]
[null,null,"22010204","Podkladné a krycie vrstvy bez spojiva spevnenie krajníc štrkodrva"]
[null,null,"22010204.103_1","Spevnenie krajníc s rozprestretím a zhutnením, štrkodrvinou hr. 100 mm","m2",218.25,null,0]
[null,null,"22020421","Podkladné a krycie vrstvy s hydraulickým spojivom  kamenivo spevnené cementom"]
[null,null,"22020421.103_1","Podklad z kameniva stmeleného cementom s rozprestretím a zhutnením, CBGM C 5/6, po zhutnení hr. 150 mm ","m2",1881,null,0]
[null,null,"22030640","Podkladné a krycie vrstvy z asfaltových zmesí bitúmenové vrstvy asfaltový betón"]
[null,null,"22030640.103_1","Podklad z asfaltového betónu AC 22 P s rozprestretím a zhutnením po zhutnení hr. 60 mm ","m2",1881,null,0]
[null,null,"22030640.103_2","Asfaltový betón vrstva obrusná alebo ložná AC 16 z modifik. asfaltu tr. I, po zhutnení hr. 50 mm ","m2",1881,null,0]
[null,null,"22030640.103_3","Asfaltový betón vrstva obrusná  AC 11 z modifik. asfaltu tr. I, po zhutnení hr. 40 mm ","m2",1881,null,0]
[null,null,"22250464","Doplňujúce konštrukcie ochranné zariadenia smerové stĺpiky"]
[null,null,"22250464.103_1","Osadenie a dodávka cestného smerového stĺpika plastového s vykopaním alebo vyvŕtaním jamôk","ks",15,null,0]
[null,null,"22250670","Dočasné dopravné značenie - komplet"]
[null,null,"22250670.103_1","Dočasné dopravné značenie zvislé aj vodorovné - komplet","kpl",1,null,0]
[null,null,"22250671","Zvislé dopravné značky normálny, zväčšený alebo zmenšený rozmer"]
[null,null,"22250671.103_1","Zvislá dopravná značka normálny (základný) rozmer - P1=2 ks, dodanie, montáž a osadenie na stĺpik - komplet, vrátane dodania stĺpika a zhotovenia základu","ks",2,null,0]
[null,null,"22250671.103_2","Zvislá dopravná značka zmenšený rozmer - C6a=2 ks, C6c=2 ks, dodanie, montáž a osadenie na stĺpik - komplet, vrátane dodania stĺpika a zhotovenia základu","ks",4,null,0]
[null,null,"22250672","Zvislé dopravné značky veľkorozmerné"]
[null,null,"22250672.103_1","Zvislá dopravná značka veľkorozmerná - IS9=1 ks, IS18b=2 ks, IS18a=1 ks, dodanie, montáž a osadenie na dva stĺpiky - komplet, vrátane dodania stĺpikov a zhotovenia základu","ks",4,null,0]
[null,null,"22250785","Vodorovné dopravné značenie striekané a náterové - vodiace čiary - štruktúrovaný plast"]
[null,null,"22250785.103_1","Vodorovné dopravné značenie dvojzložkovým studeným plastom vodiacich čiar šírky 250 mm biela retroreflexná","m",558,null,0]
[null,null,"22250786","Vodorovné dopravné značenie striekané a náterové - deliace čiary - štruktúrovaný plast"]
[null,null,"22250786.103_1","Vodorovné dopravné značenie dvojzložkovým studeným plastom deliacich čiar šírky 125 mm biela retroreflexná","m",96,null,0]
[null,null,"22250787","Vodorovné dopravné značenie striekané a náterové - plochy - štruktúrovaný plast"]
[null,null,"22250787.103_1","Vodorovné dopravné značenie dvojzložkovým studeným plastom - plochy - biela retroreflexná","m2",130,null,0]
[null,null,"22250787.103_2","Vodorovné dopravné značenie dvojzložkovým studeným plastom -  šípky 8 ks -  biela retroreflexná","m2",14.4,null,0]
[null,null,"22250787.103_3","Vodorovné dopravné značenie dvojzložkovým studeným plastom - priečne čiary šírka 500 mm - 12 m biela retroreflexná","m2",6,null,0]
[null,null,"22250980","Doplňujúce konštrukcie obrubníky cestné"]
[null,null,"22250980.103_1","Obrubník betónový do lôžka z betónu prostého tr. C 20/25 s bočnou oporou - cestný obrubník so skosením, výška 250 mm, šírka 150 mm - ohraničenie ostrovčekov v križovatke","m",137,null,0]
[null,null,"22251161","Doplňujúce konštrukcie otvorené žľaby z betónových tvárnic"]
[null,null,"22251161.103_1","Priekopový žľab/dláždená priekopa do lôžka hr. 100 mm z betónu, betónové priekopové tvárnice 500 x 500 x 100 mm - trojuholníkový tvar šírka 1,0 m dĺžka 270 m","m2",270,null,0]
[null,null,"45.26.22_02","Práce špeciálneho zakladania"]
[null,null,"02010601","Zlepšovanie základovej pôdy sanačné vrstvy kamenivo"]
[null,null,"02010601.103_1","Zlepšenie podložia - vrstvy hrúbky 0,5 m zo štrkodrvy ","m3",900,null,0]
[null,null,"02060905","Spevňovanie hornín a konštrukcií - opláštenie - geotextília"]
[null,null,"02060905.103_1","Vrstva zo separačnej geotextílie vrátane dodávky - oddelenie rastlého terénu a novej konštrukcie","m2",2800,null,0]
[]
[null,null,null,"130-00  Prístupové cesty v katastrálnom území obce Chmelnica",null,null,null,{"$f":"SUM(H488:H531)","v":0}]
[null,null,"00040222","Požiadavky Objednávateľa - DSRS"]
[null,null,"00040222.130_1","DSRS","kpl",1,null,{"$f":"F489*G489","v":0}]
[null,null,"45.11.20_01","Zemné práce"]
[null,null,"01020101","Odkopávky a prekopávky humóznej vrstvy ornice"]
[null,null,"01020101.130_1","Odstránenie ornice s naložením, premiestnením na dočasné skládky a s uložením","m3",625,null,{"$f":"F492*G492","v":0}]
[null,null,"01020300","Odkopávky a prekopávky - V zemníkoch - nákup a dovoz vhodnej zeminy"]
[null,null,"01020300.130_1","Výkop v zemníku na suchu v hornine 1 až 4 , nákup a dovoz vhodnej zeminy","m3",3619,null,0]
[null,null,"01020400","Odkopávky a prekopávky - Pre cesty nezapažené"]
[null,null,"01020400.130_1","Odkopávka a prekopávka nezapažená pre cesty, v hornine 1 až 4, vrátane hutnenia pláne v záreze a úpravy trvalých svahov v záreze  ","m3",261,null,0]
[null,null,"01040202","Konštrukcie z hornín násypy so zhutnením"]
[null,null,"01040202.130_1","Uloženie sypaniny do násypu nesúdržných a súdržných hornín s predpísanou mierou zhutnenia, vrátane hutnenia pláne a úpravy trvalých svahov násypov - zemina z odkopávok pre cesty","m3",261,null,0]
[null,null,"01040202.130_2","Uloženie sypaniny do násypu nesúdržných a súdržných hornín s predpísanou mierou zhutnenia, vrátane hutnenia pláne a úpravy trvalých svahov násypov - zemina zo zemníka","m3",3619,null,0]
[null,null,"01060207","Premiestnenie vodorovné zemín schopných zúrodnenia"]
[null,null,"01060207.130_1","Vodorovné premiestnenie prebytočnej ornice, vrátane nakladania","m3",424,null,{"$f":"F501*G501","v":0}]
[null,null,"01060208","Premiestnenie vodorovné výkopku na medziskládku"]
[null,null,"01060208.130_1","Vodorovné premiestnenie odkopávky/výkopku na medziskládku","m3",261,null,0]
[null,null,"45.11.23_01","Zemné práce"]
[null,null,"01080501","Povrchové úpravy terénu úpravy povrchov rozprestretím ornice"]
[null,null,"01080501.130_1","Rozprestretie ornice, hrúbka 200 mm, vrátane dovozu z medziskládky - objem 201 m3","m2",1005,null,0]
[null,null,"01080503","Povrchové úpravy terénu úpravy povrchov založením trávnika"]
[null,null,"01080503.130_1","Výsev trávniku hydroosevom na ornicu, vrátane trávneho semena a prípravy pôdy pred výsevom","m2",1005,null,0]
[null,null,"45.23.31_22","Práce na pozemných komunikáciach a letiskách"]
[null,null,"22010104","Podkladné a krycie vrstvy bez spojiva nestmelené (bez spojiva) štrkodrva"]
[null,null,"22010104.130_1","Podklad zo štrkodrviny frakcia 0-32 mm s rozprestretím a zhutnením, po zhutnení hr. 160 mm","m2",1550,null,{"$f":"F511*G511","v":0}]
[null,null,"22010104.130_2","Podklad zo štrkodrviny frakcia 0-16 mm s rozprestretím a zhutnením, po zhutnení hr. 160 mm","m2",1550,null,0]
[null,null,"22030330","Podkladné a krycie vrstvy z asfaltových zmesí bitúmenové postreky, nátery, posypy spojovací postrek"]
[null,null,"22030330.130_1","Postrek asfaltový spojovací bez posypu kamenivom z asfaltu cestného v množstve 0,50 kg/m2 ","m2",1550,null,0]
[null,null,"22030437","Podkladné a krycie vrstvy z asfaltových zmesí emulzné kalové vrstvy mikrokoberce"]
[null,null,"22030437.130_1","Emulzný mikrokoberec dvojvrstvový EM 8 + EM 11 s rozprestretím ","m2",1550,null,0]
[null,null,"22250670","Dočasné dopravné značenie - komplet"]
[null,null,"22250670.130_1","Dočasné dopravné značenie zvislé aj vodorovné - komplet","kpl",1,null,0]
[null,null,"22250671","Zvislé dopravné značky normálny, zväčšený alebo zmenšený rozmer"]
[null,null,"22250671.130_1","Zvislá dopravná značka normálny (základný) rozmer - P1=1 ks, dodanie, montáž a osadenie na stĺpik - komplet, vrátane dodania stĺpika a zhotovenia základu","ks",1,null,0]
[null,null,"22250787","Vodorovné dopravné značenie striekané a náterové - plochy - štruktúrovaný plast"]
[null,null,"22250787.130_1","Vodorovné dopravné značenie dvojzložkovým studeným plastom - priečne čiary šírka 500 mm - 6 m biela retroreflexná","m2",3,null,0]
[null,null,"45.24.70_11","Betonárske práce"]
[null,null,"11200101","Podkladné konštrukcie podkladné vrstvy betón prostý"]
[null,null,"11200101.130_1","Podklad pod dlažbu z betónu prostého hr. do 100 mm, vrátane prahov - úpravy na vtoku a výtoku pri priepustoch","m3",5.8,null,0]
[null,null,"45.24.70_31","Hydromelioračné práce"]
[null,null,"31210303","Spevnené plochy dlažby lomový kameň"]
[null,null,"31210303.130_1","Dlažba z lomového kameňa kladená do malty s vyplnením škár maltou MC 10 hrúbka 200mm - úprava pri vtoku a výtoku priepustov - 56,00 m2","m3",11.2,null,0]
[null,null,"31250110","Doplňujúce konštrukcie rúrové priepusty DN 600"]
[null,null,"31250110.130_1","Rúrový priepust - oceľová rúra flexibilná, špirálovite vinutý pozinkovaný plech s ochrannou fóliou - priemer 600 mm, vrátane lôžka a obsypu podľa technologického predpisu dodávateľa potrubia - dĺžka 6,30 m","m",6.3,null,0]
[]
[null,null,null,"131-00  Prístupové cesty v katastrálnom území obce Plavnica",null,null,null,{"$f":"SUM(H533:H632)","v":0}]
[null,null,"00040222","Požiadavky Objednávateľa - DSRS"]
[null,null,"00040222.131_1","DSRS","kpl",1,null,{"$f":"F534*G534","v":0}]
[null,null,"45.11.11_05","Búracie práce a demolácie"]
[null,null,"05080200","Doprava vybúraných hmôt a sutiny - na skládku - vrátane poplatkov"]
[null,null,"05080200.131_1","Vodorovná doprava vybúraných hmôt a sutiny po suchu na skládku, vrátane poplatkov za skladovanie","t",180.34,null,0]
[null,null,"05090362","Doplňujúce práce frézovanie bitúmenového krytu, podkladu"]
[null,null,"05090362.131_1","Frézovanie asf. podkladu alebo krytu bez prekážok, hr. 100 mm ","m2",710,null,0]
[null,null,"45.11.20_01","Zemné práce"]
[null,null,"01020101","Odkopávky a prekopávky humóznej vrstvy ornice"]
[null,null,"01020101.131_1","Odstránenie ornice s naložením, premiestnením na dočasné skládky a s uložením","m3",1428,null,{"$f":"F542*G542","v":0}]
[null,null,"01020300","Odkopávky a prekopávky - V zemníkoch - nákup a dovoz vhodnej zeminy"]
[null,null,"01020300.131_1","Výkop v zemníku na suchu v v hornine 1 až 4 , nákup a dovoz vhodnej zeminy","m3",4581,null,0]
[null,null,"01020400","Odkopávky a prekopávky - Pre cesty nezapažené"]
[null,null,"01020400.131_1","Odkopávka a prekopávka nezapažená pre cesty, v hornine 1 až 4, vrátane hutnenia pláne v záreze a úpravy trvalých svahov v záreze  ","m3",914,null,0]
[null,null,"01030103","Hĺbené vykopávky jám pre stožiare, vrátane zásypov a zaistenia stien výkopu"]
[null,null,"01030102.131_1","Jama pre stožiar osvetlenia, vrátane zásypu","ks",12,null,0]
[null,null,"01030203","Hĺbené výkopy a zásypy káblových rýh, vrátane doplňujúcich konštrukcií"]
[null,null,"01030203.131_1","Hĺbenie a zásyp káblovej ryhy 35 cm širokej a 80 cm hlbokej, vrátane lôžka, fólie a provizórnej úpravy terénu","m",325,null,0]
[null,null,"01030203.131_2","Hĺbenie a zásyp káblovej ryhy 50 cm širokej a 120 cm hlbokej, vrátane lôžka, fólie a provizórnej úpravy terénu ","m",15,null,0]
[null,null,"01040202","Konštrukcie z hornín násypy so zhutnením"]
[null,null,"01040202.131_1","Uloženie sypaniny do násypu nesúdržných a súdržných hornín s predpísanou mierou zhutnenia, vrátane hutnenia pláne a úpravy trvalých svahov násypov - zemina z odkopávok pre cesty","m3",914,null,0]
[null,null,"01040202.131_2","Uloženie sypaniny do násypu nesúdržných a súdržných hornín s predpísanou mierou zhutnenia, vrátane hutnenia pláne a úpravy trvalých svahov násypov - zemina zo zemníka","m3",4581,null,0]
[null,null,"01060207","Premiestnenie vodorovné zemín schopných zúrodnenia"]
[null,null,"01060207.131_1","Vodorovné premiestnenie prebytočnej ornice, vrátane nakladania","m3",1198,null,0]
[null,null,"01060208","Premiestnenie vodorovné výkopku na medziskládku"]
[null,null,"01060208.131_1","Vodorovné premiestnenie odkopávky/výkopku na medziskládku","m3",914,null,{"$f":"F558*G558","v":0}]
[null,null,"01090101","Pretláčanie potrubia tr. hor. 1-4"]
[null,null,"01090101.131_1","Pretlačovanie otvorov strojovo do D 150 mm, vrátane PVC-U tuhej chráničky pre kábel verejného osvetlenia","m",20,null,0]
[null,null,"45.11.23_01","Zemné práce"]
[null,null,"01080501","Povrchové úpravy terénu úpravy povrchov rozprestretím ornice"]
[null,null,"01080501.131_1","Rozprestretie ornice, hrúbka 200 mm, vrátane dovozu z medziskládky - objem 230 m3","m2",1150,null,0]
[null,null,"01080503","Povrchové úpravy terénu úpravy povrchov založením trávnika"]
[null,null,"01080503.131_1","Výsev trávniku hydroosevom na ornicu, vrátane trávneho semena a prípravy pôdy pred výsevom","m2",1150,null,0]
[null,null,"45.23.31_22","Práce na pozemných komunikáciach a letiskách"]
[null,null,"22010104","Podkladné a krycie vrstvy bez spojiva nestmelené (bez spojiva) štrkodrva"]
[null,null,"22010104.131_1","Podklad zo štrkodrviny frakcia 0-32 mm s rozprestretím a zhutnením, po zhutnení hr. 160 mm","m2",5830,null,0]
[null,null,"22010104.131_2","Podklad zo štrkodrviny frakcia 0-16 mm s rozprestretím a zhutnením, po zhutnení hr. 160 mm","m2",5830,null,0]
[null,null,"22010104.131_3","Podklad zo štrkodrviny s rozprestretím a zhutnením, po zhutnení hr. 150 mm","m2",608,null,0]
[null,null,"22030437","Podkladné a krycie vrstvy z asfaltových zmesí emulzné kalové vrstvy mikrokoberce"]
[null,null,"22030437.131_1","Emulzný mikrokoberec dvojvrstvový EM 8 + EM 11 s rozprestretím ","m2",5830,null,0]
[null,null,"22040417","Kryty dláždené chodníkov komunikácií  dlažba betónová"]
[null,null,"22040417.131_1","Betónová zámková dlažba komunikácií pre peších hr. 60 mm so zriadením lôžka z kameniva hr. 40 mm","m2",{"$f":"582+26","v":608},null,0]
[null,null,"R-pol.","Brail - varovný pás (signálny pás) pre nevidiacich","m2",26,null,0]
[null,null,"22250364","Doplňujúce konštrukcie zvodidlá oceľové cestné H2"]
[null,null,"22250364.131_1","Osadenie, montáž a dodávka cestného zvodidla oceľového jednostranného úrovne zachytenia H2 so zabaranením stĺpikov","m",104,null,0]
[null,null,"22250670","Dočasné dopravné značenie - komplet"]
[null,null,"22250670.131_1","Dočasné dopravné značenie zvislé aj vodorovné - komplet","kpl",1,null,{"$f":"F579*G579","v":0}]
[null,null,"22250671","Zvislé dopravné značky normálny, zväčšený alebo zmenšený rozmer"]
[null,null,"22250671.131_1","Zvislá dopravná značka normálny (základný) rozmer - P1=4 ks, dodanie, montáž a osadenie na stĺpik - komplet, vrátane dodania stĺpika a zhotovenia základu","ks",4,null,0]
[null,null,"22250786","Vodorovné dopravné značenie striekané a náterové - deliace čiary - štruktúrovaný plast"]
[null,null,"22250786.131_1","Vodorovné dopravné značenie dvojzložkovým studeným plastom deliacich čiar šírky 125 mm biela retroreflexná","m",204,null,0]
[null,null,"22250981","Doplňujúce konštrukcie obrubníky záhonové"]
[null,null,"22250981.131_1","Záhonový alebo parkový obrubník betónový do lôžka z betónu prostého tr. C 16/20 s bočnou oporou - chodníky","m",540,null,0]
[null,null,"22250982","Doplňujúce konštrukcie obrubníky zastávkové"]
[null,null,"22250982.131_1","Obrubník betónový zastávkový - typ Kasselský - do lôžka z betónu prostého tr. C 20/25 s bočnou oporou - vrátane vytvorenie bezbarierového prechodu","m",40,null,0]
[null,null,"22251161","Doplňujúce konštrukcie otvorené žľaby z betónových tvárnic"]
[null,null,"22251161.131_1","Priekopový žľab/dláždená priekopa do lôžka hr. 100 mm z betónu, betónové priekopové tvárnice 500 x 500 x 100 mm - trojuholníkový tvar šírka 1,0 m dĺžka 554,0 m","m2",534,null,0]
[null,null,"45.24.70_11","Betonárske práce"]
[null,null,"11200101","Podkladné konštrukcie podkladné vrstvy betón prostý"]
[null,null,"11200101.131_1","Podklad pod dlažbu z betónu prostého hr. do 100 mm, vrátane prahov - úpravy na vtoku a výtoku pri priepustoch","m3",7.62,null,0]
[null,null,"11250601","Doplňujúce konštrukcie čelá priepustov betón prostý"]
[null,null,"11250601.131_1","Čelo priepustu z betónu prostého C25/30 priemer rúr DN 600 mm - komplet vrátane podkladu a zemných prác - priemerný objem betónu pre 1 čelo 5,0 m3","ks",11,null,0]
[null,null,"11250701","Doplňujúce konštrukcie vtokové nádržky betón prostý"]
[null,null,"11250701.131_1","Vtoková nádržka/kalová jama z betónu prostého tr. C 25/30 priepustu na  PC2 zjazd - rozmer 2,0 x 2,0 x 2,45 - komplet vrátane doplňujúcich konštrukcií - podklad, prekrytie, dlažba","ks",1,null,0]
[null,null,"11250701.131_2","Vtoková nádržka/kalová jama z betónu prostého tr. C 25/30 priepustu na  PC4 zjazd - rozmer 1,9 x 1,9 x 1,85 - komplet vrátane doplňujúcich konštrukcií - podklad, prekrytie, dlažba","ks",1,null,0]
[null,null,"45.24.70_31","Hydromelioračné práce"]
[null,null,"31210303","Spevnené plochy dlažby lomový kameň"]
[null,null,"31210303.131_1","Dlažba z lomového kameňa kladená do malty s vyplnením škár maltou MC 10 hrúbka 200mm - úprava pri vtoku a výtoku priepustov - 71,00 m2","m3",14.2,null,0]
[null,null,"31250110","Doplňujúce konštrukcie rúrové priepusty DN 600"]
[null,null,"31250110.131_1","Rúrový priepust - oceľová rúra flexibilná, špirálovite vinutý pozinkovaný plech s ochrannou fóliou -  priemer 600 mm, vrátane lôžka a obsypu podľa technologického predpisu dodávateľa potrubia - 8 priepustov - celková dĺžka 77,70 m","m",77.7,null,0]
[null,null,"45.26.22_02","Práce špeciálneho zakladania"]
[null,null,"02010601","Zlepšovanie základovej pôdy sanačné vrstvy kamenivo"]
[null,null,"02010601.131_1","Zlepšenie podložia - vrstvy hrúbky 0,5 m zo štrkodrvy - obalenie geotextíliou je ocenené samostatne","m3",1428,null,{"$f":"F605*G605","v":0}]
[null,null,"02060905","Spevňovanie hornín a konštrukcií - opláštenie - geotextília"]
[null,null,"02060905.131_1","Vrstva zo separačnej geotextílie vrátane dodávky - obalenie vrstiev ŠD zlepšujúcich podložie","m2",5076,null,0]
[null,null,"45.26.23_11","Betonárske práce"]
[null,null,"11010200","Základy pätky pre stožiare betón prostý"]
[null,null,"11010200.131_1","Betónový základ - pätka stožiara, prostý betón tr. C 25/30, vrátane debnenia ","ks",12,null,0]
[null,null,"45.31.61_91","Montáž silnoprúdových rozvodov a zariadení"]
[null,null,"91080101","Káble Cu NN káble silové"]
[null,null,"91080101.131_1","Kábel medený uložený voľne CYKY 450/750 V 3x1,5, vrátane doplňujúcich činností","m",60,null,0]
[null,null,"91090101","Káble Al NN káble silové"]
[null,null,"91090101.131_1","Kábel hliníkový silový AYKY 450/750 V 4x16 , uložený v káblovej ohybnej HD-PE chráničke, vrátane doplňujúcich činností a prípojkovej skrine v bode napojenia","m",400,null,0]
[null,null,"91200101","Svietidlá a osvetľovacie zariadenia stožiare osvetľovacie"]
[null,null,"91200101.131_1","Osvetľovací stožiar oceľový kužeľový, horný priemer 60 mm, výška 5 m - osvetlenie chodníka, vrátane výzbroje ","ks",6,null,0]
[null,null,"91200101.131_2","Osvetľovací stožiar oceľový odstupňovaný pre osvetlenie priechodu, výška 6 m, vrátane výložníka 3,0 m a výzbroje","ks",2,null,0]
[null,null,"91200101.131_3","Osvetľovací stožiar oceľový kužeľový, horný priemer 76 mm, výška 8 m - osvetlenie cesty, vrátane oblúkového výložníka 1,5 m a výzbroje","ks",4,null,0]
[null,null,"91200202","Svietidlá a osvetľovacie zariadenia svietidlá pouličné"]
[null,null,"91200202.131_1","Svietidlo LED 27W na stožiar osvetlenia chodníka","ks",6,null,0]
[null,null,"91200202.131_2","Svietidlo LED CROSS II 59W na stožiar osvetlenia priechodu","ks",2,null,0]
[null,null,"91200202.131_3","Svietidlo LED 61W na stožiar osvetlenia cesty","ks",4,null,0]
[null,null,"91220200","Uzemňovacie a bleskozvodné vedenia a príslušenstvo"]
[null,null,"91220200.131_1","Uzemnenie verejného osvetlenia komplet, podľa projektu","kpl",1,null,0]
[null,null,"45.34.20_11","Betonárske práce"]
[null,null,"11030432","Stĺpy, piliere, vzpery a rámové stojky plotové oceľové"]
[null,null,"11030432.131_1","Stĺpiky a vzpery oceľové plotové priemer 48 mm so zabetónovaním do vykopaných dier","ks",30,null,0]
[null,null,"45.34.20_67","Montáž zámočníckych konštrukcií"]
[null,null,"67110190","Oplotenie - Drôtené pletivo"]
[null,null,"67110190.131_1","Oplotenie zo strojového pletiva - poplastované pletené štvorhranné oko 50 mm, vrátane napínacieho drôtu v troch úrovniach","m",42,null,0]
[]
[null,null,null,"201-00  Most cez potok Ľubovnianka v km 0,555",null,null,null,{"$f":"SUM(H634:H781)","v":0}]
[null,null,"00040222","Požiadavky Objednávateľa - DSRS"]
[null,null,"00040222.201_1","DSRS","kpl",1,null,{"$f":"F635*G635","v":0}]
[null,null,"45.22.11_11","Betonárske práce"]
[null,null,"11050202","Zvislé konštrukcie inžinierskych stavieb opory betón železový"]
[null,null,"11050202.201_1","Mostné opory a úložné prahy z betónu železového tr. C 30/37","m3",81.260000000000005,null,0]
[null,null,"11050211","Zvislé konštrukcie inžinierskych stavieb opory debnenie"]
[null,null,"11050211.201_1","Debnenie mostných konštrukcií-opôr a úložných prahov výšky do 20 m, zhotovenie","m2",51.2,null,0]
[null,null,"11050211.201_2","Debnenie mostných konštrukcií-opôr a úložných prahov výšky do 20 m, odstránenie","m2",51.2,null,0]
[null,null,"11050221","Zvislé konštrukcie inžinierskych stavieb opory výstuž z betonárskej ocele"]
[null,null,"11050221.201_1","Výstuž drieku opôr a úložných prahov z betonárskej ocele B500B (10 505) mostných konštrukcií","t",12.238,null,0]
[null,null,"11050302","Zvislé konštrukcie inžinierskych stavieb krídla, steny betón železový"]
[null,null,"11050302.201_1","Mostné krídla a záverné stienky z betónu železového tr. C 30/37","m3",47.46,null,{"$f":"F645*G645","v":0}]
[null,null,"11050311","Zvislé konštrukcie inžinierskych stavieb krídla, steny debnenie"]
[null,null,"11050311.201_1","Debnenie mostných konštrukcií-krídiel, stien výšky do 20 m, zhotovenie","m2",160.74,null,0]
[null,null,"11050311.201_2","Debnenie mostných konštrukcií-krídiel, stien výšky do 20 m, odstránenie","m2",160.74,null,0]
[null,null,"11050321","Zvislé konštrukcie inžinierskych stavieb krídla, steny výstuž z betonárskej ocele"]
[null,null,"11050321.201_1","Výstuž krídel a záverných stienok z betonárskej ocele B500B (10 505) mostných konštrukcií","t",3.0710000000000002,null,0]
[null,null,"11050602","Zvislé konštrukcie inžinierskych stavieb rímsy betón železový"]
[null,null,"11050602.201_1","Mostové rímsy z betónu železového triedy C 35/45","m3",8.15,null,0]
[null,null,"11050611","Zvislé konštrukcie inžinierskych stavieb rímsy debnenie"]
[null,null,"11050611.201_1","Debnenie mostných ríms všetkých tvarov - zhotovenie ","m2",2.4,null,0]
[null,null,"11050611.201_2","Debnenie mostových ríms všetkých tvarov - odstránenie","m2",2.4,null,0]
[null,null,"11050621","Zvislé konštrukcie inžinierskych stavieb rímsy výstuž z betonárskej ocele"]
[null,null,"11050621.201_1","Výstuž mostných ríms z betonárskej ocele B505B (10 505)","t",1.042,null,0]
[null,null,"11050802","Zvislé konštrukcie inžinierskych stavieb úložné bloky betón železový"]
[null,null,"11050802.201_1","Mostné úložné bloky ložísk z betónu železového tr. C 30/37","m3",1.32,null,0]
[null,null,"11050811","Zvislé konštrukcie inžinierskych stavieb úložné bloky debnenie "]
[null,null,"11050811.201_1","Debnenie úložného bloku ložiska zhotovenie a odstránenie","m2",30.8,null,0]
[null,null,"11050821","Zvislé konštrukcie inžinierskych stavieb úložné bloky výstuž z betonárskej ocele"]
[null,null,"11050821.201_1","Výstuž úložných blokov ložísk z betonárskej ocele 10 505 mostných konštrukcií","t",0.7,null,{"$f":"F663*G663","v":0}]
[null,null,"11080102","Vodorovné nosné konštrukcie inžinierskych stavieb prechodové dosky betón železový"]
[null,null,"11080102.201_1","Mostné nosné konštrukcie doskové prechodové z betónu železového tr. C 25/30","m3",45,null,0]
[null,null,"11080202","Vodorovné nosné konštrukcie inžinierskych stavieb mostné dosky betón železový"]
[null,null,"11080202.201_1","Mostné nosné konštrukcie doskové z betónu železového tr. C 30/37 - spriahujúca doska","m3",46.25,null,0]
[null,null,"11080211","Vodorovné nosné konštrukcie inžinierskych stavieb mostné dosky debnenie"]
[null,null,"11080211.201_1","Debnenie boku prechodovej dosky konštrukcie mostov - zhotovenie","m2",25.76,null,0]
[null,null,"11080211.201_2","Debnenie boku prechodovej dosky konštrukcie mostov - odstránenie","m2",25.76,null,0]
[null,null,"11080211.201_3","Debnenie bočnej steny konštrukcie mostov výšky do 350 mm - zhotovenie","m2",12.4,null,0]
[null,null,"11080211.201_4","Debnenie bočnej steny konštrukcie mostov výšky do 350 mm - odstránenie","m2",12.4,null,0]
[null,null,"11080213","Vodorovné nosné konštrukcie inžinierskych stavieb mostné dosky debnenie zabudované"]
[null,null,"11080213.201_1","Stratené debnenie, mostná doska medzi prefabrikátmi  - dosky cementotrieskové ","kpl.",1,null,0]
[null,null,"11080221","Vodorovné nosné konštrukcie inžinierskych stavieb mostné dosky výstuž z betonárskej ocele"]
[null,null,"11080221.201_1","Výstuž prechodovej dosky mostných konštrukcií z betonárskej ocele B500B (10 505) ","t",5.0410000000000004,null,0]
[null,null,"11080221.201_2","Výstuž dosky mostných konštrukcií z betonárskej ocele B500B (10 505)","t",7.55,null,0]
[null,null,"11080402","Vodorovné nosné konštrukcie inžinierskych stavieb mostné nosníky betón železový"]
[null,null,"11080402.201_1","Betonáž priečnikov tyčových dielcov z betónu tr. C 30/37","m3",25.2,null,0]
[null,null,"11080411","Vodorovné nosné konštrukcie inžinierskych stavieb mostné nosníky debnenie"]
[null,null,"11080411.201_1","Debnenie spodné priečnika trámu - zhotovenie ","m2",23,null,0]
[null,null,"11080411.201_2","Debnenie spodné priečnika trámu - odstránenie","m2",23,null,0]
[null,null,"11080411.201_3","Debnenie steny priečnikov trámu - zhotovenie ","m2",37.6,null,0]
[null,null,"11080411.201_4","Debnenie steny priečnikov trámu - odstránenie","m2",37.6,null,0]
[null,null,"11080413","Vodorovné nosné konštrukcie inžinierskych stavieb mostné nosníky debnenie zabudované"]
[null,null,"11080413.201_1","Stratené debnenie priečnikov tyčových dielcov - dosky cementotrieskové ","kpl.",1,null,0]
[null,null,"11080421","Vodorovné nosné konštrukcie inžinierskych stavieb mostné nosníky výstuž z betonárskej ocele"]
[null,null,"11080421.201_1","Výstuž priečnikov tyčových dielcov mostných konštrukcií z betonárskej ocele B500B (10 505) ","t",2.75,null,{"$f":"F688*G688","v":0}]
[null,null,"11200101","Podkladné konštrukcie podkladné vrstvy betón prostý"]
[null,null,"11200101_201_1","Podkladová  vrstva z betónu tr. C 12/15 - podkladný betón  pre opory a krídla, hr. 150 mm - plocha = 67,30 m2","m3",10.095000000000001,null,0]
[null,null,"11200101_201_2","Podkladová vrstva z betónu tr. C 12/15 - podkladný betón pre prechodové dosky, hr. 100 mm - plocha = 124,8 m2","m3",12.48,null,0]
[null,null,"45.22.11_15","Montáže prefabrikovaných konštrukcií"]
[null,null,"15020402","Rímsy dielce železobetonové"]
[null,null,"15020402.201_1","Osadenie - Mostné rímsové  prefabrikované železobetónové lícne panely s kotvením dĺžky do 2 m","ks",32,null,0]
[null,null,"15020402.201_2","Dodanie - Mostné rímsové  železobetónové  prefabrikované lícne panely betón C 35/45; hrúbka 150 mm, výška 700 mm - dĺžky prefabrikátov podľa projektu, celková dĺžka = 54,30 m","ks",32,null,0]
[null,null,"15080202","Vodorovné nosné konštr.pre mostné stavby nosníky dielce železobetonové"]
[null,null,"15080202.201_1","Osadenie - Mostný prefabrikovaný predpätý nosník v celku hm. nad 10 do 25 t","ks",11,null,0]
[null,null,"15080202.201_2","Dodanie - Mostný prefabrikovaný vopred predpätý nosník betón C 50/60, v celku hm. nad 10 do 25 t - dĺžka 18 m, stavebná výška 1,0 m","ks",11,null,0]
[null,null,"45.22.11_21","Špeciálne práce pri výstavbe mostov"]
[null,null,"21080407","Vodorovné nosné konštrukcie kĺby a ložiská elastomerové a gumené"]
[null,null,"21080407.201_1","Osadenie - Mostné ložisko elastomerové nekotvené 200 x 300 mm","ks",22,null,0]
[null,null,"21080407.201_2","Dodanie - Mostné ložisko elastomerové nekotvené 200 x 300 - špecifikácia podľa projektu","ks",22,null,0]
[null,null,"21080407.201_3","Podkladová vrstva z plastmalty - podliatie ložísk hr. do 10 mm - parametre malty podľa projektu","m2",2.64,null,0]
[null,null,"21080409","Vodorovné nosné konštrukcie kĺby a ložiská kĺb zo železobetónu"]
[null,null,"21080409.201_1","Zhotovenie vrubového kĺbu prechodovej dosky - osadenie polystyrénu, ochranný povlak výstuže - metalizácia zinkom máčaním,  tmelenie škáry vrubu","m",25.4,null,0]
[null,null,"21200116","Podkladné a vedľajšie konštrukcie výplň za oporami a protimrazové kliny zo štrkopiesku"]
[null,null,"21200116.201_1","Výplňové kliny a ochranný zásyp za oporou z kameniva drveného hutneného po vrstvách ","m3",100.32,null,0]
[null,null,"21210419","Spevnené plochy - dlažba pri oporách"]
[null,null,"21210419.201_1","Spevnenie obsypových kužeľov kamennou dlažbou z lomového kameňa hr. 150 mm do betónového lôžka hr. 100 mm so škárovaním cementovou maltou, vrátane ukončovacej betónovej pätky 600 x 600 mm","m2",700,null,0]
[null,null,"21250106","Doplňujúce konštrukcie zvodidlá oceľové"]
[null,null,"21250106.201_1","Zvodidlo oceľové zábradlové úroveň zachytenia H2 kotvené do rímsy","m",64,null,0]
[null,null,"21250202","Doplňujúce konštrukcie zábradlia kompozitné"]
[null,null,"21250202.201_1","Osadenie kompozitného zábradlia na schody pri oporách chemickými kotvami","m",9.4,null,0]
[null,null,"21250202.201_2","Dodanie kompozitného zábradlia na schody pri oporách - 2 ks dĺžky 4,70 m","m",9.4,null,0]
[null,null,"21250320","Doplňujúce konštrukcie odvodnenie mostov odvodňovače"]
[null,null,"21250320.201_1","Mostná vpusť/mostný odvodňovač 300/500 mm, zvislý odtok DN 150, vrátane predlžovacej tvarovky","ks",2,null,0]
[null,null,"21250323","Doplňujúce konštrukcie odvodnenie izolácie mostov"]
[null,null,"21250323.201_1","Nerezový odvodňovač izolácie mostovky osadený do plastbetónu - tvarovka DN 50, dĺžka 1500 mm","ks",4,null,0]
[null,null,"21250331","Doplňujúce konštrukcie odvodnenie mostnej opory"]
[null,null,"21250331.201_1","Odvodnenie mostnej opory - žľab úložného prahu z plastových rúr DN 100","m",30,null,0]
[null,null,"21250341","Doplňujúce konštrukcie odvodnenie mostov drenážny kanálik"]
[null,null,"21250341.201_1","Podkladová vrstva plastbetónová drenážna na moste - kanálik 100 x 45 mm - dĺžka 32 m","m3",0.14399999999999999,null,0]
[null,null,"21250424","Doplňujúce konštrukcie tesnenie škár"]
[null,null,"21250424.201_1","Tesnenie pracovnej škáry betónovej konštrukcie silikónovým tmelom - opora trvalo pružný silikónový tmel odolný voči UV žiareniu ","m",28,null,0]
[null,null,"21250424.201_2","Tesnenie pracovnej škáry betónovej konštrukcie silikónovým tmelom - rímsa trvalo pružný silikónový tmel odolný voči UV žiareniu  a chloridom","m",58.3,null,0]
[null,null,"21250426","Doplňujúce konštrukcie dilatačné zariadenia mostné závery povrchové"]
[null,null,"21250426.201_1","Osadenie - Mostný záver povrchový s protihlukovou úpravou - celkový dilatačný pohyb 50 mm","m",28.8,null,0]
[null,null,"21250426.201_2","Dodanie - Mostný záver povrchový s protihlukovou úpravou - celkový dilatačný pohyb 50 mm","m",28.8,null,0]
[null,null,"21250906","Doplňujúce konštrukcie drobné zariadenia oceľové"]
[null,null,"21250906.201_1","Kotvenie monolitického betónu rímsy do mostovky kotvou do vývrtu - lepená kotva podľa projektu, vrátane dodania","ks",133,null,0]
[null,null,"22030640","Podkladné a krycie vrstvy z asfaltových zmesí bitúmenové vrstvy asfaltový betón"]
[null,null,"22030640.201_1","Asfaltový betón vrstva obrusná AC 11 O z modifik. asfaltu tr. I, po zhutnení hr. 45 mm - vozovka na moste","m2",213.3,null,0]
[null,null,"22030641","Podkladné a krycie vrstvy z asfaltových zmesí bitúmenové vrstvy asfaltový koberec mastixový"]
[null,null,"22030641.201_1","Koberec asfaltový modifikovaný I.tr. mastixový SMA 11 O  strednozrnný, po zhutnení hr. 40 mm - vozovka na moste","m2",213.3,null,0]
[null,null,"22040145","Kryty dláždené komunikácií prefabrikované panely cestné"]
[null,null,"22040145.201_1","Zhotovenie a odstránenie spevnenej plochy z cestných panelov osadených do lôžka z kameniva hr. 150 mm","m2",243,null,0]
[null,null,"22040320","Kryty dláždené - schody z dlaždíc betónových"]
[null,null,"22040320.201_1","Schody z betónových blokov betón C 30/37, rozmer 200 x 500 x 750 mm  - do betónového lôžka C 25/30 vystuženého zváranou sieťou, s vyplnením škár - opora 1: 17 blokov, plocha 4,5 m2; opora 2: 17 blokov, plocha 4,5 m2","m2",9,null,0]
[null,null,"22040549","Kryty dláždené komunikácií z kameňa lomového"]
[null,null,"22040549.201_1","Dlažba z kameňa ukladaná do betónu - spevnenie svahu pri oporách a krajnice","m2",36,null,0]
[null,null,"22250979","Doplňujúce konštrukcie obrubníky kamenné"]
[null,null,"22250979.201_1","Osadenie obrubníka kamenného (žulového) s trnom kotveného do mostnej rímsy, vrátane lôžka z plastbetónu","m",54.3,null,0]
[null,null,"22250979.201_2","Dodanie obrubníka kamenného (žulového) ","m",54.3,null,0]
[null,null,"22250980","Doplňujúce konštrukcie obrubníky chodníkové"]
[null,null,"22250980.201_1","Osadenie a dodanie chodník. obrubníka betónového stojatého do lôžka z betónu prosteho s bočnou oporou - lemovanie schodov pri oporách a spevnenia svahu a krajnice","m",72,null,0]
[null,null,"22251085","Doplňujúce konštrukcie zálievka škár vozovky"]
[null,null,"22251085.201_1","Trvalo pružná zálievka škáry vozovka - obrubník s tesniacim profilom š. 20 mm hl. 40 mm, vrátane náteru na zlepšenie priľnavosti","m",54.3,null,{"$f":"F747*G747","v":0}]
[null,null,"22251085.201_2","Pružná zálievka škáry vozovka - odvodňovač ","m",3.2,null,0]
[null,null,"22251085.201_3","Pružná zálievka škáry vozovka - mostný záver","m",57.6,null,0]
[null,null,"22251161","Doplňujúce konštrukcie otvorené žľaby z betónových tvárnic"]
[null,null,"22251161.201_1","Žľab z betónových priekopových tvárnic šírky 500- 800 mm do betónu C 12/15; tvárnica priekopová typ TBM 1-60,  620x300x154,5(75) mm","m",29,null,0]
[null,null,"22251284","Doplňujúce konštrukcie kábelovody z rúr alebo dielcov plastových"]
[null,null,"22251284.201_1","Chránička káblov z rúr HDPE v mostnej rímse DN 100 mm","m",54.4,null,0]
[null,null,"22251784","Doplňujúce konštrukcie kábelové komory "]
[null,null,"22251784.201_1","Káblová kovová komora/šachta 250 x 500 mm, s poklopom - hmotnosť 24 kg, vrátane povrchovej úpravy","ks",4,null,0]
[null,null,"45.26.14_61","Izolatérske práce"]
[null,null,"61010101","Izolácia proti vode a zemnej vlhkosti náterivami a tmelmi"]
[null,null,"61010101.201_1","Izolácia proti zemnej vlhkosti za studena = 1 x penetračný náter + 2x asfaltový náter - opory a krídla","m2",98.7,null,0]
[null,null,"61010101.201_2","Izolácia proti zemnej vlhkosti za studena = 1 x penetračný náter + 2x asfaltový náter - prechodové dosky","m2",122.9,null,0]
[null,null,"61010102","Izolácia proti vode a zemnej vlhkosti pásmi"]
[null,null,"61010102.201_1","Izolácia proti zemnej vlhkosti vodorovná pritavením asfaltového pásu - prekrytie vrubového kĺbu prechodovej dosky - šírka 1,0 m","m2",28,null,0]
[null,null,"61010102.201_2","Izolácia proti zemnej vlhkosti a tlakovej vode zvislá pritavením asfaltového pásu - pracovná škára na oporách  - šírka 0,3 m","m2",9.24,null,0]
[null,null,"61010500","Izolácia mostoviek príprava povrchu"]
[null,null,"61010500.201_1","Obrokovanie povrchu mostovky pred zhotovením zapečaťujúcej vrstvy","m2",242.98,null,0]
[null,null,"61010501","Proti vode a zemnej vlhkosti mostoviek náterivami a tmelmi"]
[null,null,"61010501.201_1","Zapečaťujúca vrstva  = kotviaco - impregnačný náter z epoxidovej živice s posypom kremičitým pieskom + uzatvárací náter z epoxidovej živice","m2",242.98,null,0]
[null,null,"61010502","Izolácia mostoviek pásmi"]
[null,null,"61010502.201_1","Izolácia cestných mostoviek nataviteľnými asfaltovými pásmi pre mosty","m2",280.08,null,0]
[null,null,"45.26.22_02","Práce špeciálneho zakladania"]
[null,null,"02020673","Vrty pre pilóty"]
[null,null,"02020673.201_1","Vrty pre pilóty zapažené zvislé, priemer 1220 mm - 8 kusov,  hĺbka 15 m","m",120,null,0]
[null,null,"02040222","Pilóty betónované na mieste s vytiahnutím pažnice beton železový"]
[null,null,"02040222.201_1","Výplň pilót zvislých zapažených z betónu železového C 25/30, priemer pilóty 1220 mm - dĺžka 15 ,0+0,50 m; 1 pilóta = 18,135 m3; počet pilót = 8 ks,  vrátane odbúrania znehodnotenej časti 0,50 m ","m3",145.08000000000001,null,0]
[null,null,"02040223","Pilóty betónované na mieste s vytiahnutím pažnice betonárska výstuž"]
[null,null,"02040223.201_1","Výstuž pilót betónovaných do zeme, s vytiahnutím pažnice, z ocele B500B (10 505) - 1,966 t pre 1 pilótu dĺ. 15 m; počet pilót 8 ks","t",15.728,null,0]
[null,null,"02040230","Pilóty betónované na mieste s vytiahnutím pažnice zaťažovacia skúška"]
[null,null,"02040230.201_1","Zaťažovacia skúška pilóty na overenie projektom predpísanej únosnosti - 1 ks pod každým základom","ks",2,null,0]
[null,null,"45.44.20_84","Práce maliarske, natieračské, tapetárske, metalizácia"]
[null,null,"84010807","Nátery omietky a betónové povrchy farba epoxidová"]
[null,null,"84010807.201_1","Náter betónu mosta epoxidový disperzný 2x ochranný - okraj dosky pri rímsach","m2",21.6,null,0]
[]
[null,null,null,"202-00  Most cez rieku Poprad v km 1,100",null,null,null,{"$f":"SUM(H783:H991)","v":0}]
[null,null,"00040222","Požiadavky Objednávateľa - DSRS"]
[null,null,"00040222.202_1","DSRS","kpl",1,null,{"$f":"F784*G784","v":0}]
[null,null,"45.11.20_01","Zemné práce"]
[null,null,"01020101","Odkopávky a prekopávky humóznej vrstvy ornice"]
[null,null,"01020101.202_1","Odstránenie ornice s naložením, premiestnením na dočasné skládky a s uložením","m3",250,null,0]
[null,null,"01030101","Hĺbené vykopávky jám zapažených"]
[null,null,"01030101.202_1","Výkop zapaženej jamy pre základy medzi štetovnicami vo vodnom toku","m3",1386,null,0]
[null,null,"01030102","Hĺbené vykopávky jám nezapažených"]
[null,null,"01030102.202_1","Výkop nezapaženej jamy pre základy ","m3",1244,null,0]
[null,null,"01040402","Konštrukcie z hornín zásypy so zhutnením"]
[null,null,"01040402.202_1","Zásyp sypaninou so zhutnením jám - vhodná zemina z výkopu","m3",1220,null,0]
[null,null,"01060207","Premiestnenie vodorovné zemín schopných zúrodnenia"]
[null,null,"01060207.202_1","Vodorovné premiestnenie prebytočnej ornice, vrátane nakladania","m3",250,null,0]
[null,null,"01060208","Premiestnenie vodorovné výkopku na medziskládku"]
[null,null,"01060208.202_1","Vodorovné premiestnenie odkopávky/výkopku na medziskládku","m3",2360,null,0]
[null,null,"45.22.11_11","Betonárske práce"]
[null,null,"11010202","Základy pätky betón železový"]
[null,null,"11010202.202_1","Základové pätky a bloky mostných konštrukcií z betónu železového tr. C 30/37","m3",672,null,0]
[null,null,"11010211","Základy pätky debnenie"]
[null,null,"11010211.202_1","Debnenie základových pätiek mostných konštrukcií  - zhotovenie","m2",304,null,0]
[null,null,"11010211.202_2","Debnenie základových pätiek mostných konštrukcií  - odstránenie","m2",304,null,0]
[null,null,"11010221","Základy pätky výstuž z betonárskej ocele"]
[null,null,"11010221.202_1","Výstuž základových pätiek a blokov z betonárskej ocele 10 505 mostných konštrukcií","t",73.787999999999997,null,0]
[null,null,"11050202","Zvislé konštrukcie inžinierskych stavieb opory betón železový"]
[null,null,"11050202.202_1","Mostné opory a úložné prahy z betónu železového tr. C 30/37","m3",147.19999999999999,null,{"$f":"F807*G807","v":0}]
[null,null,"11050211","Zvislé konštrukcie inžinierskych stavieb opory debnenie"]
[null,null,"11050211.202_1","Debnenie mostných konštrukcií-opôr a úložných prahov výšky do 20 m, zhotovenie","m2",125.3,null,0]
[null,null,"11050211.202_2","Debnenie mostných konštrukcií-opôr a úložných prahov výšky do 20 m, odstránenie","m2",125.3,null,0]
[null,null,"11050221","Zvislé konštrukcie inžinierskych stavieb opory výstuž z betonárskej ocele"]
[null,null,"11050221.202_1","Výstuž drieku opôr a úložných prahov z betonárskej ocele B500B (10 505) mostných konštrukcií","t",17.75,null,0]
[null,null,"11050302","Zvislé konštrukcie inžinierskych stavieb krídla, steny betón železový"]
[null,null,"11050302.202_1","Mostné krídla a záverné stienky z betónu železového tr. C 30/37","m3",71.28,null,0]
[null,null,"11050311","Zvislé konštrukcie inžinierskych stavieb krídla, steny debnenie"]
[null,null,"11050311.202_1","Debnenie mostných konštrukcií-krídiel, stien výšky do 20 m, zhotovenie","m2",244.08,null,0]
[null,null,"11050311.202_2","Debnenie mostných konštrukcií-krídiel, stien výšky do 20 m, odstránenie","m2",244.08,null,0]
[null,null,"11050321","Zvislé konštrukcie inžinierskych stavieb krídla, steny výstuž z betonárskej ocele"]
[null,null,"11050321.202_1","Výstuž krídel a záverných stienok z betonárskej ocele B500B (10 505) mostných konštrukcií","t",7.9560000000000004,null,0]
[null,null,"11050402","Zvislé konštrukcie inžinierskych stavieb stĺpy, podpery betón železový"]
[null,null,"11050402.202_1","Mostné piliere a stĺpy z betónu železového tr. C 30/37","m3",104.7,null,0]
[null,null,"11050411","Zvislé konštrukcie inžinierskych stavieb stĺpy, podpery debnenie "]
[null,null,"11050411.202_1","Debnenie mostných konštrukcií-stĺpov kruhových a oválnych , výšky do 20 m, zhotovenie","m2",221.6,null,0]
[null,null,"11050411.202_2","Debnenie mostných konštrukcií- stĺpov kruhových a oválnych , výšky do 20 m,  odstránenie","m2",221.6,null,0]
[null,null,"11050421","Zvislé konštrukcie inžinierskych stavieb stĺpy,podpery výstuž z betonárskej ocele"]
[null,null,"11050421.202_1","Výstuž driekov kruhových stĺpov z betonárskej ocele B500B (10 505) mostných konštrukcií","t",22.931999999999999,null,0]
[null,null,"11050502","Zvislé konštrukcie inžinierskych stavieb úložné prahy betón železový"]
[null,null,"11050502.202_1","Mostné úložné prahy pilierov z betónu železového tr. C 30/37","m3",229.5,null,0]
[null,null,"11050511","Zvislé konštrukcie inžinierskych stavieb úložné prahy debnenie "]
[null,null,"11050511.202_1","Debnenie mostných konštrukcií-úložných prahov výšky do 20 m, zhotovenie","m2",332,null,0]
[null,null,"11050511.202_2","Debnenie mostných konštrukcií-úložných prahov výšky do 20 m, odstránenie","m2",332,null,0]
[null,null,"11050521","Zvislé konštrukcie inžinierskych stavieb úložné prahy výstuž z betonárskej ocele"]
[null,null,"11050521.202_1","Výstuž úložných prahov pilierov z betonárskej ocele 10 505 mostných konštrukcií","t",68.805999999999997,null,0]
[null,null,"11050602","Zvislé konštrukcie inžinierskych stavieb rímsy betón železový"]
[null,null,"11050602.202_1","Mostové rímsy z betónu železového triedy C 35/45","m3",173.36,null,{"$f":"F835*G835","v":0}]
[null,null,"11050611","Zvislé konštrukcie inžinierskych stavieb rímsy debnenie"]
[null,null,"11050611.202_1","Debnenie mostných ríms všetkých tvarov - zhotovenie ","m2",18.72,null,0]
[null,null,"11050611.202_2","Debnenie mostových ríms všetkých tvarov - odstránenie","m2",18.72,null,0]
[null,null,"11050621","Zvislé konštrukcie inžinierskych stavieb rímsy výstuž z betonárskej ocele"]
[null,null,"11050621.202_1","Výstuž mostných ríms z betonárskej ocele B505B (10 505)","t",21.902000000000001,null,0]
[null,null,"11050802","Zvislé konštrukcie inžinierskych stavieb úložné bloky betón železový"]
[null,null,"11050802.202_1","Mostné úložné bloky ložísk z betónu železového tr. C 30/37","m3",16.5,null,0]
[null,null,"11050811","Zvislé konštrukcie inžinierskych stavieb úložné bloky debnenie "]
[null,null,"11050811.202_1","Debnenie úložného bloku ložiska zhotovenie a odstránenie","m2",121,null,0]
[null,null,"11050821","Zvislé konštrukcie inžinierskych stavieb úložné bloky výstuž z betonárskej ocele"]
[null,null,"11050821.202_1","Výstuž úložných blokov ložísk z betonárskej ocele 10 505 mostných konštrukcií","t",4.51,null,0]
[null,null,"11080102","Vodorovné nosné konštrukcie inžinierskych stavieb prechodové dosky betón železový"]
[null,null,"11080102.202_1","Mostné nosné konštrukcie doskové prechodové z betónu železového tr. C 25/30","m3",40.96,null,0]
[null,null,"11080202","Vodorovné nosné konštrukcie inžinierskych stavieb mostné dosky betón železový"]
[null,null,"11080202.202_1","Mostné nosné konštrukcie doskové z betónu železového tr. C 30/37 - spriahujúca doska","m3",602.9,null,0]
[null,null,"11080211","Vodorovné nosné konštrukcie inžinierskych stavieb mostné dosky debnenie"]
[null,null,"11080211.202_1","Debnenie boku prechodovej dosky konštrukcie mostov - zhotovenie","m2",23.4,null,0]
[null,null,"11080211.202_2","Debnenie boku prechodovej dosky konštrukcie mostov - odstránenie","m2",23.4,null,0]
[null,null,"11080211.202_3","Debnenie bočnej steny konštrukcie mostov výšky do 350 mm - zhotovenie","m2",112.6,null,0]
[null,null,"11080211.202_4","Debnenie bočnej steny konštrukcie mostov výšky do 350 mm - odstránenie","m2",112.6,null,0]
[null,null,"11080213","Vodorovné nosné konštrukcie inžinierskych stavieb mostné dosky debnenie zabudované"]
[null,null,"11080213.202_1","Stratené debnenie, mostná doska medzi prefabrikátmi  - dosky cementotrieskové","kpl.",1,null,0]
[null,null,"11080221","Vodorovné nosné konštrukcie inžinierskych stavieb mostné dosky výstuž z betonárskej ocele"]
[null,null,"11080221.202_1","Výstuž prechodovej dosky mostných konštrukcií z betonárskej ocele B500B (10 505) ","t",4.1420000000000003,null,0]
[null,null,"11080221.202_2","Výstuž dosky mostných konštrukcií z betonárskej ocele B500B (10 505)","t",90.569000000000003,null,0]
[null,null,"11080402","Vodorovné nosné konštrukcie inžinierskych stavieb mostné nosníky betón železový"]
[null,null,"11080402.202_1","Betonáž priečnikov tyčových dielcov z betónu tr. C 30/37","m3",191.8,null,0]
[null,null,"11080411","Vodorovné nosné konštrukcie inžinierskych stavieb mostné nosníky debnenie"]
[null,null,"11080411.202_1","Debnenie spodné priečnika trámu - zhotovenie ","m2",137,null,0]
[null,null,"11080411.202_2","Debnenie spodné priečnika trámu - odstránenie","m2",137,null,0]
[null,null,"11080411.202_3","Debnenie steny priečnikov trámu - zhotovenie ","m2",92,null,0]
[null,null,"11080411.202_4","Debnenie steny priečnikov trámu - odstránenie","m2",92,null,0]
[null,null,"11080413","Vodorovné nosné konštrukcie inžinierskych stavieb mostné nosníky debnenie zabudované"]
[null,null,"11080413.202_1","Stratené debnenie priečnikov tyčových dielcov - dosky cementotrieskové ","kpl.",1,null,0]
[null,null,"11080413.202_2","Separačná vložka - medziľahlé priečniky","m2",179.2,null,0]
[null,null,"11080421","Vodorovné nosné konštrukcie inžinierskych stavieb mostné nosníky výstuž z betonárskej ocele"]
[null,null,"11080421.202_1","Výstuž priečnikov tyčových dielcov mostných konštrukcií z betonárskej ocele B500B (10 505) ","t",20.091999999999999,null,0]
[null,null,"11200101","Podkladné konštrukcie podkladné vrstvy betón prostý"]
[null,null,"11200101.202_1","Podkladová  vrstva z betónu tr. C 12/15 - podkladný betón  pre opory a krídla, hr. 150 mm - plocha = 101,4 m2","m3",15.21,null,0]
[null,null,"11200101.202_2","Podkladová vrstva z betónu tr. C 12/15 - podkladný betón pre prechodové dosky, hr. 100 mm - plocha = 120,40 m2","m3",12.04,null,0]
[null,null,"11200101.202_3","Podkladová vrstva z betónu tr. C 12/15 - podkladný betón pre základové bloky pilierov, hr. 150 mm - plocha = 367,04 m2","m3",55.055999999999997,null,0]
[null,null,"45.22.11_15","Montáže prefabrikovaných konštrukcií"]
[null,null,"15020402","Rímsy dielce železobetonové"]
[null,null,"15020402.202_1","Osadenie - Mostné rímsové  prefabrikované železobetónové lícne panely betón C 35/45 s kotvením dĺžky do 2 m ","ks",224,null,0]
[null,null,"15020402.202_2","Dodanie - Mostné rímsové  železobetónové  prefabrikované lícne panely betón C 35/45; hrúbka 150 mm, výška 700 mm - dĺžky prefabrikátov podľa projektu, celková dĺžka = 442,80 m","ks",224,null,0]
[null,null,"15080202","Vodorovné nosné konštr.pre mostné stavby nosníky dielce železobetonové"]
[null,null,"15080202.202_1","Osadenie - Mostný prefabrikovaný predpätý nosník v celku hm. nad 40 do 70 t","ks",55,null,0]
[null,null,"15080202.202_2","Dodanie - Mostný prefabrikovaný nosník betón C 50/60, s kombinovaným alebo dodatočným predpätím, v celku hm. nad 40 do 70 t - dĺžka 42 m, stavebná výška 2,0 m, vrátane predpínania káblov","ks",55,null,0]
[null,null,"45.22.11_21","Špeciálne práce pri výstavbe mostov"]
[null,null,"21080407","Vodorovné nosné konštrukcie kĺby a ložiská elastomerové a gumené"]
[null,null,"21080407.202_1","Osadenie - Mostné ložisko elastomerové nekotvené 350 x 450 mm","ks",110,null,0]
[null,null,"21080407.202_2","Dodanie - Mostné ložisko elastomerové nekotvené 350 x 450 mm - špecifikácia podľa projektu","ks",110,null,0]
[null,null,"21080407.202_3","Podkladová vrstva z plastmalty - podliatie ložísk hr. do 10 mm - parametre malty podľa projektu","m2",27.225000000000001,null,0]
[null,null,"21080409","Vodorovné nosné konštrukcie kĺby a ložiská kĺb zo železobetónu"]
[null,null,"21080409.202_1","Zhotovenie vrubového kĺbu prechodovej dosky - osadenie polystyrénu, ochranný povlak výstuže - metalizácia zinkom máčaním,  tmelenie škáry vrubu","m",23.4,null,0]
[null,null,"21200116","Podkladné a vedľajšie konštrukcie výplň za oporami a protimrazové kliny zo štrkopiesku"]
[null,null,"21200116.202_1","Výplňové kliny a ochranný zásyp za oporou z kameniva drveného hutneného po vrstvách ","m3",120.76,null,0]
[null,null,"21210419","Spevnené plochy - dlažba pri oporách"]
[null,null,"21210419.202_1","Spevnenie obsypových kužeľov kamennou dlažbou z lomového kameňa hr. 350 mm do betónového lôžka hr. 100 mm so škárovaním cementovou maltou, vrátane ukončovacej betónovej pätky 1500 x 1000 mm","m2",620,null,0]
[null,null,"21250106","Doplňujúce konštrukcie zvodidlá oceľové"]
[null,null,"21250106.202_1","Zvodidlo oceľové zábradlové úroveň zachytenia H2 kotvené do rímsy","m",456.4,null,0]
[null,null,"21250202","Doplňujúce konštrukcie zábradlia kompozitné"]
[null,null,"21250202.202_1","Osadenie kompozitného zábradlia na schody pri oporách chemickými kotvami","m",22.3,null,{"$f":"F898*G898","v":0}]
[null,null,"21250202.202_2","Dodanie kompozitného zábradlia na schody pri oporách - 1 ks dĺžky 12,4 m; 1 ks dĺžky 9,90 m","m",22.3,null,0]
[null,null,"21250206","Doplňujúce konštrukcie zábradlia oceľové"]
[null,null,"21250206.202_1","Osadenie mostného oceľového zábradlia trvalého do ríms lepenými kotvami M 12/200 do vŕtaných otvorov priemeru 16/160 na plastmaltu","m",444.4,null,0]
[null,null,"21250206.202_2","Dodanie mostného oceľového zábradlia so zvislou výplňou - celková hmotnosť 24503 kg, vrátane protikoróznej ochrany a náterov","m",444.4,null,0]
[null,null,"21250320","Doplňujúce konštrukcie odvodnenie mostov odvodňovače"]
[null,null,"21250320.202_1","Mostná vpusť/mostný odvodňovač 300/500 mm, zvislý odtok DN 150, vrátane predlžovacej tvarovky","ks",22,null,0]
[null,null,"21250323","Doplňujúce konštrukcie odvodnenie izolácie mostov"]
[null,null,"21250323.202_1","Nerezový odvodňovač izolácie mostovky osadený do plastbetónu - tvarovka DN 50, dĺžka 2400 mm","ks",16,null,0]
[null,null,"21250331","Doplňujúce konštrukcie odvodnenie mostnej opory"]
[null,null,"21250331.202_1","Odvodnenie mostnej opory - žľab úložného prahu z plastových rúr DN 100","m",30,null,0]
[null,null,"21250341","Doplňujúce konštrukcie odvodnenie mostov drenážny kanálik"]
[null,null,"21250341.202_1","Podkladová vrstva plastbetónová drenážna na moste - kanálik 100 x 45 mm - dĺžka 223 m","m3",1,null,0]
[null,null,"21250424","Doplňujúce konštrukcie tesnenie škár"]
[null,null,"21250424.202_1","Tesnenie pracovnej škáry betónovej konštrukcie silikónovým tmelom - opora trvalo pružný silikónový tmel odolný voči UV žiareniu ","m",29.2,null,0]
[null,null,"21250424.202_2","Tesnenie pracovnej škáry betónovej konštrukcie silikónovým tmelom - rímsa trvalo pružný silikónový tmel odolný voči UV žiareniu  a chloridom","m",501.7,null,0]
[null,null,"21250426","Doplňujúce konštrukcie dilatačné zariadenia mostné závery povrchové"]
[null,null,"21250426.202_1","Osadenie - Mostný záver povrchový s protihlukovou úpravou - celkový dilatačný pohyb 320 mm","m",29.5,null,0]
[null,null,"21250426.202_2","Dodanie - Mostný záver povrchový s protihlukovou úpravou - celkový dilatačný pohyb 320 mm","m",29.5,null,0]
[null,null,"21250833","Doplňujúce konštrukcie zaťažovacie skúšky statické"]
[null,null,"21250833.202_1","Zaťažovacia skúška statická, vrátane zaťažovacích prostriedkov a vypracovania projektu zaťažovacej skúšky","kpl",1,null,0]
[null,null,"21250906","Doplňujúce konštrukcie drobné zariadenia oceľové"]
[null,null,"21250906.202_1","Kotvenie monolitického betónu rímsy do mostovky kotvou do vývrtu - lepená kotva podľa projektu, vrátane dodania","ks",688,null,0]
[null,null,"21250907","Doplňujúce konštrukcie sledovanie deformácií"]
[null,null,"21250907.202_1","Osadenie meracích značiek, vzťažných a pozorovacích bodov pre sledovanie trvalých deformácií; spolu 58 značiek a 6 bodov","kpl",1,null,0]
[null,null,"21251006","Doplňujúce konštrukcie podperné konštrukcie mostov "]
[null,null,"21251006.202_1","Podperné konštrukcie dočasné, zriadenie, používanie, odstránenie - typ systému a množstvo podľa spresnenia zhotoviteľa","kpl",1,null,0]
[null,null,"45.23.31_22","Práce na pozemných komunikáciach a letiskách"]
[null,null,"22030640","Podkladné a krycie vrstvy z asfaltových zmesí bitúmenové vrstvy asfaltový betón"]
[null,null,"22030640.202_1","Asfaltový betón vrstva obrusná AC 11 O z modifik. asfaltu tr. I, po zhutnení hr. 45 mm - vozovka na moste","m2",2424.1999999999998,null,{"$f":"F927*G927","v":0}]
[null,null,"22030641","Podkladné a krycie vrstvy z asfaltových zmesí bitúmenové vrstvy asfaltový koberec mastixový"]
[null,null,"22030641.202_1","Koberec asfaltový modifikovaný I.tr. mastixový SMA 11 O  strednozrnný, po zhutnení hr. 40 mm - vozovka na moste","m2",2424.1999999999998,null,0]
[null,null,"22040145","Kryty dláždené komunikácií prefabrikované panely cestné"]
[null,null,"22040145.202_1","Zhotovenie a odstránenie spevnenej plochy z cestných panelov osadených do lôžka z kameniva hr. 150 mm","m2",300,null,0]
[null,null,"22040320","Kryty dláždené - schody z dlaždíc betónových"]
[null,null,"22040320.202_1","Schody z betónových blokov betón C 30/37, rozmer 200 x 500 x 750 mm  - do betónového lôžka C 25/30 vystuženého zváranou sieťou, s vyplnením škár - opora 1: 37 blokov, plocha 10,6 m2; opora 2: 30 blokov, plocha 8,8 m2","m2",19.399999999999999,null,0]
[null,null,"22040549","Kryty dláždené komunikácií z kameňa lomového"]
[null,null,"22040549.202_1","Dlažba z kameňa ukladaná do betónu - spevnenie svahu pri oporách a krajnice","m2",36,null,0]
[null,null,"22250979","Doplňujúce konštrukcie obrubníky kamenné"]
[null,null,"22250979.202_1","Osadenie obrubníka kamenného (žulového) s trnom kotveného do mostnej rímsy, vrátane lôžka z plastbetónu","m",444.5,null,0]
[null,null,"22250979.202_2","Dodanie obrubníka kamenného (žulového) ","m",444.5,null,0]
[null,null,"22250980","Doplňujúce konštrukcie obrubníky chodníkové"]
[null,null,"22250980.202_1","Osadenie a dodanie chodník. obrubníka betónového stojatého do lôžka z betónu prosteho s bočnou oporou - lemovanie schodov pri oporách a spevnenia svahu a krajnice","m",102,null,0]
[null,null,"22251085","Doplňujúce konštrukcie zálievka škár vozovky"]
[null,null,"22251085.202_1","Trvalo pružná zálievka škáry vozovka - obrubník s tesniacim profilom š. 20 mm hl. 40 mm, vrátane náteru na zlepšenie priľnavosti","m",444.5,null,0]
[null,null,"22251085.202_2","Pružná zálievka škáry vozovka - odvodňovač","m",22,null,0]
[null,null,"22251085.202_3","Pružná zálievka škáry vozovka - mostný záver","m",59,null,0]
[null,null,"22251161","Doplňujúce konštrukcie otvorené žľaby z betónových tvárnic"]
[null,null,"22251161.202_1","Žľab z betónových priekopových tvárnic šírky 500- 800 mm do betónu C 12/15; tvárnica priekopová typ TBM 1-60,  620x300x154,5(75) mm","m",31.2,null,0]
[null,null,"22251284","Doplňujúce konštrukcie kábelovody z rúr alebo dielcov plastových"]
[null,null,"22251284.202_1","Chránička káblov z rúr HDPE v mostnej rímse DN 100 mm","m",890,null,0]
[null,null,"22251784","Doplňujúce konštrukcie kábelové komory "]
[null,null,"22251784.202_1","Káblová kovová komora/šachta 620 x 650 mm, s poklopom - hmotnosť 61 kg, vrátane povrchovej úpravy","ks",2,null,0]
[null,null,"45.26.14_61","Izolatérske práce"]
[null,null,"61010101","Izolácia proti vode a zemnej vlhkosti náterivami a tmelmi"]
[null,null,"61010101.202_1","Izolácia proti zemnej vlhkosti za studena = 1 x penetračný náter + 2x asfaltový náter - opory a krídla","m2",181.32,null,0]
[null,null,"61010101.202_2","Izolácia proti zemnej vlhkosti za studena = 1 x penetračný náter + 2x asfaltový náter - prechodové dosky","m2",132.19999999999999,null,0]
[null,null,"61010101.202_3","Izolácia proti zemnej vlhkosti za studena = 1 x penetračný náter + 2x asfaltový náter - základové bloky pilierov","m2",728,null,0]
[null,null,"61010101.202_4","Izolácia proti zemnej vlhkosti za studena = 1 x penetračný náter + 2x asfaltový náter - stĺpy pilierov","m2",99.2,null,0]
[null,null,"61010102","Izolácia proti vode a zemnej vlhkosti pásmi"]
[null,null,"61010102.202_1","Izolácia proti zemnej vlhkosti vodorovná pritavením asfaltového pásu - prekrytie vrubového kĺbu prechodovej dosky - šírka  1,0 m","m2",23.4,null,0]
[null,null,"61010102.202_2","Izolácia proti zemnej vlhkosti a tlakovej vode zvislá pritavením asfaltového pásu - pracovná škára na oporách - šírka 0,3 m","m2",8.76,null,0]
[null,null,"61010102.202_3","Izolácia proti zemnej vlhkosti a tlakovej vode pritavením asfaltového pásu - styk piliera a základového bloku - šírka 0,33 m, vrátane fabiónu zo sanačnej malty","m2",17.96,null,0]
[null,null,"61010500","Izolácia mostoviek príprava povrchu"]
[null,null,"61010500.202_1","Obrokovanie povrchu mostovky pred zhotovením zapečaťujúcej vrstvy","m2",3014.44,null,0]
[null,null,"61010501","Izolácia mostoviek náterivami a tmelmi"]
[null,null,"61010501.202_1","Zapečaťujúca vrstva  = kotviaco - impregnačný náter z epoxidovej živice s posypom kremičitým pieskom + uzatvárací náter z epoxidovej živice","m2",3014.44,null,0]
[null,null,"61010502","Izolácia mostoviek pásmi"]
[null,null,"61010502.202_1","Izolácia cestných mostoviek nataviteľnými asfaltovými pásmi pre mosty","m2",3942,null,0]
[null,null,"45.26.22_02","Práce špeciálneho zakladania"]
[null,null,"02020673","Vrty pre pilóty"]
[null,null,"02020673.202_1","Vrty pre pilóty zapažené zvislé, priemer 1220 mm - 2x9 kusov,  hĺbka 18 m","m",324,null,0]
[null,null,"02020673.202_2","Vrty pre pilóty zapažené zvislé, priemer 1220 mm - 4x18 kusov,  hĺbka 12 m","m",864,null,0]
[null,null,"02040222","Pilóty betónované na mieste s vytiahnutím pažnice beton železový"]
[null,null,"02040222.202_1","Výplň pilót zvislých zapažených z betónu železového C 25/30, priemer pilóty 1220 mm - dĺžka 18 ,0+0,50 m; 1 pilóta = 21,616 m3; počet pilót = 18 ks,  vrátane odbúrania znehodnotenej časti 0,50 m ","m3",389.08800000000002,null,0]
[null,null,"02040222.202_2","Výplň pilót zvislých zapažených z betónu železového C 25/30, priemer pilóty 1220 mm - dĺžka 12,0+0,50 m; 1 pilóta = 14,604 m3; počet pilót = 72 ks,  vrátane odbúrania znehodnotenej časti 0,50 m ","m3",1051.56,null,0]
[null,null,"02040223","Pilóty betónované na mieste s vytiahnutím pažnice betonárska výstuž"]
[null,null,"02040223.202_1","Výstuž pilót betónovaných do zeme, s vytiahnutím pažnice, z ocele B500B (10 505) - 2,021 t pre 1 pilótu dĺ. 18 m; počet pilót 18 ks","t",36.378,null,0]
[null,null,"02040223.202_2","Výstuž pilót betónovaných do zeme, s vytiahnutím pažnice, z ocele B500B (10 505) - 1,087 t pre 1 pilótu dĺ. 12 m; počet pilót 72 ks","t",78.263999999999996,null,0]
[null,null,"02040230","Pilóty betónované na mieste s vytiahnutím pažnice zaťažovacia skúška"]
[null,null,"02040230.202_1","Zaťažovacia skúška pilóty na overenie projektom predpísanej únosnosti - 1 ks pod každým základom","ks",6,null,0]
[null,null,"02050132","Steny štetovnicové baranené kovové dielce"]
[null,null,"02050132.202_2","Steny baranené z oceľových štetovníc z terénu - zabaranenie na dľžku nad 10 m, vrátane dodania oceľových štetovnicových profilov hmotnosti 171,7 t","m2",1104,null,0]
[null,null,"02050132.202_3","Oceľové štetovnice - rezanie priečne zabaranených štetovníc  dlĺžka = 92 m; 230 ks","ks",230,null,0]
[null,null,"02051232","Pomocná konštrukcia kovové dielce"]
[null,null,"02051232.202_1","Pomocná konštrukcia z ocele pre zvláštne zakladanie stavieb zhotovenie, vrátane dodania opätovne použiteľného materiálu","kpl.",1,null,0]
[null,null,"02051232.202_2","Pomocná konštrukcia z ocele pre zvláštne zakladanie stavieb odstránenie","kpl.",1,null,0]
[null,null,"45.26.22_25","Špeciálne studniarske práce"]
[null,null,"25020111","Studne betónové skruže celokruhové"]
[null,null,"25020111.202_1","Studňa z betónových skruží celokruhových DN 1000 v stavebnej jame, vrátane čerpania vody","ks",12,null,0]
[null,null,"45.44.20_84","Práce maliarske, natieračské, tapetárske, metalizácia"]
[null,null,"84010807","Nátery omietky a betónové povrchy farba epoxidová"]
[null,null,"84010807.202_1","Náter betónu mosta epoxidový disperzný 2x ochranný - okraj dosky pri rímsach","m2",222.2,null,{"$f":"F990*G990","v":0}]
[]
[null,null,null,"203-00  Most cez rieku Poprad v km 1,637",null,null,null,{"$f":"SUM(H993:H1221)","v":0}]
[null,null,"00040222","Požiadavky Objednávateľa - DSRS"]
[null,null,"00040222.203_1","DSRS","kpl",1,null,{"$f":"F994*G994","v":0}]
[null,null,"45.11.20_01","Zemné práce"]
[null,null,"01010401","Prípravné práce odvedenie vody potrubím alebo žľabmi"]
[null,null,"01010401.203_1","Odvedenie vody potrubím pri priemere potrubia DN 1500 - dočasné priepusty 2 x 12 m","m",24,null,0]
[null,null,"01020101","Odkopávky a prekopávky humóznej vrstvy ornice"]
[null,null,"01020101.203_1","Odstránenie ornice s naložením, premiestnením na dočasné skládky a s uložením","m3",260,null,0]
[null,null,"01030101","Hĺbené vykopávky jám zapažených"]
[null,null,"01030101.203_1","Výkop zapaženej jamy pre základy medzi štetovnicami vo vodnom toku","m3",1432,null,0]
[null,null,"01030102","Hĺbené vykopávky jám nezapažených"]
[null,null,"01030102.203_1","Výkop nezapaženej jamy pre základy, vrátane odstránenia dočasných násypov ","m3",853,null,0]
[null,null,"01040202","Konštrukcie z hornín násypy so zhutnením"]
[null,null,"01040202.203_1","Násyp zeminy, zloženie a rozprestretie zeminy vrátane zhutnenia, zemina triedy 3 - 4, dočasná úprava terénu a koryta pre prístup mechanizmov","m3",275,null,0]
[null,null,"01040402","Konštrukcie z hornín zásypy so zhutnením"]
[null,null,"01040402.203_1","Zásyp sypaninou so zhutnením jám - stavebná jama základu podpery 2","m3",410,null,0]
[null,null,"01040602","Konštrukcie z hornín tesniace jadro so zhutnením"]
[null,null,"01040602.203_1","Zriadenie a odstránenie tesniacej výplne medzi radmi štetovníc - zabezpečenie stavebnej jamy podpery 4, vrátane dodania vhodného nepriepustného materiiálu","m3",720,null,0]
[null,null,"01060207","Premiestnenie vodorovné zemín schopných zúrodnenia"]
[null,null,"01060207.203_1","Vodorovné premiestnenie prebytočnej ornice, vrátane nakladania","m3",260,null,{"$f":"F1011*G1011","v":0}]
[null,null,"01060208","Premiestnenie vodorovné výkopku na medziskládku"]
[null,null,"01060208.203_1","Vodorovné premiestnenie odkopávky/výkopku na medziskládku","m3",2285,null,0]
[null,null,"45.22.11_11","Betonárske práce"]
[null,null,"11010202","Základy pätky betón železový"]
[null,null,"11010202.203_1","Základové pätky a bloky mostných konštrukcií z betónu železového tr. C 30/37","m3",1027.26,null,0]
[null,null,"11010211","Základy pätky debnenie"]
[null,null,"11010211.203_1","Debnenie základových pätiek mostných konštrukcií  - zhotovenie","m2",407.84,null,0]
[null,null,"11010211.203_2","Debnenie základových pätiek mostných konštrukcií  - odstránenie","m2",407.84,null,0]
[null,null,"11010221","Základy pätky výstuž z betonárskej ocele"]
[null,null,"11010221.203_1","Výstuž základových pätiek a blokov z betonárskej ocele B500B (10 505) mostných konštrukcií","t",103.202,null,0]
[null,null,"11010221.203_2","Výstuž základových pätiek zo zváraných sietí ","t",1.64,null,0]
[null,null,"11050202","Zvislé konštrukcie inžinierskych stavieb opory betón železový"]
[null,null,"11050202.203_1","Mostné opory a úložné prahy a krídla z betónu železového tr. C 30/37","m3",389.27,null,0]
[null,null,"11050211","Zvislé konštrukcie inžinierskych stavieb opory debnenie"]
[null,null,"11050211.203_1","Debnenie mostných konštrukcií-opôr a úložných prahov a krídiel výšky do 20 m, zhotovenie","m2",552.91999999999996,null,0]
[null,null,"11050211.203_2","Debnenie mostných konštrukcií-opôr a úložných prahov a krídiel výšky do 20 m, odstránenie","m2",552.91999999999996,null,0]
[null,null,"11050221","Zvislé konštrukcie inžinierskych stavieb opory výstuž z betonárskej ocele"]
[null,null,"11050221.203_1","Výstuž drieku opôr a úložných prahov a krídiel z betonárskej ocele B500B (10 505) mostných konštrukcií","t",24.724,null,0]
[null,null,"11050402","Zvislé konštrukcie inžinierskych stavieb stĺpy, podpery betón železový"]
[null,null,"11050402.203_1","Mostné piliere a stĺpy z betónu železového tr. C 35/45","m3",110.05,null,0]
[null,null,"11050411","Zvislé konštrukcie inžinierskych stavieb stĺpy, podpery debnenie "]
[null,null,"11050411.203_1","Debnenie mostných konštrukcií-stĺpov kruhových a oválnych , výšky do 20 m, zhotovenie","m2",171.3,null,0]
[null,null,"11050411.203_2","Debnenie mostných konštrukcií- stĺpov kruhových a oválnych , výšky do 20 m,  odstránenie","m2",171.3,null,0]
[null,null,"11050421","Zvislé konštrukcie inžinierskych stavieb stĺpy,podpery výstuž z betonárskej ocele"]
[null,null,"11050421.203_1","Výstuž driekov kruhových stĺpov z betonárskej ocele B500B (10 505) mostných konštrukcií","t",13.474,null,0]
[null,null,"11050502","Zvislé konštrukcie inžinierskych stavieb úložné prahy betón železový"]
[null,null,"11050502.203_1","Mostné úložné prahy pilierov z betónu železového tr. C 35/45","m3",216.9,null,0]
[null,null,"11050511","Zvislé konštrukcie inžinierskych stavieb úložné prahy debnenie "]
[null,null,"11050511.203_1","Debnenie mostných konštrukcií-úložných prahov výšky do 20 m, zhotovenie","m2",248.6,null,0]
[null,null,"11050511.203_2","Debnenie mostných konštrukcií-úložných prahov výšky do 20 m, odstránenie","m2",248.6,null,0]
[null,null,"11050521","Zvislé konštrukcie inžinierskych stavieb úložné prahy výstuž z betonárskej ocele"]
[null,null,"11050521.203_1","Výstuž úložných prahov pilierov z betonárskej ocele 10 505 mostných konštrukcií","t",27.472000000000001,null,0]
[null,null,"11050602","Zvislé konštrukcie inžinierskych stavieb rímsy betón železový"]
[null,null,"11050602.203_1","Mostové rímsy z betónu železového triedy C 35/45","m3",202.8,null,0]
[null,null,"11050611","Zvislé konštrukcie inžinierskych stavieb rímsy debnenie"]
[null,null,"11050611.203_1","Debnenie mostných ríms všetkých tvarov - zhotovenie ","m2",35.75,null,0]
[null,null,"11050611.203_2","Debnenie mostových ríms všetkých tvarov - odstránenie","m2",35.75,null,0]
[null,null,"11050621","Zvislé konštrukcie inžinierskych stavieb rímsy výstuž z betonárskej ocele"]
[null,null,"11050621.203_1","Výstuž mostných ríms z betonárskej ocele B505B (10 505)","t",36.207999999999998,null,0]
[null,null,"11050802","Zvislé konštrukcie inžinierskych stavieb úložné bloky betón železový"]
[null,null,"11050802.203_1","Mostné úložné bloky ložísk z betónu železového tr. C 35/45","m3",2.29,null,0]
[null,null,"11050811","Zvislé konštrukcie inžinierskych stavieb úložné bloky debnenie "]
[null,null,"11050811.203_1","Debnenie úložného bloku ložiska zhotovenie a odstránenie","m2",6.52,null,0]
[null,null,"11050821","Zvislé konštrukcie inžinierskych stavieb úložné bloky výstuž z betonárskej ocele"]
[null,null,"11050821.203_1","Výstuž úložných blokov ložísk z betonárskej ocele 10 505 mostných konštrukcií","t",0.68600000000000005,null,0]
[null,null,"11080102","Vodorovné nosné konštrukcie inžinierskych stavieb prechodové dosky betón železový"]
[null,null,"11080102.203_1","Mostné nosné konštrukcie doskové prechodové z betónu železového tr. C 25/30","m3",41.04,null,0]
[null,null,"11080211","Vodorovné nosné konštrukcie inžinierskych stavieb mostné dosky debnenie"]
[null,null,"11080211.203_1","Debnenie boku prechodovej dosky konštrukcie mostov - zhotovenie","m2",14.04,null,0]
[null,null,"11080211.203_2","Debnenie boku prechodovej dosky konštrukcie mostov - odstránenie","m2",14.04,null,0]
[null,null,"11080221","Vodorovné nosné konštrukcie inžinierskych stavieb mostné dosky výstuž z betonárskej ocele"]
[null,null,"11080221.203_1","Výstuž prechodovej dosky mostných konštrukcií z betonárskej ocele B500B (10 505) ","t",3.38,null,0]
[null,null,"11080503","Vodorovné nosné konštrukcie - mostné komorové - betón predpätý"]
[null,null,"11080503.203_1","Mostné predpäté betónové nosné konštrukcie komorové z betónu tr. C 40/50","m3",3582,null,0]
[null,null,"11080511","Vodorovné nosné konštrukcie - mostné komorové - debnenie letmá betonáž"]
[null,null,"11080511.203_1","Debnenie - vonkajšia zostava - podhľad spodnej dosky, vonkajšie boky, podhľad konzoly mostovky, vrátane podpernej konštrukcie a pracovných podláh - priemerná plocha pre 1 lamelu = 105 m2; počet lamiel 40","m2",4200,null,0]
[null,null,"11080511.203_2","Debnenie pracovných čiel  komory z predpätého betónu - priemerné plocha pre 1 lamelu = 11,3 m2; počet lamiel 40","m2",452,null,0]
[null,null,"11080511.203_3","Debnenie vnútorná zostava - boky, nábehy a strop komory, vrátane podpernej konštrukcie - priemerne pre 1 lamelu = 52 m2; počet lamiel 40","m2",2080,null,0]
[null,null,"11080511.203_4","Debnenie - vonkajšia zostava - podhľad spodnej dosky, vonkajšie boky, podhľad konzoly mostovky, vrátane podpernej konštrukcie a pracovných podláh - spojovacie lamely","m2",115.2,null,0]
[null,null,"11080511.203_5","Debnenie vnútorná zostava - boky, nábehy a strop komory, vrátane podpernej konštrukcie - spojovacie lamely","m2",60,null,0]
[null,null,"11080512","Vodorovné nosné konštrukcie - mostné komorové - debnenie na skruži"]
[null,null,"11080512.203_1","Debnenie na skruži - podhľad spodnej dosky, vonkajšie boky, podhľad konzoly mostovky, vrátane podpernej konštrukcie a pracovných podláh","m2",1787.2,null,0]
[null,null,"11080512.203_2","Debnenie pracovných čiel  priečnikov a komory z predpätého betónu na skruži","m2",159,null,0]
[null,null,"11080512.203_3","Debnenie na skruži - vnútorné boky, steny priečnikov,nábehy a strop komory, vrátane podpernej konštrukcie","m2",967,null,{"$f":"F1075*G1075","v":0}]
[null,null,"11080521","Vodorovné nosné konštrukcie inžinierskych stavieb mostné komorové výstuž z betonárskej ocele"]
[null,null,"11080521.203_1","Výstuž komorovej konštrukcie z betonárskej ocele B500B (10 505) mostných konštrukcií","t",497.92,null,0]
[null,null,"11080522","Vodorovné nosné konštrukcie inžinierskych stavieb mostné komorové výstuž z predpínacej ocele"]
[null,null,"11080522.203_1","Zhotovenie predpínacích káblov súdržných komorovej konštrukcie mostov - 19 x priemer 15,7 mm, pevnosť 1860 MPa - dĺžky špecifikované v projekte","t",171.78200000000001,null,0]
[null,null,"11080522.203_3","Podkladová doska predpínacej výstuže osadená do debnenia komorovej konštrukcie mostov","ks",292,null,0]
[null,null,"11080522.203_4","Rúry tenkostenné krepované (hadice z vinutého oceľového pásu) priemeru 100 mm pre predpínaciu výstuž komorovej konštrukcie mostov","m",7297,null,0]
[null,null,"11080522.203_6","Zainjektovanie rúr priemeru 100 mm predpínacej výstuže komorovej konštrukcie mostov","m",7297,null,0]
[null,null,"11080522.203_7","Obetónovanie kotiev predpínacej výstuže vrátane debnenia komorovej konštrukcie mostov","ks",292,null,0]
[null,null,"11090102","Schodiskové konštrukcie kompletné betón železový"]
[null,null,"11090102.203_1","Schodiskové konštrukcie, betón železový tr. C 30/37","m3",6.4,null,0]
[null,null,"11090111","Schodiskové konštrukcie kompletné debnenie"]
[null,null,"11090111.203_1","Debnenie schodiskových konštrukcií - zhotovenie","m2",15.6,null,0]
[null,null,"11090111.203_2","Debnenie schodiskových konštrukcií - odstránenie","m2",15.6,null,0]
[null,null,"11090121","Schodiskové konštrukcie kompletné výstuž z betonárskej ocele"]
[null,null,"11090121.203_1","Výstuž schodiskových konštrukcií zo zváraných sietí ","t",0.12,null,{"$f":"F1090*G1090","v":0}]
[null,null,"11200101","Podkladné konštrukcie podkladné vrstvy betón prostý"]
[null,null,"11200101.203_1","Podkladová  vrstva z betónu tr. C 12/15 - podkladný betón  pre opory a krídla, hr. 200 mm - plocha = 135,0 m2","m3",27,null,0]
[null,null,"11200101.203_2","Podkladová vrstva z betónu tr. C 12/15 - podkladný betón pre prechodové dosky, hr. 150 mm - plocha = 142,0 m2","m3",21.3,null,0]
[null,null,"11200101.203_3","Podkladová vrstva z betónu tr. C 12/15 - podkladný betón pre základové bloky pilierov, hr. 200 mm - plocha = 462,5 m2","m3",92.5,null,0]
[null,null,"45.22.11_15","Montáže prefabrikovaných konštrukcií"]
[null,null,"15020402","Rímsy dielce železobetonové"]
[null,null,"15020402.203_1","Osadenie - Mostné rímsové  prefabrikované železobetónové lícne panely betón C 35/45 s kotvením dĺžky do 2 m ","ks",314,null,0]
[null,null,"15020402.203_2","Dodanie - Mostné rímsové  železobetónové  prefabrikované lícne panely betón C 35/45; hrúbka 150 mm, výška 900 mm - dĺžky prefabrikátov podľa projektu, celková dĺžka = 624,00 m","ks",314,null,0]
[null,null,"45.22.11_21","Špeciálne práce pri výstavbe mostov"]
[null,null,"21080408","Vodorovné nosné konštrukcie kĺby a ložiská hrncové"]
[null,null,"21080408.203_1","Osadenie - Mostné ložisko oceľové hrncové - typ a zaťaženie podľa projektu","ks",12,null,0]
[null,null,"21080408.203_2","Dodanie - Mostné ložisko oceľové hrncové - jednosmerné - zaťaženie 7500 kN","ks",2,null,0]
[null,null,"21080408.203_3","Dodanie - Mostné ložisko oceľové hrncové - všesmerné - zaťaženie 7500 kN","ks",2,null,0]
[null,null,"21080408.203_4","Dodanie - Mostné ložisko oceľové hrncové - jednosmerné - zaťaženie 10000 kN","ks",1,null,0]
[null,null,"21080408.203_5","Dodanie - Mostné ložisko oceľové hrncové - všesmerné - zaťaženie 10000 kN","ks",1,null,0]
[null,null,"21080408.203_6","Dodanie - Mostné ložisko oceľové hrncové - jednosmerné - zaťaženie 18000 kN","ks",2,null,0]
[null,null,"21080408.203_7","Dodanie - Mostné ložisko oceľové hrncové - všesmerné - zaťaženie 18000 kN","ks",2,null,0]
[null,null,"21080408.203_8","Dodanie - Mostné ložisko oceľové hrncové - jednosmerné - zaťaženie 30000 kN","ks",1,null,0]
[null,null,"21080408.203_9","Dodanie - Mostné ložisko oceľové hrncové - pevné - zaťaženie 30000 kN","ks",1,null,0]
[null,null,"21080409","Vodorovné nosné konštrukcie kĺby a ložiská kĺb zo železobetónu"]
[null,null,"21080409.203_1","Zhotovenie vrubového kĺbu prechodovej dosky - osadenie heraklitu, tmelenie škáry vrubu","m",22.8,null,0]
[null,null,"21200116","Podkladné a vedľajšie konštrukcie výplň za oporami a protimrazové kliny zo štrkopiesku"]
[null,null,"21200116.203_1","Výplňové kliny a ochranný zásyp za oporou z kameniva drveného hutneného po vrstvách ","m3",675,null,0]
[null,null,"21210419","Spevnené plochy - dlažba pri oporách"]
[null,null,"21210419.203_1","Spevnenie obsypových kužeľov kamennou dlažbou z lomového kameňa hr. 150 mm do betónového lôžka hr. 100 mm so škárovaním cementovou maltou, vrátane ukončovacej betónovej pätky 500 x 800 mm","m2",420,null,0]
[null,null,"21250106","Doplňujúce konštrukcie zvodidlá oceľové"]
[null,null,"21250106.203_1","Zvodidlo oceľové zábradlové úroveň zachytenia H2 kotvené do rímsy","m",624,null,0]
[null,null,"21250202","Doplňujúce konštrukcie zábradlia kompozitné"]
[null,null,"21250202.203_1","Osadenie kompozitného zábradlia na schody pri oporách chemickými kotvami","m",18,null,0]
[null,null,"21250202.203_2","Dodanie kompozitného zábradlia na schody pri oporách - 1 ks dĺžky 9,20 m; 1 ks dĺžky 8,80 m","m",18,null,{"$f":"F1120*G1120","v":0}]
[null,null,"21250206","Doplňujúce konštrukcie zábradlia oceľové"]
[null,null,"21250206.203_1","Osadenie mostného oceľového zábradlia trvalého do ríms lepenými kotvami M 12/200 do vŕtaných otvorov priemeru 16/160 na plastmaltu","m",624,null,0]
[null,null,"21250206.203_2","Dodanie mostného oceľového zábradlia so zvislou výplňou - celková hmotnosť 35298 kg, vrátane protikoróznej ochrany a náterov","m",624,null,0]
[null,null,"21250320","Doplňujúce konštrukcie odvodnenie mostov odvodňovače"]
[null,null,"21250320.203_1","Mostná vpusť/mostný odvodňovač 300/500 mm, zvislý odtok DN 150","ks",60,null,0]
[null,null,"21250321","Doplňujúce konštrukcie odvodnenie mostov odvodňovacie potrubie"]
[null,null,"21250321.203_1","Odvodňovacie potrubie PE DN 150, vrátane tvarových kusov-dodanie a osadenie","m",237.5,null,0]
[null,null,"21250321.203_2","Odvodňovacie potrubie PE DN 50 - dodanie a osadenie","m",5.6,null,0]
[null,null,"21250323","Doplňujúce konštrukcie odvodnenie izolácie mostov"]
[null,null,"21250323.203_1","Nerezový odvodňovač izolácie mostovky osadený do plastbetónu - tvarovka DN 50","ks",60,null,0]
[null,null,"21250331","Doplňujúce konštrukcie odvodnenie mostnej opory"]
[null,null,"21250331.203_1","Odvodnenie mostnej opory - žľab úložného prahu z plastových rúr ","m",30,null,0]
[null,null,"21250341","Doplňujúce konštrukcie odvodnenie mostov drenážny kanálik"]
[null,null,"21250341.203_1","Podkladová vrstva plastbetónová drenážna na moste - kanálik 100 x 45 mm - dĺžka 608 m","m3",2.74,null,0]
[null,null,"21250424","Doplňujúce konštrukcie tesnenie škár"]
[null,null,"21250424.203_2","Tesnenie pracovnej škáry betónovej konštrukcie silikónovým tmelom - rímsa trvalo pružný silikónový tmel odolný voči UV žiareniu  a chloridom","m",756.6,null,0]
[null,null,"21250426","Doplňujúce konštrukcie dilatačné zariadenia mostné závery povrchové"]
[null,null,"21250426.203_1","Osadenie - Mostný záver mechanický - dilatačný pohyb podľa projektu","m",28.8,null,0]
[null,null,"21250426.203_2","Dodanie - Mostný záver mechanický - dilatačný pohyb podľa projektu","m",28.8,null,0]
[null,null,"21250833","Doplňujúce konštrukcie zaťažovacie skúšky statické"]
[null,null,"21250833.203_1","Zaťažovacia skúška statická, vrátane zaťažovacích prostriedkov a vypracovania projektu zaťažovacej skúšky","kpl",1,null,0]
[null,null,"21250906","Doplňujúce konštrukcie drobné zariadenia oceľové"]
[null,null,"21250906.203_1","Kotvenie monolitického betónu rímsy do mostovky kotvou do vývrtu - lepená kotva podľa projektu, vrátane dodania","ks",1212,null,0]
[null,null,"21250907","Doplňujúce konštrukcie sledovanie deformácií"]
[null,null,"21250907.203_1","Osadenie meracích značiek, vzťažných a pozorovacích bodov pre sledovanie trvalých deformácií; spolu 50 značiek a 3 body","kpl",1,null,0]
[null,null,"21250908","Doplňujúce konštrukcie oceľové schody v komore"]
[null,null,"21250908.203_1","Kovové schody v komore - komplet podľa projektu, vrátane protikoróznej ochrany a náterov - hmotnosť 235 kg","kpl",1,null,0]
[null,null,"21250909","Doplňujúce konštrukcie dvere do komory"]
[null,null,"21250909.203_1","Jednokrídlové plechové dvere s oceľovou zárubňou a kovaním, vrátane protikoróznej ochrany a náterov - vstup do komory mosta","kpl",2,null,0]
[null,null,"21251006","Doplňujúce konštrukcie podperné konštrukcie mostov oceľové"]
[null,null,"21251006.203_1","Podperné konštrukcie dočasné - skruže, montáž, vrátane použitia počas doby výstavby","kpl.",1,null,0]
[null,null,"21251006.203_2","Podperné konštrukcie dočasné - skruže, odstránenie ","kpl.",1,null,0]
[null,null,"21251037","Doplňujúce konštrukcie podperné konštrukcie mostov vozíky pre letmú betonáž"]
[null,null,"21251037.203_1","Letmá betonáž - podporná konštrukcia a prvky pre letmú betonáž, nájom, manipulácia","kpl.",1,null,0]
[null,null,"45.23.31_22","Práce na pozemných komunikáciach a letiskách"]
[null,null,"22030640","Podkladné a krycie vrstvy z asfaltových zmesí bitúmenové vrstvy asfaltový betón"]
[null,null,"22030640.203_1","Asfaltový betón vrstva obrusná AC 11 O z modifik. asfaltu tr. I, po zhutnení hr. 45 mm - vozovka na moste","m2",3415.5,null,0]
[null,null,"22030641","Podkladné a krycie vrstvy z asfaltových zmesí bitúmenové vrstvy asfaltový koberec mastixový"]
[null,null,"22030641.203_1","Koberec asfaltový modifikovaný I.tr. mastixový SMA 11 O  strednozrnný, po zhutnení hr. 40 mm - vozovka na moste","m2",3415.5,null,0]
[null,null,"22250979","Doplňujúce konštrukcie obrubníky kamenné"]
[null,null,"22250979.205_1","Osadenie obrubníka kamenného (žulového) s trnom kotveného do mostnej rímsy, vrátane lôžka z plastbetónu","m",624,null,{"$f":"F1161*G1161","v":0}]
[null,null,"22250979.205_2","Dodanie obrubníka kamenného (žulového) ","m",624,null,0]
[null,null,"22251085","Doplňujúce konštrukcie zálievka škár vozovky"]
[null,null,"22251085.203_1","Trvalo pružná zálievka škáry vozovka - obrubník s tesniacim profilom š. 20 mm hl. 40 mm, vrátane náteru na zlepšenie priľnavosti","m",624,null,0]
[null,null,"22251085.203_2","Pružná zálievka škáry vozovka - odvodňovač","m",96,null,0]
[null,null,"22251085.203_3","Pružná zálievka škáry vozovka - mostný záver","m",46,null,0]
[null,null,"22251161","Doplňujúce konštrukcie otvorené žľaby z betónových tvárnic"]
[null,null,"22251161.203_1","Žľab z betónových priekopových tvárnic šírky 500- 800 mm do betónu; tvárnica priekopová typ TBM 1-60,  620x300x154,5(75) mm","m",52.8,null,0]
[null,null,"22251284","Doplňujúce konštrukcie kábelovody z rúr alebo dielcov plastových"]
[null,null,"22251284.203_1","Chránička káblov z rúr HDPE v mostnej rímse DN 100 mm","m",1248,null,0]
[null,null,"45.24.70_31","Hydromelioračné práce"]
[null,null,"31210103","Spevnené plochy zahádzky lomový kameň"]
[null,null,"31210103.203_1","Zahádzka z lomového kameňa - dočasná - ochrana štetovnicových stien","kpl.",1,null,0]
[null,null,"31210103.203_2","Zahádzka z lomového kameňa - zásyp stavebných jám a ochranný kužeľ pilierov 3, 4, 5 ","m3",634,null,0]
[null,null,"45.26.14_61","Izolatérske práce"]
[null,null,"61010101","Izolácia proti vode a zemnej vlhkosti náterivami a tmelmi"]
[null,null,"61010101.203_1","Izolácia proti zemnej vlhkosti za studena = 1 x penetračný náter + 2x asfaltový náter - opory a krídla","m2",355.8,null,0]
[null,null,"61010101.203_2","Izolácia proti zemnej vlhkosti za studena = 1 x penetračný náter + 2x asfaltový náter - prechodové dosky","m2",150.9,null,0]
[null,null,"61010101.203_3","Izolácia proti zemnej vlhkosti za studena = 1 x penetračný náter + 2x asfaltový náter - základové bloky pilierov","m2",835.8,null,0]
[null,null,"61010101.203_4","Izolácia proti zemnej vlhkosti za studena = 1 x penetračný náter + 2x asfaltový náter - stĺpy pilierov","m2",137.30000000000001,null,0]
[null,null,"61010500","Izolácia mostoviek príprava povrchu"]
[null,null,"61010500.203_1","Obrokovanie povrchu mostovky pred zhotovením zapečaťujúcej vrstvy","m2",4158,null,{"$f":"F1182*G1182","v":0}]
[null,null,"61010501","Izolácia mostoviek náterivami a tmelmi"]
[null,null,"61010501.203_1","Zapečaťujúca vrstva  = kotviaco - impregnačný náter z epoxidovej živice s posypom kremičitým pieskom + uzatvárací náter z epoxidovej živice","m2",4158,null,0]
[null,null,"61010502","Izolácia mostoviek pásmi"]
[null,null,"61010502.203_1","Izolácia cestných mostoviek nataviteľnými asfaltovými pásmi pre mosty","m2",5049,null,0]
[null,null,"45.26.22_02","Práce špeciálneho zakladania"]
[null,null,"02020673","Vrty pre pilóty"]
[null,null,"02020673.203_1","Vrty pre pilóty zapažené zvislé, priemer 1200 mm - 41 kusov,  hĺbka 15 m","m",615,null,0]
[null,null,"02020673.203_2","Vrty pre pilóty zapažené zvislé, priemer 1200 mm - 50 kusov,  hĺbka 12 m","m",600,null,0]
[null,null,"02040222","Pilóty betónované na mieste s vytiahnutím pažnice beton železový"]
[null,null,"02040222.203_1","Výplň pilót zvislých zapažených z betónu železového C 25/30 priemer pilóty 1200 mm - dĺžka 15 ,0+1,00 m; 1 pilóta = 18,10 m3; počet pilót = 41 ks,  vrátane odbúrania znehodnotenej časti 1,00 m ","m3",742.1,null,0]
[null,null,"02040222.203_2","Výplň pilót zvislých zapažených z betónu železového C 25/30, priemer pilóty 1200 mm - dĺžka 12,0+1,00 m; 1 pilóta = 14,70 m3; počet pilót = 50 ks,  vrátane odbúrania znehodnotenej časti 1,00 m ","m3",735,null,0]
[null,null,"02040223","Pilóty betónované na mieste s vytiahnutím pažnice betonárska výstuž"]
[null,null,"02040223.203_1","Výstuž pilót betónovaných do zeme, s vytiahnutím pažnice, z ocele B500B (10 505) - 0,67 t pre 1 pilótu dĺ. 15 m; počet pilót 41 ks","t",27.47,null,0]
[null,null,"02040223.203_2","Výstuž pilót betónovaných do zeme, s vytiahnutím pažnice, z ocele B500B (10 505) - 0,58 t pre 1 pilótu dĺ. 12 m; počet pilót 50 ks","t",29,null,0]
[null,null,"02040230","Pilóty betónované na mieste s vytiahnutím pažnice zaťažovacia skúška"]
[null,null,"02040230.203_1","Zaťažovacia skúška pilóty na overenie projektom predpísanej únosnosti, vrátane zhotovenia nesystémovej pilóty","ks",2,null,0]
[null,null,"02050132","Steny štetovnicové baranené kovové dielce"]
[null,null,"02050132.203_2","Trvalé steny baranené z oceľových štetovníc z terénu - zabaranenie na dľžku nad 10 m, vrátane dodania oceľových štetovnicových profilov hmotnosti 244,17 t","m2",1639.8,null,0]
[null,null,"02050132.203_3","Oceľové štetovnice - rezanie priečne zabaranených štetovníc  dlĺžka = 144,6 m; 362 ks","ks",362,null,0]
[null,null,"02050132.203_4","Dočasné steny baranené z oceľových štetovníc z terénu - zabaranenie na dľžku nad 10 m, vrátane prenájmu oceľových štetovnicových profilov hmotnosti 131,13 t","m2",846,null,0]
[null,null,"02050132.203_5","Vytiahnutie štetovnicových stien z oceľových štetovníc zabaranených do 2 rokov, nad 10m","m2",846,null,0]
[null,null,"02051232","Pomocná konštrukcia kovové dielce"]
[null,null,"02051232.203_1","Pomocná konštrukcia z ocele pre zvláštne zakladanie stavieb zhotovenie, vrátane dodania opätovne použiteľného materiálu","kpl.",1,null,0]
[null,null,"02051232.203_2","Pomocná konštrukcia z ocele pre zvláštne zakladanie stavieb odstránenie","kpl.",1,null,0]
[null,null,"45.31.56_91","Montáž silnoprúdových rozvodov a zariadení"]
[null,null,"91010702","Úložný materiál rúrky ochranné, tuhé"]
[null,null,"91010702.203_1","Rúrka tuhá ochranná plastová DN 32","m",700,null,0]
[null,null,"91011202","Úložný materiál škatule elektroinšt., na povrchu odbočné"]
[null,null,"91011202.203_1","Krabica odbočná plastová IP44","ks",7,null,0]
[null,null,"91080101","Káble Cu NN káble silové"]
[null,null,"91080101.203_1","Kábel medený uložený CYKY J 5x6 mm2","m",340,null,0]
[null,null,"91080101.203_2","Kábel medený CYKY J 5x2,5 mm2","m",370,null,0]
[null,null,"91111103","Spínacie, spúšťacie  a regulačné ústrojenstvá zásuvky NN"]
[null,null,"91111103.203_1","Zásuvka kombinovaná 16A/400V + 16A/250V, IP44, na povrch","ks",7,null,0]
[null,null,"91190101","Rozvádzače NN "]
[null,null,"91190101.203_1","Rozvádzač podľa projektu","ks",2,null,0]
[null,null,"91200203","Svietidlá a osvetľovacie zariadenia svietidlá priemyselné"]
[null,null,"91200203.203_1","Svietidlo IP65, LED, 3500lm, 4000K","ks",41,null,0]
[]
[null,null,null,"204-00  Most nad poľnou cestou v km 2,316",null,null,null,{"$f":"SUM(H1223:H1294)","v":0}]
[null,null,"00040222","Požiadavky Objednávateľa - DSRS"]
[null,null,"00040222.204_1","DSRS","kpl",1,null,{"$f":"F1224*G1224","v":0}]
[null,null,"45.11.20_01","Zemné práce"]
[null,null,"01020101","Odkopávky a prekopávky humóznej vrstvy ornice"]
[null,null,"01020101.204_1","Odstránenie ornice s naložením, premiestnením na dočasné skládky a s uložením","m3",150,null,0]
[null,null,"01030102","Hĺbené vykopávky jám nezapažených"]
[null,null,"01030102.204_1","Výkop jamy nezapaženej","m3",1560,null,0]
[null,null,"01040202","Konštrukcie z hornín násypy so zhutnením"]
[null,null,"01040202.204_1","Uloženie sypaniny do násypu  nesúdržných kamenistých hornín s dodaním kameniva frakcie 0-45 mm - obsyp mosta v zóne vzdialenej viac ako tri metre od líca konštrukcie","m3",1446,null,0]
[null,null,"01040402","Konštrukcie z hornín zásypy so zhutnením"]
[null,null,"01040402.204_1","Zásyp sypaninou so zhutnením jám s dodaním kameniva frakcie 0-45 mm, za oporami","m3",212,null,{"$f":"F1233*G1233","v":0}]
[null,null,"01040402.204_2","Zásyp sypaninou so zhutnením s dodaním štrkodrvy, medzi oporami ","m3",291,null,0]
[null,null,"01040501","Konštrukcie z hornín obsypy"]
[null,null,"01040501.204_1","Obsyp mosta vrstvou hrúbky 300 mm z kameniva frakcie 0-22 mm ","m3",134.69999999999999,null,0]
[null,null,"01040501.204_2","Obsyp mosta do vzdialenosti 3 metre od líca konštrucie kamenivom frakcie 0-45 mm","m3",1034,null,0]
[null,null,"01060207","Premiestnenie vodorovné zemín schopných zúrodnenia"]
[null,null,"01060207.204_1","Vodorovné premiestnenie prebytočnej ornice, vrátane nakladania","m3",150,null,0]
[null,null,"01060208","Premiestnenie vodorovné výkopku na medziskládku"]
[null,null,"01060208.204_1","Vodorovné premiestnenie odkopávky/výkopku na medziskládku","m3",1560,null,0]
[null,null,"45.22.11_11","Betonárske práce"]
[null,null,"11010101","Základy pásy betón prostý"]
[null,null,"11010101.204_1","Základové pásy z betónu prostého C 25/30","m3",117.44,null,0]
[null,null,"11010111","Základy pásy debnenie "]
[null,null,"11010111.204_1","Debnenie stien základových pásov, zhotovenie","m2",123.84,null,{"$f":"F1246*G1246","v":0}]
[null,null,"11010111.204_2","Debnenie stien základových pásov, odstránenie","m2",123.84,null,0]
[null,null,"11010201","Základy pätky betón prostý"]
[null,null,"11010201.204_1","Betón základových pätiek, prostý tr. C 25/30","m3",2.4,null,0]
[null,null,"11010211","Základy pätky debnenie "]
[null,null,"11010211.204_1","Debnenie stien základových pätiek - zhotovenie","m2",24.96,null,0]
[null,null,"11010211.204_2","Debnenie stien základových pätiek - odstránenie","m2",24.96,null,0]
[null,null,"11010211.204_3","Debnenie kotevných otvorov pre zábradlie - zhotovenie a odstránenie","ks",24,null,0]
[null,null,"11050202","Zvislé konštrukcie inžinierskych stavieb opory betón železový"]
[null,null,"11050202.204_1","Mostné opory a úložné prahy z betónu železového tr. C 30/37","m3",95.6,null,0]
[null,null,"11050211","Zvislé konštrukcie inžinierskych stavieb opory debnenie"]
[null,null,"11050211.204_1","Debnenie mostných konštrukcií-opôr a úložných prahov výšky do 20 m, zhotovenie","m2",194.24,null,0]
[null,null,"11050211.204_2","Debnenie mostných konštrukcií-opôr a úložných prahov výšky do 20 m, odstránenie","m2",194.24,null,0]
[null,null,"11050221","Zvislé konštrukcie inžinierskych stavieb opory výstuž z betonárskej ocele"]
[null,null,"11050221.204_1","Výstuž drieku opôr a úložných prahov z betonárskej ocele B500B (10 505) mostných konštrukcií","t",11.846,null,0]
[null,null,"11050602","Zvislé konštrukcie inžinierskych stavieb rímsy betón železový"]
[null,null,"11050602.204_1","Mostové rímsy z betónu železového triedy C 35/45","m3",5.8,null,0]
[null,null,"11050611","Zvislé konštrukcie inžinierskych stavieb rímsy debnenie"]
[null,null,"11050611.204_1","Debnenie mostných ríms všetkých tvarov - zhotovenie ","m2",22.62,null,0]
[null,null,"11050611.204_2","Debnenie mostových ríms všetkých tvarov - odstránenie","m2",22.62,null,0]
[null,null,"11050621","Zvislé konštrukcie inžinierskych stavieb rímsy výstuž z betonárskej ocele"]
[null,null,"11050621.204_1","Výstuž mostných ríms z betonárskej ocele B505B (10 505)","t",0.627,null,0]
[null,null,"11200101","Podkladné konštrukcie podkladné vrstvy betón prostý"]
[null,null,"11200101.204_1","Podkladová vrstva z betónu tr. C 12/15 - podkladný betón pre základy, hr. 100 mm - plocha = 162,4 m2","m3",16.239999999999998,null,0]
[null,null,"11200101.204_2","Podkladová vrstva z betónu tr. C 12/15 - podkladný betón pre drenážne potrubie","m3",4.4000000000000004,null,0]
[null,null,"45.22.11_21","Špeciálne práce pri výstavbe mostov"]
[null,null,"21080513","Vodorovné nosné konštrukcie tenkostenné oceľové profilu klenbového"]
[null,null,"21080513.204_1","Montáž presypanej tenkostennej oceľovej konštrukcie z vlnitých plechov","m",35.32,null,0]
[null,null,"21080513.204_2","Dodanie tenkostennej oceľovej konštrukcie z vlnitých plechov - komplet, vrátane spojovacieho materiálu","m",35.32,null,0]
[null,null,"21250206","Doplňujúce konštrukcie zábradlia oceľové"]
[null,null,"21250206.204_1","Osadenie oceľového zábradlia do otvorov pätiek so zaliatím betónom C 25/30","m",48.8,null,0]
[null,null,"21250206.204_2","Dodanie oceľového zábradlia - celková hmotnosť 1098 kg, vrátane protikoróznej ochrany a náterov","m",48.8,null,0]
[null,null,"21250331","Doplňujúce konštrukcie odvodnenie mostnej opory"]
[null,null,"21250331.204_1","Odvodnenie mostnej opory - drenážne plastové potrubie HDPE DN 160 obalené filtračnou geotextíliou sa zriadením drenážneho obsypu","m",73.400000000000006,null,0]
[null,null,"45.23.31_22","Práce na pozemných komunikáciach a letiskách"]
[null,null,"22251149","Doplňujúce konštrukcie otvorené žľaby z lomového kameňa"]
[null,null,"22040549.204_1","Rigol dláždený do lôžka z betónu prostého tr. C 20/25  hr. 100 mm, z lomového kameňa","m",19.2,null,0]
[null,null,"45.26.14_61","Izolatérske práce"]
[null,null,"61010101","Izolácia proti vode a zemnej vlhkosti náterivami a tmelmi"]
[null,null,"61010101.204_1","Izolácia proti zemnej vlhkosti za studena = 1 x penetračný náter + 2x asfaltový náter - opory a základ","m2",312.2,null,0]
[null,null,"61010108","Izolácia proti vode a zemnej vlhkosti ochrannými fóliami a podkladnými textíliami"]
[null,null,"61010108.204_1","Plávajúca hydroizolácia - geotextília 500 g/m2 + HDPE fólia hr. 1,5 mm + geotextília 500 g/m2","m2",506,null,0]
[null,null,"45.26.22_02","Práce špeciálneho zakladania"]
[null,null,"02010203","Zlepšovanie základovej pôdy lôžko pre trativody a vankúše pod základy kamenivo drvené"]
[null,null,"02010203.204_1","Vankúše zhutnené pod základy z kameniva hrubého drveného","m3",262.39999999999998,null,0]
[null,null,"45.26.22_25","Špeciálne studniarske práce"]
[null,null,"25020111","Studne betónové skruže celokruhové"]
[null,null,"25020111.204_1","Studňa z betónových skruží celokruhových DN 1000 v stavebnej jame, vrátane čerpania vody","ks",2,null,0]
[]
[null,null,null,"205-00  Most cez potok Šambronka v km 5,111",null,null,null,{"$f":"SUM(H1296:H1472)","v":0}]
[null,null,"00040222","Požiadavky Objednávateľa - DSRS"]
[null,null,"00040222.205_1","DSRS","kpl",1,null,{"$f":"F1297*G1297","v":0}]
[null,null,"45.11.20_01","Zemné práce"]
[null,null,"01020101","Odkopávky a prekopávky humóznej vrstvy ornice"]
[null,null,"01020101.205_1","Odstránenie ornice s naložením, premiestnením na dočasné skládky a s uložením","m3",100,null,0]
[null,null,"01030102","Hĺbené vykopávky jám nezapažených"]
[null,null,"01030102.205_1","Výkop jamy pre základy opory, čiastočne paženej štetovnicami","m3",1336,null,0]
[null,null,"01040402","Konštrukcie z hornín zásypy so zhutnením"]
[null,null,"01040402.205_1","Zásyp sypaninou so zhutnením jám - vhodná zemina z výkopu","m3",734,null,{"$f":"F1304*G1304","v":0}]
[null,null,"01060207","Premiestnenie vodorovné zemín schopných zúrodnenia"]
[null,null,"01060207.205_1","Vodorovné premiestnenie prebytočnej ornice, vrátane nakladania","m3",100,null,0]
[null,null,"01060208","Premiestnenie vodorovné výkopku na medziskládku"]
[null,null,"01060208.205_1","Vodorovné premiestnenie odkopávky/výkopku na medziskládku","m3",1336,null,0]
[null,null,"45.22.11_11","Betonárske práce"]
[null,null,"11010101","Základy pásy betón prostý"]
[null,null,"11010101.205_1","Základové pásy z betónu prostého C 25/30","m3",208,null,0]
[null,null,"11010111","Základy pásy debnenie "]
[null,null,"11010111.205_1","Debnenie stien základových pásov, zhotovenie","m2",111.18,null,0]
[null,null,"11010111.205_2","Debnenie stien základových pásov, odstránenie","m2",111.18,null,0]
[null,null,"11050202","Zvislé konštrukcie inžinierskych stavieb opory betón železový"]
[null,null,"11050202.205_1","Mostné opory a úložné prahy z betónu železového tr. C 30/37","m3",263.89999999999998,null,0]
[null,null,"11050211","Zvislé konštrukcie inžinierskych stavieb opory debnenie"]
[null,null,"11050211.205_1","Debnenie mostných konštrukcií-opôr a úložných prahov výšky do 20 m, zhotovenie","m2",289.10000000000002,null,0]
[null,null,"11050211.205_2","Debnenie mostných konštrukcií-opôr a úložných prahov výšky do 20 m, odstránenie","m2",289.10000000000002,null,0]
[null,null,"11050221","Zvislé konštrukcie inžinierskych stavieb opory výstuž z betonárskej ocele"]
[null,null,"11050221.205_1","Výstuž drieku opôr a úložných prahov z betonárskej ocele B500B (10 505) mostných konštrukcií","t",13.47,null,0]
[null,null,"11050302","Zvislé konštrukcie inžinierskych stavieb krídla, steny betón železový"]
[null,null,"11050302.205_1","Mostné krídla a záverné stienky z betónu železového tr. C 30/37","m3",69.52,null,0]
[null,null,"11050311","Zvislé konštrukcie inžinierskych stavieb krídla, steny debnenie"]
[null,null,"11050311.205_1","Debnenie mostných konštrukcií-krídiel, stien výšky do 20 m, zhotovenie","m2",195,null,0]
[null,null,"11050311.205_2","Debnenie mostných konštrukcií-krídiel, stien výšky do 20 m, odstránenie","m2",195,null,0]
[null,null,"11050321","Zvislé konštrukcie inžinierskych stavieb krídla, steny výstuž z betonárskej ocele"]
[null,null,"11050321.205_1","Výstuž krídel a záverných stienok z betonárskej ocele B500B (10 505) mostných konštrukcií","t",4.9489999999999998,null,0]
[null,null,"11050602","Zvislé konštrukcie inžinierskych stavieb rímsy betón železový"]
[null,null,"11050602.205_1","Mostové rímsy z betónu železového triedy C 35/45","m3",20.420000000000002,null,0]
[null,null,"11050611","Zvislé konštrukcie inžinierskych stavieb rímsy debnenie"]
[null,null,"11050611.205_1","Debnenie mostných ríms všetkých tvarov - zhotovenie ","m2",5.55,null,0]
[null,null,"11050611.205_2","Debnenie mostových ríms všetkých tvarov - odstránenie","m2",5.55,null,0]
[null,null,"11050621","Zvislé konštrukcie inžinierskych stavieb rímsy výstuž z betonárskej ocele"]
[null,null,"11050621.205_1","Výstuž mostných ríms z betonárskej ocele B505B (10 505)","t",2.5369999999999999,null,0]
[null,null,"11050802","Zvislé konštrukcie inžinierskych stavieb úložné bloky betón železový"]
[null,null,"11050802.205_1","Mostné úložné bloky ložísk z betónu železového tr. C 30/37","m3",2.4,null,0]
[null,null,"11050811","Zvislé konštrukcie inžinierskych stavieb úložné bloky debnenie "]
[null,null,"11050811.205_1","Debnenie úložného bloku ložiska zhotovenie a odstránenie","m2",39.840000000000003,null,0]
[null,null,"11050821","Zvislé konštrukcie inžinierskych stavieb úložné bloky výstuž z betonárskej ocele"]
[null,null,"11050821.205_1","Výstuž úložných blokov ložísk z betonárskej ocele 10 505 mostných konštrukcií","t",0.79900000000000004,null,{"$f":"F1341*G1341","v":0}]
[null,null,"11080102","Vodorovné nosné konštrukcie inžinierskych stavieb prechodové dosky betón železový"]
[null,null,"11080102.205_1","Mostné nosné konštrukcie doskové prechodové z betónu železového tr. C 25/30","m3",40,null,0]
[null,null,"11080202","Vodorovné nosné konštrukcie inžinierskych stavieb mostné dosky betón železový"]
[null,null,"11080202.205_1","Mostné nosné konštrukcie doskové z betónu železového tr. C 30/37 - spriahujúca doska","m3",74.599999999999994,null,0]
[null,null,"11080211","Vodorovné nosné konštrukcie inžinierskych stavieb mostné dosky debnenie"]
[null,null,"11080211.205_1","Debnenie boku prechodovej dosky konštrukcie mostov - zhotovenie","m2",23,null,0]
[null,null,"11080211.205_2","Debnenie boku prechodovej dosky konštrukcie mostov - odstránenie","m2",23,null,0]
[null,null,"11080211.205_3","Debnenie bočnej steny konštrukcie mostov výšky do 350 mm - zhotovenie","m2",16.399999999999999,null,0]
[null,null,"11080211.205_4","Debnenie bočnej steny konštrukcie mostov výšky do 350 mm - odstránenie","m2",16.399999999999999,null,0]
[null,null,"11080213","Vodorovné nosné konštrukcie inžinierskych stavieb mostné dosky debnenie zabudované"]
[null,null,"11080213.205_1","Stratené debnenie, mostná doska medzi prefabrikátmi  - dosky cementotrieskové ","kpl.",1,null,{"$f":"F1352*G1352","v":0}]
[null,null,"11080221","Vodorovné nosné konštrukcie inžinierskych stavieb mostné dosky výstuž z betonárskej ocele"]
[null,null,"11080221.205_1","Výstuž prechodovej dosky mostných konštrukcií z betonárskej ocele B500B (10 505) ","t",4.032,null,0]
[null,null,"11080221.205_2","Výstuž dosky mostných konštrukcií z betonárskej ocele B500B (10 505)","t",11.532999999999999,null,0]
[null,null,"11080402","Vodorovné nosné konštrukcie inžinierskych stavieb mostné nosníky betón železový"]
[null,null,"11080402.205_1","Betonáž priečnikov tyčových dielcov z betónu tr. C 30/37","m3",24.4,null,0]
[null,null,"11080411","Vodorovné nosné konštrukcie inžinierskych stavieb mostné nosníky debnenie"]
[null,null,"11080411.205_1","Debnenie spodné priečnika trámu - zhotovenie ","m2",18.8,null,0]
[null,null,"11080411.205_2","Debnenie spodné priečnika trámu - odstránenie","m2",18.8,null,0]
[null,null,"11080411.205_3","Debnenie steny priečnikov trámu - zhotovenie ","m2",38.5,null,0]
[null,null,"11080411.205_4","Debnenie steny priečnikov trámu - odstránenie","m2",38.5,null,0]
[null,null,"11080413","Vodorovné nosné konštrukcie inžinierskych stavieb mostné nosníky debnenie zabudované"]
[null,null,"11080413.205_1","Stratené debnenie priečnikov tyčových dielcov - dosky cementotrieskové ","kpl.",1,null,0]
[null,null,"11080421","Vodorovné nosné konštrukcie inžinierskych stavieb mostné nosníky výstuž z betonárskej ocele"]
[null,null,"11080421.205_1","Výstuž priečnikov tyčových dielcov mostných konštrukcií z betonárskej ocele B500B (10 505) ","t",2.9129999999999998,null,0]
[null,null,"11200101","Podkladné konštrukcie podkladné vrstvy betón prostý"]
[null,null,"11200101_205_1","Podkladová  vrstva z betónu tr. C 12/15 - podkladný betón pre krídla, hr. 150 mm - plocha = 12,6 m2","m3",1.89,null,0]
[null,null,"11200101_205_2","Podkladová vrstva z betónu tr. C 12/15 - podkladný betón pre prechodové dosky, hr. 100 mm - plocha = 118,6 m2","m3",11.86,null,0]
[null,null,"45.22.11_15","Montáže prefabrikovaných konštrukcií"]
[null,null,"15020402","Rímsy dielce železobetonové"]
[null,null,"15020402.205_1","Osadenie - Mostné rímsové  prefabrikované železobetónové lícne panely s kotvením dĺžky do 2 m ","ks",40,null,0]
[null,null,"15020402.205_2","Dodanie - Mostné rímsové  železobetónové  prefabrikované lícne panely betón C 35/45; hrúbka 150 mm, výška 700 mm - dĺžky prefabrikátov podľa projektu, celková dĺžka = 73,60 m","ks",40,null,0]
[null,null,"15080202","Vodorovné nosné konštr.pre mostné stavby nosníky dielce železobetonové"]
[null,null,"15080202.205_1","Osadenie - Mostný prefabrikovaný predpätý nosník v celku hm. nad 25 do 40 t","ks",12,null,0]
[null,null,"15080202.205_2","Dodanie - Mostný prefabrikovaný vopred predpätý nosník betón C50/60, v celku hm. nad 25 do 40 t - dĺžka 27 m, stavebná výška 1,3 m","ks",12,null,0]
[null,null,"45.22.11_21","Špeciálne práce pri výstavbe mostov"]
[null,null,"21080407","Vodorovné nosné konštrukcie kĺby a ložiská elastomerové a gumené"]
[null,null,"21080407.205_1","Osadenie - Mostné ložisko elastomerové nekotvené 200 x 300 mm","ks",24,null,0]
[null,null,"21080407.205_2","Dodanie - Mostné ložisko elastomerové nekotvené  200 x 300 mm - špecifikácia podľa projektu","ks",24,null,0]
[null,null,"21080407.205_3","Podkladová vrstva z plastmalty - podliatie ložísk hr. do 10 mm - parametre podľa projektu","m2",2.88,null,0]
[null,null,"21080409","Vodorovné nosné konštrukcie kĺby a ložiská kĺb zo železobetónu"]
[null,null,"21080409.205_1","Zhotovenie vrubového kĺbu prechodovej dosky - osadenie polystyrénu, ochranný povlak výstuže - metalizácia zinkom máčaním,  tmelenie škáry vrubu","m",22.8,null,0]
[null,null,"21200116","Podkladné a vedľajšie konštrukcie výplň za oporami a protimrazové kliny zo štrkopiesku"]
[null,null,"21200116.205_1","Výplňové kliny a ochranný zázyp za oporou z kameniva drveného hutneného po vrstvách ","m3",123.12,null,0]
[null,null,"21200117","Podkladné a vedľajšie konštrukcie výplň za oporami a protimrazové kliny z ílu"]
[null,null,"21200117.205_1","Zhotovenie výplne tesniacej vrstvy za oporou z ílu, vrátane dodania špeciálnej upravenej zeminy","m3",36.479999999999997,null,0]
[null,null,"21210419","Spevnené plochy - dlažba pri oporách"]
[null,null,"21210419.205_1","Spevnenie obsypových kužeľov kamennou dlažbou z lomového kameňa hr. 150 mm do betónového lôžka hr. 100 mm so škárovaním cementovou maltou, vrátane ukončovacej betónovej pätky 600 x 600 mm","m2",825,null,0]
[null,null,"21250106","Doplňujúce konštrukcie zvodidlá oceľové"]
[null,null,"21250106.205_1","Zvodidlo oceľové zábradlové úroveň zachytenia H2 kotvené do rímsy","m",82,null,0]
[null,null,"21250202","Doplňujúce konštrukcie zábradlia kompozitné"]
[null,null,"21250202.205_1","Osadenie kompozitného zábradlia na schody pri oporách chemickými kotvami","m",10.8,null,0]
[null,null,"21250202.205_2","Dodanie kompozitného zábradlia na schody pri oporách - 2 ks dĺžky 4,70 m","m",10.8,null,0]
[null,null,"21250320","Doplňujúce konštrukcie odvodnenie mostov odvodňovače"]
[null,null,"21250320.205_1","Mostná vpusť/mostný odvodňovač 300/500 mm, zvislý odtok DN 150, vrátane predlžovacej tvarovky","ks",3,null,0]
[null,null,"21250323","Doplňujúce konštrukcie odvodnenie izolácie mostov"]
[null,null,"21250323.205_1","Nerezový odvodňovač izolácie mostovky osadený do plastbetónu - tvarovka DN 50, dĺžka 1800 mm","ks",4,null,0]
[null,null,"21250331","Doplňujúce konštrukcie odvodnenie mostnej opory"]
[null,null,"21250331.205_1","Odvodnenie mostnej opory - žľab úložného prahu z plastových rúr DN 100","m",27.2,null,0]
[null,null,"21250331.205_2","Odvodnenie mostnej opory - drenážne plastové potrubie HDPE DN 160 obalené filtračnou geotextíliou sa zriadením drenážneho obsypu","m",36,null,0]
[null,null,"21250341","Doplňujúce konštrukcie odvodnenie mostov drenážny kanálik"]
[null,null,"21250341.205_1","Podkladová vrstva plastbetónová drenážna na moste - kanálik 100 x 45 mm - dĺžka 37,5 m","m3",0.16900000000000001,null,0]
[null,null,"21250424","Doplňujúce konštrukcie tesnenie škár"]
[null,null,"21250424.205_1","Tesnenie pracovnej škáry betónovej konštrukcie silikónovým tmelom - opora trvalo pružný silikónový tmel odolný voči UV žiareniu ","m",27.2,null,0]
[null,null,"21250424.205_2","Tesnenie pracovnej škáry betónovej konštrukcie silikónovým tmelom - rímsa trvalo pružný silikónový tmel odolný voči UV žiareniu  a chloridom","m",88.4,null,0]
[null,null,"21250426","Doplňujúce konštrukcie dilatačné zariadenia mostné závery povrchové"]
[null,null,"21250426.205_1","Osadenie - Mostný záver povrchový s protihlukovou úpravou - celkový dilatačný pohyb 60 mm","m",27.4,null,0]
[null,null,"21250426.205_2","Dodanie - Mostný záver povrchový s protihlukovou úpravou - celkový dilatačný pohyb 60 mm","m",27.4,null,0]
[null,null,"21250833","Doplňujúce konštrukcie zaťažovacie skúšky statické"]
[null,null,"21250833.205_1","Zaťažovacia skúška statická, vrátane zaťažovacích prostriedkov a vypracovania projektu zaťažovacej skúšky","kpl",1,null,0]
[null,null,"21250906","Doplňujúce konštrukcie drobné zariadenia oceľové"]
[null,null,"21250906.205_1","Kotvenie monolitického betónu rímsy do mostovky kotvou do vývrtu - lepená kotva podľa projektu, vrátane dodania","ks",163,null,0]
[null,null,"21250907","Doplňujúce konštrukcie sledovanie deformácií"]
[null,null,"21250907.205_1","Osadenie meracích značiek, vzťažných a pozorovacích bodov pre sledovanie trvalých deformácií; spolu 10 značiek a 3 body","kpl",1,null,{"$f":"F1415*G1415","v":0}]
[null,null,"45.23.31_22","Práce na pozemných komunikáciach a letiskách"]
[null,null,"22030640","Podkladné a krycie vrstvy z asfaltových zmesí bitúmenové vrstvy asfaltový betón"]
[null,null,"22030640.205_1","Asfaltový betón vrstva obrusná AC 11 O z modifik. asfaltu tr. I, po zhutnení hr. 45 mm - vozovka na moste","m2",313.2,null,0]
[null,null,"22030641","Podkladné a krycie vrstvy z asfaltových zmesí bitúmenové vrstvy asfaltový koberec mastixový"]
[null,null,"22030641.205_1","Koberec asfaltový modifikovaný I.tr. mastixový SMA 11 O  strednozrnný, po zhutnení hr. 40 mm - vozovka na moste","m2",313.2,null,0]
[null,null,"22040320","Kryty dláždené - schody z dlaždíc betónových"]
[null,null,"22040320.205_1","Schody z betónových blokov betón C 30/37, rozmer 200 x 500 x 750 mm  - do betónového lôžka C 25/30 vystuženého zváranou sieťou, s vyplnením škár - opora 1: 17 blokov, plocha 5,25 m2; opora 2: 17 blokov, plocha 5,25 m2","m2",10.5,null,0]
[null,null,"22040549","Kryty dláždené komunikácií z kameňa lomového"]
[null,null,"22040549.205_1","Dlažba z kameňa ukladaná do betónu - spevnenie svahu pri oporách a krajnice","m2",48,null,0]
[null,null,"22250979","Doplňujúce konštrukcie obrubníky kamenné"]
[null,null,"22250979.205_1","Osadenie obrubníka kamenného (žulového) s trnom kotveného do mostnej rímsy, vrátane lôžka z plastbetónu","m",73.599999999999994,null,0]
[null,null,"22250979.205_2","Dodanie obrubníka kamenného (žulového) ","m",73.599999999999994,null,0]
[null,null,"22250980","Doplňujúce konštrukcie obrubníky chodníkové"]
[null,null,"22250980.205_1","Osadenie a dodanie chodník. obrubníka betónového stojatého do lôžka z betónu prosteho s bočnou oporou - lemovanie schodov pri oporách a spevnenia svahu a krajnice","m",88,null,0]
[null,null,"22251085","Doplňujúce konštrukcie zálievka škár vozovky"]
[null,null,"22251085.205_1","Trvalo pružná zálievka škáry vozovka - obrubník s tesniacim profilom š. 20 mm hl. 40 mm, vrátane náteru na zlepšenie priľnavosti","m",73.599999999999994,null,0]
[null,null,"22251085.205_2","Pružná zálievka škáry vozovka - odvodňovač","m",4.8,null,0]
[null,null,"22251085.205_3","Pružná zálievka škáry vozovka - mostný záver","m",54.8,null,0]
[null,null,"22251161","Doplňujúce konštrukcie otvorené žľaby z betónových tvárnic"]
[null,null,"22251161.205_1","Žľab z betónových priekopových tvárnic šírky 500- 800 mm do betónu C 12/15; tvárnica priekopová typ TBM 1-60,  620x300x154,5(75) mm","m",24,null,0]
[null,null,"22251284","Doplňujúce konštrukcie kábelovody z rúr alebo dielcov plastových"]
[null,null,"22251284.205_1","Chránička káblov z rúr HDPE v mostnej rímse DN 100 mm","m",160,null,0]
[null,null,"22251784","Doplňujúce konštrukcie kábelové komory "]
[null,null,"22251784.205_1","Káblová kovová komora/šachta 650 x 650 mm, s poklopom - hmotnosť 64 kg, vrátane povrchovej úpravy","ks",2,null,0]
[null,null,"22251901","Doplňujúce konštrukcie rozptyľová šachta"]
[null,null,"22251901.205_1","Rozptyľová šachta z betónu C 25/30 - 1,5 x 1,5 m - zaústenie žľabu","ks",2,null,0]
[null,null,"45.26.14_61","Izolatérske práce"]
[null,null,"61010101","Izolácia proti vode a zemnej vlhkosti náterivami a tmelmi"]
[null,null,"61010101.205_1","Izolácia proti zemnej vlhkosti za studena = 1 x penetračný náter + 2x asfaltový náter - opory a krídla","m2",432.95,null,0]
[null,null,"61010101.205_2","Izolácia proti zemnej vlhkosti za studena = 1 x penetračný náter + 2x asfaltový náter - prechodové dosky","m2",120,null,0]
[null,null,"61010102","Izolácia proti vode a zemnej vlhkosti pásmi"]
[null,null,"61010102.205_1","Izolácia proti zemnej vlhkosti vodorovná pritavením asfaltového pásu - prekrytie vrubového kĺbu prechodovej dosky - šírka 1,0 m","m2",22.8,null,0]
[null,null,"61010102.205_2","Izolácia proti zemnej vlhkosti a tlakovej vode zvislá pritavením asfaltového pásu - pracovná škára na oporách - šírka 0,3 m","m2",6.84,null,0]
[null,null,"61010105","Izolácia proti vode a zemnej vlhkosti ochrannými a podkladnými textíliami"]
[null,null,"61010105.205_1","Plošná drenáž - 2 vrstvy drenážnej ochrannej geotextílie - rub opôr ","m2",72,null,0]
[null,null,"61010500","Izolácia mostoviek príprava povrchu"]
[null,null,"61010500.205_1","Obrokovanie povrchu mostovky pred zhotovením zapečaťujúcej vrstvy","m2",371.7,null,0]
[null,null,"61010501","Izolácia mostoviek náterivami a tmelmi"]
[null,null,"61010501.205_1","Zapečaťujúca vrstva  = kotviaco - impregnačný náter z epoxidovej živice s posypom kremičitým pieskom + uzatvárací náter z epoxidovej živice","m2",371.7,null,0]
[null,null,"61010502","Izolácia mostoviek pásmi"]
[null,null,"61010502.205_1","Izolácia cestných mostoviek nataviteľnými asfaltovými pásmi pre mosty","m2",453.4,null,0]
[null,null,"45.26.22_02","Práce špeciálneho zakladania"]
[null,null,"02010203","Zlepšovanie základovej pôdy lôžko pre trativody a vankúše pod základy kamenivo drvené"]
[null,null,"02010203.205_1","Vankúše zhutnené pod základy z kameniva hrubého drveného","m3",208,null,0]
[null,null,"02050132","Steny štetovnicové baranené kovové dielce"]
[null,null,"02050132.205_2","Steny baranené z oceľových štetovníc z terénu - zabaranenie na dľžku nad 10 m, vrátane dodania opätovne použiteľných oceľových štetovnicových profilov hmotnosti 116,2 t","m2",747,null,{"$f":"F1461*G1461","v":0}]
[null,null,"02050132.205_3","Vytiahnutie štetovnicových stien z oceľových štetovníc zabaranených do 2 rokov, nad 10m","m2",747,null,0]
[null,null,"02051232","Pomocná konštrukcia kovové dielce"]
[null,null,"02051232.205_1","Pomocná konštrukcia z ocele pre zvláštne zakladanie stavieb zhotovenie, vrátane dodania opätovne použiteľného materiálu","kpl.",1,null,0]
[null,null,"02051232.205_2","Pomocná konštrukcia z ocele pre zvláštne zakladanie stavieb odstránenie","kpl.",1,null,0]
[null,null,"45.26.22_25","Špeciálne studniarske práce"]
[null,null,"25020111","Studne betónové skruže celokruhové"]
[null,null,"25020111.205_1","Studňa z betónových skruží celokruhových DN 800 v stavebnej jame, vrátane čerpania vody","ks",2,null,0]
[null,null,"45.44.20_84","Práce maliarske, natieračské, tapetárske, metalizácia"]
[null,null,"84010807","Nátery omietky a betónové povrchy farba epoxidová"]
[null,null,"84010807.205_1","Náter betónu mosta epoxidový disperzný 2x ochranný - okraj dosky pri rímsach","m2",29.44,null,0]
[]
[null,null,null,"206-00  Most na ceste III/543 032 nad cestou I/68 a traťou ŽSR v km 4,622",null,null,null,{"$f":"SUM(H1474:H1696)","v":0}]
[null,null,"00040222","Požiadavky Objednávateľa - DSRS"]
[null,null,"00040222.206_1","DSRS","kpl",1,null,{"$f":"F1475*G1475","v":0}]
[null,null,"45.11.20_01","Zemné práce"]
[null,null,"01020101","Odkopávky a prekopávky humóznej vrstvy ornice"]
[null,null,"01020101.206_1","Odstránenie ornice s naložením, premiestnením na dočasné skládky a s uložením","m3",185,null,0]
[null,null,"01030101","Hĺbené vykopávky jám zapažených"]
[null,null,"01030101.206_1","Výkop zapaženej jamy pre základy medzi štetovnicami ","m3",421.7,null,0]
[null,null,"01030102","Hĺbené vykopávky jám nezapažených"]
[null,null,"01030102.206_1","Výkop nezapaženej jamy pre základy ","m3",630.70000000000005,null,0]
[null,null,"01040402","Konštrukcie z hornín zásypy so zhutnením"]
[null,null,"01040402.206_1","Zásyp sypaninou so zhutnením jám - vhodná zemina z výkopu","m3",812.4,null,0]
[null,null,"01060207","Premiestnenie vodorovné zemín schopných zúrodnenia"]
[null,null,"01060207.206_1","Vodorovné premiestnenie prebytočnej ornice, vrátane nakladania","m3",185,null,0]
[null,null,"01060208","Premiestnenie vodorovné výkopku na medziskládku"]
[null,null,"01060208.206_1","Vodorovné premiestnenie odkopávky/výkopku na medziskládku","m3",1052.4000000000001,null,{"$f":"F1488*G1488","v":0}]
[null,null,"45.22.11_11","Betonárske práce"]
[null,null,"11010202","Základy pätky betón železový"]
[null,null,"11010202.206_1","Základové pätky a bloky mostných konštrukcií z betónu železového tr. C 30/37","m3",189.75,null,0]
[null,null,"11010211","Základy pätky debnenie"]
[null,null,"11010211.206_1","Debnenie základových pätiek mostných konštrukcií  - zhotovenie","m2",102,null,0]
[null,null,"11010211.206_2","Debnenie základových pätiek mostných konštrukcií  - odstránenie","m2",102,null,0]
[null,null,"11010221","Základy pätky výstuž z betonárskej ocele"]
[null,null,"11010221.206_1","Výstuž základových pätiek a blokov z betonárskej ocele 10 505 mostných konštrukcií","t",19.111999999999998,null,0]
[null,null,"11050202","Zvislé konštrukcie inžinierskych stavieb opory betón železový"]
[null,null,"11050202.206_1","Mostné opory a úložné prahy z betónu železového tr. C 30/37","m3",181.27,null,0]
[null,null,"11050211","Zvislé konštrukcie inžinierskych stavieb opory debnenie"]
[null,null,"11050211.206_1","Debnenie mostných konštrukcií-opôr a úložných prahov výšky do 20 m, zhotovenie","m2",139.12,null,0]
[null,null,"11050211.206_2","Debnenie mostných konštrukcií-opôr a úložných prahov výšky do 20 m, odstránenie","m2",139.12,null,0]
[null,null,"11050221","Zvislé konštrukcie inžinierskych stavieb opory výstuž z betonárskej ocele"]
[null,null,"11050221.206_1","Výstuž drieku opôr a úložných prahov z betonárskej ocele B500B (10 505) mostných konštrukcií","t",22.314,null,0]
[null,null,"11050302","Zvislé konštrukcie inžinierskych stavieb krídla, steny betón železový"]
[null,null,"11050302.206_1","Mostné krídla a záverné stienky z betónu železového tr. C 30/37","m3",58.78,null,0]
[null,null,"11050311","Zvislé konštrukcie inžinierskych stavieb krídla, steny debnenie"]
[null,null,"11050311.206_1","Debnenie mostných konštrukcií-krídiel, stien výšky do 20 m, zhotovenie","m2",196.68,null,0]
[null,null,"11050311.206_2","Debnenie mostných konštrukcií-krídiel, stien výšky do 20 m, odstránenie","m2",196.68,null,0]
[null,null,"11050321","Zvislé konštrukcie inžinierskych stavieb krídla, steny výstuž z betonárskej ocele"]
[null,null,"11050321.206_1","Výstuž krídel a záverných stienok z betonárskej ocele B500B (10 505) mostných konštrukcií","t",4.7,null,0]
[null,null,"11050402","Zvislé konštrukcie inžinierskych stavieb stĺpy, podpery betón železový"]
[null,null,"11050402.206_1","Mostné piliere a stĺpy z betónu železového tr. C 30/37","m3",119.78,null,0]
[null,null,"11050411","Zvislé konštrukcie inžinierskych stavieb stĺpy, podpery debnenie "]
[null,null,"11050411.206_1","Debnenie mostných konštrukcií-stĺpov, výšky do 20 m, zhotovenie","m2",230.72,null,{"$f":"F1514*G1514","v":0}]
[null,null,"11050411.206_2","Debnenie mostných konštrukcií- stĺpov, výšky do 20 m,  odstránenie","m2",230.72,null,0]
[null,null,"11050421","Zvislé konštrukcie inžinierskych stavieb stĺpy,podpery výstuž z betonárskej ocele"]
[null,null,"11050421.206_1","Výstuž driekovpilierov ocele B500B (10 505) mostných konštrukcií","t",13.696999999999999,null,0]
[null,null,"11050502","Zvislé konštrukcie inžinierskych stavieb úložné prahy betón železový"]
[null,null,"11050502.206_1","Mostné úložné prahy pilierov z betónu železového tr. C 30/37","m3",58.2,null,0]
[null,null,"11050511","Zvislé konštrukcie inžinierskych stavieb úložné prahy debnenie "]
[null,null,"11050511.206_1","Debnenie mostných konštrukcií-úložných prahov výšky do 20 m, zhotovenie","m2",158.4,null,0]
[null,null,"11050511.206_2","Debnenie mostných konštrukcií-úložných prahov výšky do 20 m, odstránenie","m2",158.4,null,0]
[null,null,"11050521","Zvislé konštrukcie inžinierskych stavieb úložné prahy výstuž z betonárskej ocele"]
[null,null,"11050521.206_1","Výstuž úložných prahov pilierov z betonárskej ocele 10 505 mostných konštrukcií","t",15.473000000000001,null,0]
[null,null,"11050602","Zvislé konštrukcie inžinierskych stavieb rímsy betón železový"]
[null,null,"11050602.206_1","Mostové rímsy z betónu železového triedy C 35/45","m3",53.67,null,0]
[null,null,"11050611","Zvislé konštrukcie inžinierskych stavieb rímsy debnenie"]
[null,null,"11050611.206_1","Debnenie mostných ríms všetkých tvarov - zhotovenie ","m2",6.48,null,0]
[null,null,"11050611.206_2","Debnenie mostových ríms všetkých tvarov - odstránenie","m2",6.48,null,0]
[null,null,"11050621","Zvislé konštrukcie inžinierskych stavieb rímsy výstuž z betonárskej ocele"]
[null,null,"11050621.206_1","Výstuž mostných ríms z betonárskej ocele B505B (10 505)","t",5.6479999999999997,null,0]
[null,null,"11050802","Zvislé konštrukcie inžinierskych stavieb úložné bloky betón železový"]
[null,null,"11050802.206_1","Mostné úložné bloky ložísk z betónu železového tr. C 30/37","m3",7.92,null,0]
[null,null,"11050811","Zvislé konštrukcie inžinierskych stavieb úložné bloky debnenie "]
[null,null,"11050811.206_1","Debnenie úložného bloku ložiska zhotovenie a odstránenie","m2",58.1,null,0]
[null,null,"11050821","Zvislé konštrukcie inžinierskych stavieb úložné bloky výstuž z betonárskej ocele"]
[null,null,"11050821.206_1","Výstuž úložných blokov ložísk z betonárskej ocele 10 505 mostných konštrukcií","t",1.85,null,0]
[null,null,"11080102","Vodorovné nosné konštrukcie inžinierskych stavieb prechodové dosky betón železový"]
[null,null,"11080102.206_1","Mostné nosné konštrukcie doskové prechodové z betónu železového tr. C 25/30","m3",34.65,null,0]
[null,null,"11080202","Vodorovné nosné konštrukcie inžinierskych stavieb mostné dosky betón železový"]
[null,null,"11080202.206_1","Mostné nosné konštrukcie doskové z betónu železového tr. C 30/37 - spriahujúca doska","m3",173.26,null,0]
[null,null,"11080211","Vodorovné nosné konštrukcie inžinierskych stavieb mostné dosky debnenie"]
[null,null,"11080211.206_1","Debnenie boku prechodovej dosky konštrukcie mostov - zhotovenie","m2",20.86,null,0]
[null,null,"11080211.206_2","Debnenie boku prechodovej dosky konštrukcie mostov - odstránenie","m2",20.86,null,0]
[null,null,"11080211.206_3","Debnenie bočnej steny konštrukcie mostov výšky do 350 mm - zhotovenie","m2",33.880000000000003,null,0]
[null,null,"11080211.206_4","Debnenie bočnej steny konštrukcie mostov výšky do 350 mm - odstránenie","m2",33.880000000000003,null,0]
[null,null,"11080213","Vodorovné nosné konštrukcie inžinierskych stavieb mostné dosky debnenie zabudované"]
[null,null,"11080213.206_1","Stratené debnenie, mostná doska medzi prefabrikátmi  - dosky cementotrieskové ","kpl.",1,null,0]
[null,null,"11080221","Vodorovné nosné konštrukcie inžinierskych stavieb mostné dosky výstuž z betonárskej ocele"]
[null,null,"11080221.206_1","Výstuž prechodovej dosky mostných konštrukcií z betonárskej ocele B500B (10 505) ","t",3.3159999999999998,null,0]
[null,null,"11080221.206_2","Výstuž dosky mostných konštrukcií z betonárskej ocele B500B (10 505)","t",32.045999999999999,null,0]
[null,null,"11080402","Vodorovné nosné konštrukcie inžinierskych stavieb mostné nosníky betón železový"]
[null,null,"11080402.206_1","Betonáž priečnikov tyčových dielcov z betónu tr. C 30/37","m3",71.400000000000006,null,0]
[null,null,"11080411","Vodorovné nosné konštrukcie inžinierskych stavieb mostné nosníky debnenie"]
[null,null,"11080411.206_1","Debnenie spodné priečnika trámu - zhotovenie ","m2",51.1,null,0]
[null,null,"11080411.206_2","Debnenie spodné priečnika trámu - odstránenie","m2",51.1,null,0]
[null,null,"11080411.206_3","Debnenie steny priečnikov trámu - zhotovenie ","m2",12,null,0]
[null,null,"11080411.206_4","Debnenie steny priečnikov trámu - odstránenie","m2",12,null,0]
[null,null,"11080413","Vodorovné nosné konštrukcie inžinierskych stavieb mostné nosníky debnenie zabudované"]
[null,null,"11080413.206_1","Stratené debnenie priečnikov tyčových dielcov - dosky cementotrieskové ","kpl.",1,null,0]
[null,null,"11080413.206_2","Separačná a dilatačná vložka - medziľahlé priečniky","m2",57.6,null,0]
[null,null,"11080421","Vodorovné nosné konštrukcie inžinierskych stavieb mostné nosníky výstuž z betonárskej ocele"]
[null,null,"11080421.206_1","Výstuž priečnikov tyčových dielcov mostných konštrukcií z betonárskej ocele B500B (10 505) ","t",6.6909999999999998,null,0]
[null,null,"11200101","Podkladné konštrukcie podkladné vrstvy betón prostý"]
[null,null,"11200101.206_1","Podkladová  vrstva z betónu tr. C 12/15 - podkladný betón  pre opory a krídla, hr. 150 mm - plocha = 99,0 m2","m3",14.85,null,0]
[null,null,"11200101.206_2","Podkladová vrstva z betónu tr. C 12/15 - podkladný betón pre prechodové dosky, hr. 100 mm - plocha = 104,0 m2","m3",10.4,null,0]
[null,null,"11200101.206_3","Podkladová vrstva z betónu tr. C 12/15 - podkladný betón pre základové bloky pilierov, hr. 150 mm - plocha = 126,5 m2","m3",18.975000000000001,null,0]
[null,null,"45.22.11_15","Montáže prefabrikovaných konštrukcií"]
[null,null,"15020402","Rímsy dielce železobetonové"]
[null,null,"15020402.206_1","Osadenie - Mostné rímsové  prefabrikované železobetónové lícne panely betón C 35/45 s kotvením dĺžky do 2 m ","ks",86,null,0]
[null,null,"15020402.206_2","Dodanie - Mostné rímsové  železobetónové  prefabrikované lícne panely betón C 35/45; hrúbka 150 mm, výška 700 mm - dĺžky prefabrikátov podľa projektu, celková dĺžka = 442,80 m","ks",86,null,0]
[null,null,"15080202","Vodorovné nosné konštr.pre mostné stavby nosníky dielce železobetonové"]
[null,null,"15080202.206_1","Osadenie - Mostný prefabrikovaný predpätý nosník v celku hm. nad 25 do 40 t","ks",33,null,0]
[null,null,"15080202.206_2","Dodanie - Mostný prefabrikovaný vopred predpätý nosník betón C50/60, v celku hm. nad 25 do 40 t - dĺžka 30 m, stavebná výška 1,4 m","ks",11,null,0]
[null,null,"15080202.206_3","Dodanie - Mostný prefabrikovaný vopred predpätý nosník betón C50/60, v celku hm. nad 25 do 40 t - dĺžka 21 m, stavebná výška 1,4 m","ks",22,null,0]
[null,null,"45.22.11_21","Špeciálne práce pri výstavbe mostov"]
[null,null,"21080407","Vodorovné nosné konštrukcie kĺby a ložiská elastomerové a gumené"]
[null,null,"21080407.206_1","Osadenie - Mostné ložisko elastomerové nekotvené 200 x 300 mm","ks",66,null,{"$f":"F1578*G1578","v":0}]
[null,null,"21080407.206_2","Dodanie - Mostné ložisko elastomerové nekotvené  200 x 300 mm - špecifikácia podľa projektu","ks",66,null,0]
[null,null,"21080407.206_3","Podkladová vrstva z plastmalty - podliatie ložísk hr. do 10 mm - parametre podľa projektu","m2",7.92,null,0]
[null,null,"21080409","Vodorovné nosné konštrukcie kĺby a ložiská kĺb zo železobetónu"]
[null,null,"21080409.206_1","Zhotovenie vrubového kĺbu prechodovej dosky - osadenie polystyrénu, ochranný povlak výstuže - metalizácia zinkom máčaním,  tmelenie škáry vrubu","m",19.8,null,0]
[null,null,"21200116","Podkladné a vedľajšie konštrukcie výplň za oporami a protimrazové kliny zo štrkopiesku"]
[null,null,"21200116.206_1","Výplňové kliny a ochranný zásyp za oporou z kameniva drveného hutneného po vrstvách ","m3",107.2,null,0]
[null,null,"21200117","Podkladné a vedľajšie konštrukcie výplň za oporami a protimrazové kliny z ílu"]
[null,null,"21200117.206_1","Zhotovenie výplne tesniacej vrstvy za oporou z ílu, vrátane dodania špeciálnej upravenej zeminy","m3",32,null,0]
[null,null,"21210419","Spevnené plochy - dlažba pri oporách"]
[null,null,"21210419.206_1","Spevnenie obsypových kužeľov kamennou dlažbou z lomového kameňa hr. 150 mm do betónového lôžka hr. 100 mm so škárovaním cementovou maltou, vrátane ukončovacej betónovej pätky 600 x 600 mm","m2",1181.2,null,0]
[null,null,"21250106","Doplňujúce konštrukcie zvodidlá oceľové"]
[null,null,"21250106.206_1","Zvodidlo oceľové zábradlové úroveň zachytenia H2 kotvené do rímsy","m",169.2,null,0]
[null,null,"21250202","Doplňujúce konštrukcie zábradlia kompozitné"]
[null,null,"21250202.206_1","Osadenie kompozitného zábradlia na schody pri oporách chemickými kotvami","m",31.7,null,{"$f":"F1592*G1592","v":0}]
[null,null,"21250202.206_2","Dodanie kompozitného zábradlia na schody pri oporách - 1 ks dĺžky 18,6 m; 1 ks dĺžky 13,1 m","m",31.7,null,0]
[null,null,"21250206","Doplňujúce konštrukcie zábradlia oceľové"]
[null,null,"21250206.206_1","Osadenie mostného oceľového zábradlia trvalého do ríms lepenými kotvami M 12/200 do vŕtaných otvorov priemeru 16/160 na plastmaltu","m",82.4,null,0]
[null,null,"21250206.206_2","Dodanie mostného oceľového zábradlia so zvislou výplňou - celková hmotnosť 4561 kg, vrátane protikoróznej ochrany a náterov","m",82.4,null,0]
[null,null,"21250320","Doplňujúce konštrukcie odvodnenie mostov odvodňovače"]
[null,null,"21250320.206_1","Mostná vpusť/mostný odvodňovač 300/500 mm, zvislý odtok DN 150, vrátane predlžovacej tvarovky","ks",5,null,0]
[null,null,"21250323","Doplňujúce konštrukcie odvodnenie izolácie mostov"]
[null,null,"21250323.206_1","Nerezový odvodňovač izolácie mostovky osadený do plastbetónu - tvarovka DN 50, dĺžka 1800 mm","ks",5,null,0]
[null,null,"21250331","Doplňujúce konštrukcie odvodnenie mostnej opory"]
[null,null,"21250331.206_1","Odvodnenie mostnej opory - žľab úložného prahu z plastových rúr DN 100","m",24.4,null,0]
[null,null,"21250331.206_2","Odvodnenie mostnej opory - drenážne plastové potrubie HDPE DN 160 obalené filtračnou geotextíliou sa zriadením drenážneho obsypu","m",32,null,0]
[null,null,"21250341","Doplňujúce konštrukcie odvodnenie mostov drenážny kanálik"]
[null,null,"21250341.206_1","Podkladová vrstva plastbetónová drenážna na moste - kanálik 100 x 45 mm - dĺžka 223 m","m3",1.0035000000000001,null,0]
[null,null,"21250424","Doplňujúce konštrukcie tesnenie škár"]
[null,null,"21250424.206_1","Tesnenie pracovnej škáry betónovej konštrukcie silikónovým tmelom - opora trvalo pružný silikónový tmel odolný voči UV žiareniu ","m",24,null,0]
[null,null,"21250424.206_2","Tesnenie pracovnej škáry betónovej konštrukcie silikónovým tmelom - rímsa trvalo pružný silikónový tmel odolný voči UV žiareniu  a chloridom","m",183.2,null,0]
[null,null,"21250426","Doplňujúce konštrukcie dilatačné zariadenia mostné závery povrchové"]
[null,null,"21250426.206_1","Osadenie - Mostný záver povrchový s protihlukovou úpravou - celkový dilatačný pohyb 160 mm","m",24.2,null,0]
[null,null,"21250426.206_2","Dodanie - Mostný záver povrchový s protihlukovou úpravou - celkový dilatačný pohyb 160 mm","m",24.2,null,0]
[null,null,"21250528","Doplňujúce konštrukcie mostné zábrany a ochrany protidotykové zábrany"]
[null,null,"21250528.206_1","Osadenie - Ochranná protidotyková zábrana z kovovej tkaniny s rámom; na rímse R1 s doplnkovou kotevnou konštrukciou","m2",24,null,0]
[null,null,"21250528.206_2","Dodanie - Konštrukcia protidotykovej zábrany podľa projektu: Panely 1 x 2 m - 12 ks - celkom 840 kg;  kotevná konštrukcia - celkom 132 kg, vrátane povrchovej protikoróznej ochrany a náterov","kg",972,null,0]
[null,null,"21250535","Doplňujúce konštrukcie uzemnenie"]
[null,null,"21250535.206_1","Uzemňovacie vedenie na moste FeZn - uzemňovací drôt, vrátane príslušenstva","m",265,null,0]
[null,null,"21250833","Doplňujúce konštrukcie zaťažovacie skúšky statické"]
[null,null,"21250833.206_1","Zaťažovacia skúška statická, vrátane zaťažovacích prostriedkov a vypracovania projektu zaťažovacej skúšky","kpl",1,null,0]
[null,null,"21250906","Doplňujúce konštrukcie drobné zariadenia oceľové"]
[null,null,"21250906.206_1","Kotvenie monolitického betónu rímsy do mostovky kotvou do vývrtu - lepená kotva podľa projektu, vrátane dodania","ks",240,null,0]
[null,null,"21250907","Doplňujúce konštrukcie sledovanie deformácií"]
[null,null,"21250907.206_1","Osadenie meracích značiek, vzťažných a pozorovacích bodov pre sledovanie trvalých deformácií; spolu 34 značiek a 4 body","kpl",1,null,0]
[null,null,"21251006","Doplňujúce konštrukcie podperné konštrukcie mostov "]
[null,null,"21251006.206_1","Podperné konštrukcie dočasné, zriadenie, používanie, odstránenie - typ systému a množstvo podľa spresnenia zhotoviteľa","kpl",1,null,0]
[null,null,"45.23.31_22","Práce na pozemných komunikáciach a letiskách"]
[null,null,"22030640","Podkladné a krycie vrstvy z asfaltových zmesí bitúmenové vrstvy asfaltový betón"]
[null,null,"22030640.206_1","Asfaltový betón vrstva obrusná AC 11 O z modifik. asfaltu tr. I, po zhutnení hr. 45 mm - vozovka na moste","m2",720.7,null,0]
[null,null,"22030641","Podkladné a krycie vrstvy z asfaltových zmesí bitúmenové vrstvy asfaltový koberec mastixový"]
[null,null,"22030641.206_1","Koberec asfaltový modifikovaný I.tr. mastixový SMA 11 O  strednozrnný, po zhutnení hr. 40 mm - vozovka na moste","m2",720.7,null,0]
[null,null,"22040145","Kryty dláždené komunikácií prefabrikované panely cestné"]
[null,null,"22040145.206_1","Zhotovenie a odstránenie spevnenej plochy z cestných panelov osadených do lôžka z kameniva hr. 150 mm","m2",360,null,0]
[null,null,"22040320","Kryty dláždené - schody z dlaždíc betónových"]
[null,null,"22040320.206_1","Schody z betónových blokov betón C 30/37, rozmer 200 x 500 x 750 mm  - do betónového lôžka C 25/30 vystuženého zváranou sieťou, s vyplnením škár - opora 1: 54 blokov, plocha 16,5 m2; opora 4: 39 blokov, plocha 12,3 m2","m2",22.8,null,0]
[null,null,"22040549","Kryty dláždené komunikácií z kameňa lomového"]
[null,null,"22040549.206_1","Dlažba z kameňa ukladaná do betónu - spevnenie svahu pri oporách a krajnice","m2",36,null,0]
[null,null,"22250979","Doplňujúce konštrukcie obrubníky kamenné"]
[null,null,"22250979.206_1","Osadenie obrubníka kamenného (žulového) s trnom kotveného do mostnej rímsy, vrátane lôžka z plastbetónu","m",165.2,null,0]
[null,null,"22250979.206_2","Dodanie obrubníka kamenného (žulového) ","m",165.2,null,0]
[null,null,"22250980","Doplňujúce konštrukcie obrubníky chodníkové"]
[null,null,"22250980.206_1","Osadenie a dodanie chodník. obrubníka betónového stojatého do lôžka z betónu prosteho s bočnou oporou - lemovanie schodov pri oporách a spevnenia svahu a krajnice","m",108,null,0]
[null,null,"22251085","Doplňujúce konštrukcie zálievka škár vozovky"]
[null,null,"22251083.206_1","Trvalo pružná zálievka škáry vozovka - obrubník s tesniacim profilom š. 20 mm hl. 40 mm, vrátane náteru na zlepšenie priľnavosti","m",165.2,null,0]
[null,null,"22251083.206_2","Pružná zálievka škáry vozovka - odvodňovač","m",8,null,0]
[null,null,"22251083.206_3","Pružná zálievka škáry vozovka - mostný záver","m",48.4,null,0]
[null,null,"22251161","Doplňujúce konštrukcie otvorené žľaby z betónových tvárnic"]
[null,null,"22251161.206_1","Žľab z betónových priekopových tvárnic šírky 500- 800 mm do betónu C 12/15; tvárnica priekopová typ TBM 1-60,  620x300x154,5(75) mm","m",46.8,null,0]
[null,null,"22251284","Doplňujúce konštrukcie kábelovody z rúr alebo dielcov plastových"]
[null,null,"22251284.206_1","Chránička káblov z rúr HDPE v mostnej rímse DN 100 mm","m",332,null,0]
[null,null,"22251784","Doplňujúce konštrukcie kábelové komory "]
[null,null,"22251784.206_1","Káblová kovová komora/šachta 650 x 650 mm, s poklopom - hmotnosť 64 kg, vrátane povrchovej úpravy","ks",2,null,0]
[null,null,"22251901","Doplňujúce konštrukcie rozptyľová šachta"]
[null,null,"22251901.206_1","Rozptyľová šachta z betónu C 25/30 - 1,5 x 1,5 m - zaústenie žľabu","ks",2,null,{"$f":"F1652*G1652","v":0}]
[null,null,"45.26.14_61","Izolatérske práce"]
[null,null,"61010101","Izolácia proti vode a zemnej vlhkosti náterivami a tmelmi"]
[null,null,"61010101.206_1","Izolácia proti zemnej vlhkosti za studena = 1 x penetračný náter + 2x asfaltový náter - opory a krídla","m2",217.2,null,0]
[null,null,"61010101.206_2","Izolácia proti zemnej vlhkosti za studena = 1 x penetračný náter + 2x asfaltový náter - prechodové dosky","m2",121,null,0]
[null,null,"61010101.206_3","Izolácia proti zemnej vlhkosti za studena = 1 x penetračný náter + 2x asfaltový náter - základové bloky pilierov","m2",228.5,null,0]
[null,null,"61010101.206_4","Izolácia proti zemnej vlhkosti za studena = 1 x penetračný náter + 2x asfaltový náter - piliere","m2",33.6,null,0]
[null,null,"61010102","Izolácia proti vode a zemnej vlhkosti pásmi"]
[null,null,"61010102.206_1","Izolácia proti zemnej vlhkosti vodorovná pritavením asfaltového pásu - prekrytie vrubového kĺbu prechodovej dosky - šírka  1,0 m","m2",19.8,null,0]
[null,null,"61010102.206_2","Izolácia proti zemnej vlhkosti a tlakovej vode zvislá pritavením asfaltového pásu - pracovná škára na oporách - šírka 0,3 m","m2",7.2,null,0]
[null,null,"61010102.206_3","Izolácia proti zemnej vlhkosti a tlakovej vode pritavením asfaltového pásu - styk piliera a základového bloku - šírka 0,33 m, vrátane fabiónu zo sanačnej malty","m2",11.88,null,0]
[null,null,"61010500","Izolácia mostoviek príprava povrchu"]
[null,null,"61010500.206_1","Obrokovanie povrchu mostovky pred zhotovením zapečaťujúcej vrstvy","m2",866.3,null,0]
[null,null,"61010501","Izolácia mostoviek náterivami a tmelmi"]
[null,null,"61010501.206_1","Zapečaťujúca vrstva  = kotviaco - impregnačný náter z epoxidovej živice s posypom kremičitým pieskom + uzatvárací náter z epoxidovej živice","m2",866.3,null,0]
[null,null,"61010502","Izolácia mostoviek pásmi"]
[null,null,"61010502.206_1","Izolácia cestných mostoviek nataviteľnými asfaltovými pásmi pre mosty","m2",1084.7,null,0]
[null,null,"45.26.22_02","Práce špeciálneho zakladania"]
[null,null,"02020673","Vrty pre pilóty"]
[null,null,"02020673.206_1","Vrty pre pilóty zapažené zvislé, priemer 1220 mm - 7 kusov,  hĺbka 17 m","m",119,null,0]
[null,null,"02020673.206_2","Vrty pre pilóty zapažené zvislé, priemer 1220 mm - 7 kusov,  hĺbka 20 m","m",140,null,0]
[null,null,"02020673.206_3","Vrty pre pilóty zapažené zvislé, priemer 1220 mm - 2x14 kusov,  hĺbka 12 m","m",336,null,0]
[null,null,"02040222","Pilóty betónované na mieste s vytiahnutím pažnice beton železový"]
[null,null,"02040222.206_1","Výplň pilót zvislých zapažených z betónu železového C 25/30, priemer pilóty 1220 mm - dĺžka 17,0+0,50 m; 1 pilóta = 20,446 m3; počet pilót = 7 ks,  vrátane odbúrania znehodnotenej časti 0,50 m ","m3",143.12200000000001,null,0]
[null,null,"02040222.206_2","Výplň pilót zvislých zapažených z betónu železového C 25/30, priemer pilóty 1220 mm - dĺžka 20,0+0,50 m; 1 pilóta = 23,951 m3; počet pilót = 7 ks,  vrátane odbúrania znehodnotenej časti 0,50 m ","m3",167.65700000000001,null,0]
[null,null,"02040222.206_3","Výplň pilót zvislých zapažených z betónu železového C 25/30, priemer pilóty 1220 mm - dĺžka 12,0+0,50 m; 1 pilóta = 14,604 m3; počet pilót = 28 ks,  vrátane odbúrania znehodnotenej časti 0,50 m ","m3",408.91199999999998,null,0]
[null,null,"02040223","Pilóty betónované na mieste s vytiahnutím pažnice betonárska výstuž"]
[null,null,"02040223.206_1","Výstuž pilót betónovaných do zeme, s vytiahnutím pažnice, z ocele B500B (10 505) - 2,018 t pre 1 pilótu dĺ. 17 m; počet pilót 7 ks","t",14.125999999999999,null,0]
[null,null,"02040223.206_2","Výstuž pilót betónovaných do zeme, s vytiahnutím pažnice, z ocele B500B (10 505) - 2,332 t pre 1 pilótu dĺ. 20 m; počet pilót 7 ks","t",16.324000000000002,null,0]
[null,null,"02040223.206_3","Výstuž pilót betónovaných do zeme, s vytiahnutím pažnice, z ocele B500B (10 505) - 1,495 t pre 1 pilótu dĺ. 12 m; počet pilót 28 ks","t",41.86,null,0]
[null,null,"02040230","Pilóty betónované na mieste s vytiahnutím pažnice zaťažovacia skúška"]
[null,null,"02040230.206_1","Zaťažovacia skúška pilóty na overenie projektom predpísanej únosnosti - 1 ks pod každým základom","ks",4,null,0]
[null,null,"02050132","Steny štetovnicové baranené kovové dielce"]
[null,null,"02050132.206_2","Steny baranené z oceľových štetovníc z terénu - zabaranenie na dľžku nad 10 m, vrátane prenájmu oceľových štetovnicových profilov hmotnosti 110,825 t","m2",715,null,0]
[null,null,"02050132.206_3","Vytiahnutie štetovnicových stien z oceľových štetovníc zabaranených do 2 rokov, nad 10m","m2",715,null,0]
[null,null,"02051232","Pomocná konštrukcia kovové dielce"]
[null,null,"02051232.206_1","Pomocná konštrukcia z ocele pre zvláštne zakladanie stavieb zhotovenie, vrátane dodania opätovne použiteľného materiálu","kpl.",1,null,0]
[null,null,"02051232.206_2","Pomocná konštrukcia z ocele pre zvláštne zakladanie stavieb odstránenie","kpl.",1,null,0]
[null,null,"45.26.22_25","Špeciálne studniarske práce"]
[null,null,"25020111","Studne betónové skruže celokruhové"]
[null,null,"25020111.206_1","Studňa z betónových skruží celokruhových DN 800 v stavebnej jame, vrátane čerpania vody","ks",2,null,0]
[null,null,"45.44.20_84","Práce maliarske, natieračské, tapetárske, metalizácia"]
[null,null,"84010807","Nátery omietky a betónové povrchy farba epoxidová"]
[null,null,"84010807.206_1","Náter betónu mosta epoxidový disperzný 2x ochranný - okraj dosky pri rímsach","m2",66.08,null,0]
[]
[null,null,null,"230-00  Úprava rieky Poprad",null,null,null,{"$f":"SUM(H1698:H1715)","v":0}]
[null,null,"00040222","Požiadavky Objednávateľa - DSRS"]
[null,null,"00040222.230_1","DSRS","kpl",1,null,{"$f":"F1699*G1699","v":0}]
[null,null,"45.11.20_01","Zemné práce"]
[null,null,"01020300","Odkopávky a prekopávky - v zemníkoch - nákup a dovoz vhodnej zeminy"]
[null,null,"01020300.230_1","Výkop v zemníku na suchu v hornine 3 až 4 , nákup a dovoz vhodnej zeminy","m3",4440.25,null,0]
[null,null,"01020600","Odkopávky a prekopávky - Korýt vodotokov"]
[null,null,"01020600.230_1","Vykopávky pre korytá vodotokov s naložením na dopravný prostriedok , vrátane hutnenia pláne v záreze a úpravy trvalých svahov v záreze","m3",19014.25,null,0]
[null,null,"01020600.230_2","Odstránenie štrkového nánosu s naložením na dopravný prostriedok - plocha 14 187 m2, priemerná hrúbka 0,5 m","m3",7093.5,null,0]
[null,null,"01040202","Konštrukcie z hornín násypy so zhutnením"]
[null,null,"01040202.230_1","Uloženie sypaniny do násypu nesúdržných a súdržných hornín s predpísanou mierou zhutnenia, vrátane hutnenia pláne a úpravy trvalých svahov násypov","m3",21056,null,{"$f":"F1707*G1707","v":0}]
[null,null,"01040702","Konštrukcie z hornín hrádze so zhutnením"]
[null,null,"01040702.230_1","Zemné hrádze - zhutnený vrstvený násyp z horniny 1-4, vrátane hutnenia pláne a úpravy trvalých svahov násypov","m3",9492,null,0]
[null,null,"01060208","Premiestnenie vodorovné výkopku na medziskládku"]
[null,null,"01060208.230_1","Vodorovné premiestnenie odkopávky/výkopku na medziskládku","m3",26107.75,null,0]
[null,null,"45.24.70_31","Hydromelioračné práce"]
[null,null,"31210103","Spevnené plochy zahádzky lomový kameň"]
[null,null,"31210103.230_1","Zahádzka z lomového kameňa, hmotnosť jednotlivých kameňov nad 200 kg bez výplne medzier; s urovnaním líca zahádzky ","m3",12272,null,0]
[]
[null,null,null,"231-00  Úprava potoka Ľubovnianka",null,null,null,{"$f":"SUM(H1717:H1744)","v":0}]
[null,null,"00040222","Požiadavky Objednávateľa - DSRS"]
[null,null,"00040222.231_1","DSRS","kpl",1,null,{"$f":"F1718*G1718","v":0}]
[null,null,"45.11.20_01","Zemné práce"]
[null,null,"01020101","Odkopávky a prekopávky humóznej vrstvy ornice"]
[null,null,"01020101.231_1","Odstránenie ornice s naložením, premiestnením na dočasné skládky a s uložením","m3",210.5,null,0]
[null,null,"01020600","Odkopávky a prekopávky - Korýt vodotokov"]
[null,null,"01020600.231_1","Vykopávky pre korytá vodotokov s naložením na dopravný prostriedok, vrátane hutnenia pláne v záreze a úpravy trvalých svahov v záreze ","m3",1333.37,null,0]
[null,null,"01030202","Hĺbené vykopávky rýh š nad 600 mm"]
[null,null,"01030202.231_1","Výkop ryhy pre obtok s naložením výkopu na dopravný prostriedok ","m3",915.3,null,{"$f":"F1725*G1725","v":0}]
[null,null,"01040202","Konštrukcie z hornín násypy so zhutnením"]
[null,null,"01040202.231_1","Uloženie sypaniny do násypu nesúdržných a súdržných hornín s predpísanou mierou zhutnenia, vrátane hutnenia pláne a úpravy trvalých svahov násypov","m3",595.97,null,0]
[null,null,"01040402","Konštrukcie z hornín zásypy so zhutnením"]
[null,null,"01040402.231_1","Zásyp ryhy pre obtok","m3",915.3,null,0]
[null,null,"01060208","Premiestnenie vodorovné výkopku na medziskládku"]
[null,null,"01060208.231_1","Vodorovné premiestnenie odkopávky/výkopku na medziskládku","m3",2248.67,null,0]
[null,null,"45.11.23_01","Zemné práce"]
[null,null,"01080501","Povrchové úpravy terénu úpravy povrchov rozprestretím ornice"]
[null,null,"01080501.231_1","Rozprestretie ornice, hrúbka 200 mm, vrátane dovozu z medziskládky - objem 210,5 m3","m2",1052.5,null,0]
[null,null,"01080503","Povrchové úpravy terénu úpravy povrchov založením trávnika"]
[null,null,"01080503.231_1","Výsev trávniku hydroosevom na ornicu, vrátane trávneho semena a  prípravy pôdy pred výsevom","m2",1052.5,null,0]
[null,null,"45.24.70_31","Hydromelioračné práce"]
[null,null,"31210103","Spevnené plochy zahádzky lomový kameň"]
[null,null,"31210103.231_1","Zahádzka z lomového kameňa, hmotnosť jednotlivých kameňov od 80 do 200 kg bez výplne medzier; s urovnaním líca zahádzky ","m3",247.17,null,{"$f":"F1739*G1739","v":0}]
[null,null,"31210103.231_2","Zahádzka z lomového kameňa, hmotnosť jednotlivých kameňov od 200 do 300 kg bez výplne medzier; s urovnaním líca zahádzky ","m3",325.5,null,0]
[null,null,"31210103.231_3","Zahádzka z lomového kameňa, hmotnosť jednotlivých kameňov od 300 do 500 kg bez výplne medzier; s urovnaním líca zahádzky ","m3",478.94,null,0]
[null,null,"31210305","Spevnené plochy lomový kameň do betónu"]
[null,null,"31210305.231_1","Lomový kameň ukladaný do čerstvého betónu s vyškárovaním","m3",118.8,null,0]
[]
[null,null,null,"232-00  Úprava potoka Jasenok",null,null,null,{"$f":"SUM(H1746:H1795)","v":0}]
[null,null,"00040222","Požiadavky Objednávateľa - DSRS"]
[null,null,"00040222.232_1","DSRS","kpl",1,null,{"$f":"F1747*G1747","v":0}]
[null,null,"45.11.20_01","Zemné práce"]
[null,null,"01020101","Odkopávky a prekopávky humóznej vrstvy ornice"]
[null,null,"01020101.232_1","Odstránenie ornice s naložením, premiestnením na dočasné skládky a s uložením","m3",418,null,0]
[null,null,"01020600","Odkopávky a prekopávky - Korýt vodotokov"]
[null,null,"01020600.232_1","Čistenie otvorených korýt vodotokov s naložením na dopravný prostriedok - plocha 63 m2, priemerná hr. 0,50 m","m3",31.5,null,0]
[null,null,"01020600.232_2","Vykopávky pre korytá vodotokov s naložením na dopravný prostriedok, vrátane hutnenia pláne v záreze a úpravy trvalých svahov v záreze ","m3",1329,null,0]
[null,null,"01030202","Hĺbené vykopávky rýh š nad 600 mm"]
[null,null,"01030202.232_1","Výkop ryhy šírky 600-2000 mm s naložením výkopu na dopravný prostriedok ","m3",137,null,{"$f":"F1755*G1755","v":0}]
[null,null,"01040202","Konštrukcie z hornín násypy so zhutnením"]
[null,null,"01040202.232_1","Uloženie sypaniny do násypu nesúdržných a súdržných hornín s predpísanou mierou zhutnenia, vrátane hutnenia pláne a úpravy trvalých svahov násypov","m3",893.5,null,{"$f":"F1757*G1757","v":0}]
[null,null,"01040702","Konštrukcie z hornín hrádze so zhutnením"]
[null,null,"01040702.232_1","Zemné hrádze - dočasné prehradenie, vrátane odstránenia","m3",14,null,0]
[null,null,"01060208","Premiestnenie vodorovné výkopku na medziskládku"]
[null,null,"01060208.232_1","Vodorovné premiestnenie odkopávky/výkopku na medziskládku","m3",1497.5,null,0]
[null,null,"45.11.23_01","Zemné práce"]
[null,null,"01080501","Povrchové úpravy terénu úpravy povrchov rozprestretím ornice"]
[null,null,"01080501.232_1","Rozprestretie ornice, hrúbka 200 mm, vrátane dovozu z medziskládky - objem 418,00 m3","m2",2090,null,0]
[null,null,"01080503","Povrchové úpravy terénu úpravy povrchov založením trávnika"]
[null,null,"01080503.232_1","Výsev trávniku hydroosevom na ornicu, vrátane trávneho semena a prípravy pôdy pred výsevom","m2",2090,null,0]
[null,null,"45.23.13_11","Betonárske práce"]
[null,null,"11251101","Doplňujúce konštrukcie výustný objekt kanalizácie"]
[null,null,"11251101.232_1","Výustný objekt kanalizácie DN 400 z betónu vystuženého tr. C 25/30, vrátane debnenia a zváranej siete, prúty priemeru 8 mm","kpl",1,null,0]
[null,null,"45.23.13_27","Montážne práce na plynovodoch, vodovodoch, kanalizáciach"]
[null,null,"27030421","Kanalizácie rúry plastové PE, PP"]
[null,null,"27030421.232_1","Dočasný obtok - plastové potrubie DN 800, zriadenie a odstránenie","m",46.7,null,0]
[null,null,"27030422","Kanalizácie rúry plastové PVC"]
[null,null,"27030422.232_1","Kanalizačná PVC-U korugovaná rúra DN 400 - úprava vyústenia","m",1.65,null,0]
[null,null,"27031174","Kanalizácie ostatné konštrukcie armatúry"]
[null,null,"27031174.232_1","Spätná klapka DN 400","ks",1,null,0]
[null,null,"45.24.70_11","Betonárske práce"]
[null,null,"11010101","Základy pásy betón prostý"]
[null,null,"11010101.232_1","Základové pásy, prahy z betónu prostého tr. C 25/30 - zaisťovacie prahy","m3",17.27,null,0]
[null,null,"11010111","Základy pásy debnenie tradičné"]
[null,null,"11010111.232_1","Debnenie stien základových pásov, zhotovenie a odstránenie","m2",125,null,0]
[null,null,"45.24.70_31","Hydromelioračné práce"]
[null,null,"31200101","Podkladné konštrukcie pod dlažbu štrkopiesok"]
[null,null,"31200101.232_1","Pokladová vrstva z kameniva , hr. 100 mm - pre polovegetačné tvárnice a brehové pätky - plocha 1956,50 m2","m3",195.65,null,{"$f":"F1784*G1784","v":0}]
[null,null,"31200308","Podkladné konštrukcie zaisťovací prah, pätka betónové dielce"]
[null,null,"31200308.232_1","Brehová pätka z prefabrikovaných dielcov - tvárnica TBM - 500 x 500 x 1200 mm - hmotnosť 690 kg ","ks",780,null,0]
[null,null,"31210303","Spevnené plochy dlažby lomový kameň"]
[null,null,"31210303.232_1","Dlažba z lomového kameňa kladená do malty s vyplnením škár maltou MC 10 hrúbka 200mm - úprava pri výustnom objekte - 17,50 m2","m3",3.5,null,0]
[null,null,"31210303.232_2","Dlažba z lomového kameňa kladená do malty s vyplnením škár maltou MC 10 hrúbka 150-250mm - obklad zaisťovacích prahov - 31,40 m2","m3",7.85,null,0]
[null,null,"31210305","Spevnené plochy lomový kameň do betónu"]
[null,null,"31210305.232_1","Kamenná rovnanina hr. 200 mm ukladaná do betónového lôžka hr. 100 mm s vyškárovaním - plocha = 90 m2, objem kameňa = 18 m3; objem betónu = 9 m3","m3",27,null,0]
[null,null,"31210308","Spevnené plochy dlažby betónové dielce, tvárnice"]
[null,null,"31210308.232_1","Dlažba z bet. dosiek a tvárnic na sucho s vyplnením škár pieskom - polovegetačné tvárnice IZT 131/10 - 600 x 1200 x 140 mm - hmotnosť 1 ks = 158 ","m2",1494,null,0]
[null,null,"31210308.232_2","Výplne vyľahčených a dierovaných tvárnic na plochách vodorovných i na svahu štrkom","m2",1494,null,0]
[]
[null,null,null,"233-00  Úprava potoka Šambronka",null,null,null,{"$f":"SUM(H1797:H1847)","v":0}]
[null,null,"00040222","Požiadavky Objednávateľa - DSRS"]
[null,null,"00040222.233_1","DSRS","kpl",1,null,{"$f":"F1798*G1798","v":0}]
[null,null,"45.11.11_05","Búracie práce a demolácie"]
[null,null,"05010107","Búranie konštrukcií vodných stavieb betónové a železobetónové"]
[null,null,"05010107.233_1","Búranie konštrukcií vodných stavieb z betónu alebo železobetónu","m3",135.69999999999999,null,0]
[null,null,"05080200","Doprava vybúraných hmôt a sutiny - na skládku - vrátane poplatkov"]
[null,null,"05080200.233_1","Vodorovná doprava sutiny a vybúraných hmôt na skládku, vrátane poplatkov za uskladnenie","t",325.68,null,0]
[null,null,"45.11.20_01","Zemné práce"]
[null,null,"01020600","Odkopávky a prekopávky - Korýt vodotokov"]
[null,null,"01020600.233_1","Čistenie otvorených korýt vodotokov s naložením na dopravný prostriedok - plocha 450 m2, priemerná hr. 0,3 m","m3",135,null,0]
[null,null,"01020600.233_2","Vykopávky pre korytá vodotokov s naložením na dopravný prostriedok, vrátane hutnenia pláne v záreze a úpravy trvalých svahov v záreze ","m3",1364.3,null,{"$f":"F1807*G1807","v":0}]
[null,null,"01040202","Konštrukcie z hornín násypy so zhutnením"]
[null,null,"01040202.233_1","Uloženie sypaniny do násypu nesúdržných a súdržných hornín s predpísanou mierou zhutnenia, vrátane hutnenia pláne a úpravy trvalých svahov násypov","m3",56.4,null,{"$f":"F1809*G1809","v":0}]
[null,null,"01040702","Konštrukcie z hornín hrádze so zhutnením"]
[null,null,"01040702.233_1","Zemné hrádze - dočasné prehradenie, vrátane odstránenia","kpl.",1,null,0]
[null,null,"01060208","Premiestnenie vodorovné výkopku na medziskládku"]
[null,null,"01060208.233_1","Vodorovné premiestnenie odkopávky/výkopku na medziskládku","m3",1499.3,null,0]
[null,null,"45.24.70_11","Betonárske práce"]
[null,null,"11010101","Základy pásy betón prostý"]
[null,null,"11010101.233_1","Základové pásy, prahy z betónu prostého tr. C 25/30 - stabilizačný prah 800 x 750(+250 obklad) - dĺžka 25 m ","m3",15,null,0]
[null,null,"11010101.233_2","Základové pásy, prahy z betónu prostého tr. C 25/30 - stabilizačný prah 800 x 1150(+250 obklad) - dĺžka 26 m ","m3",23.92,null,0]
[null,null,"11010111","Základy pásy debnenie tradičné"]
[null,null,"11010111.233_1","Debnenie stien základových pásov, zhotovenie a odstránenie","m2",100.34,null,0]
[null,null,"11010402","Základy múry betón železový"]
[null,null,"11010402.233_1","Betón základových múrov, železový (bez výstuže), tr. C 25/30 - stupeň","m3",135.80000000000001,null,{"$f":"F1821*G1821","v":0}]
[null,null,"11010411","Základy múry debnenie tradičné"]
[null,null,"11010411.233_1","Debnenie základových múrov jednostranné, zhotovenie a odstránenie","m2",180.4,null,{"$f":"F1823*G1823","v":0}]
[null,null,"11010421","Základy múry výstuž z betonárskej ocele"]
[null,null,"11010421.233_1","Výstuž základových múrov nosných zo zváraných sietí - drôt priemeru 8 mm, oko 100 mm","t",3.16,null,0]
[null,null,"11200101","Podkladné konštrukcie podkladné vrstvy betón prostý"]
[null,null,"11200101.233_1","Podklad pod dlažbu z betónu prostého tr. C 16/20 hr. 100 mm - kamenobloky na svahu stupňa - 91,20 m2","m3",9.1199999999999992,null,0]
[null,null,"11200101.233_2","Podklad pod dlažbu z betónu prostého tr. C 16/20 hr. 200 mm - kamenobloky a brehové pätky na dne stupňa - 119,70+12,00 = 131,70 m2","m3",26.34,null,0]
[null,null,"45.24.70_31","Hydromelioračné práce"]
[null,null,"31020307","Hradiace konštrukcie prepážka z betónových dielcov"]
[null,null,"31020307.233_1","Prepážka - dočasný obtok dĺ. 80 m vytvorený osadením 39 kusov prefabrikovaných dielcov tvaru L - rozmer: H=1600 mm, B=1210, L= 2050 mm, priťaženie kameňmi do 200 kg o objeme cca 40 m2, vrátane odstránenia","m",80,null,0]
[null,null,"31200101","Podkladné konštrukcie pod dlažbu štrkopiesok"]
[null,null,"31200101.233_1","Pokladová vrstva z kameniva, hr. 100 mm - polovegetačné tvárnice - plocha 27,36 m2","m3",2.7360000000000002,null,0]
[null,null,"31200308","Podkladné konštrukcie zaisťovací prah, pätka betónové dielce"]
[null,null,"31200308.233_1","Brehová pätka z prefabrikovaných dielcov - tvárnica - 600 x 500 x 1200 mm ","ks",20,null,0]
[null,null,"31210103","Spevnené plochy zahádzky lomový kameň"]
[null,null,"31210103.233_1","Zahádzka z lom. kameňa, hmotnosť kameňov 150 - 250kg bez výplne medzier - na konci vývaru","m3",30,null,{"$f":"F1837*G1837","v":0}]
[null,null,"31210303","Spevnené plochy dlažby lomový kameň"]
[null,null,"31210303.233_1","Dlažba z lomového kameňa kladená do malty s vyplnením škár maltou hrúbka 250mm - obklad na prahoch a telese stupňa - plocha = 104,30 m2","m3",26.074999999999999,null,{"$f":"F1839*G1839","v":0}]
[null,null,"31210305","Spevnené plochy lomový kameň do betónu"]
[null,null,"31210305.233_1","Kamenná rovnanina hr. 300 mm ukladaná do betónového lôžka hr. 150 mm s vyškárovaním - plocha = 1315,4 m2; objem kameňa = 394,62 m3; objem betónu = 197,31 m3","m3",591.92999999999995,null,0]
[null,null,"31210308","Spevnené plochy dlažby betónové dielce, tvárnice"]
[null,null,"31210308.233_1","Dlažba z bet. dosiek a tvárnic na sucho s vyplnením škár pieskom - polovegetačné tvárnice - 600 x 1200 x 140 mm - hmotnosť 158 kg","m2",27.36,null,0]
[null,null,"31210308.233_2","Výplne vyľahčených a dierovaných tvárnic na plochách vodorovných i na svahu štrkom","m2",27.36,null,0]
[null,null,"31210309","Spevnené plochy betónové dielce, kamenobloky"]
[null,null,"31210309.233_1","Dlažba z bet. dosiek a tvárnic na sucho, so zaliatím škár maltou cementovou - kamenobloky 1000 x 1000 x 400 mm","m2",210.9,null,{"$f":"F1846*G1846","v":0}]
[]
[null,null,null,"301-00  Protihluková stena na ceste I/68 v km 4,950",null,null,null,{"$f":"SUM(H1849:H1894)","v":0}]
[null,null,"00040222","Požiadavky Objednávateľa - DSRS"]
[null,null,"00040222.301_1","DSRS","kpl",1,null,{"$f":"F1850*G1850","v":0}]
[null,null,"45.23.32_22","Práce na pozemných komunikáciach a letiskách"]
[null,null,"22010102","Podkladné a krycie vrstvy bez spojiva nestmelené (bez spojiva) štrkopiesok"]
[null,null,"22010102.301_1","Podklad alebo podsyp zo štrkopiesku s rozprestretím, vlhčením a zhutnením, po zhutnení hr. 150 mm - pod schody","m2",16.2,null,0]
[null,null,"22250162","Doplňujúce konštrukcie zábradlie kovové"]
[null,null,"22250162.301_1","Zábradlie oceľové na únikových schodoch, vrátane protikoróznej ochrany a náterov","m",10,null,0]
[null,null,"22250261","Doplňujúce konštrukcie protihlukové steny z betónových tvárnic"]
[null,null,"22250261.301_1","Protihluková stena - tvarovky z materiálu durisol s betónovou výplňou - plocha 1406,7 m2, vrátane striešky a tesniacich profilov - nosná oceľová konštrukcia je uvedená osobitne pre stenu ako celok","m3",351.67500000000001,null,0]
[null,null,"22250261.301_2","Výstuž panelov protihlukovej steny","t",31.045999999999999,null,0]
[null,null,"22250262","Doplňujúce konštrukcie protihlukové steny nosná konštrukcia"]
[null,null,"22250262.301_1","Stĺpiky protihlukovej steny oceľové s pätnými doskami, kotvené do základovej pätky chemickými kotvami, vrátane protikoróznej ochrany a náterov - celková hmotnosť nosnej oceľovej konštrukcie = 20,64 t","ks",111,null,{"$f":"F1860*G1860","v":0}]
[null,null,"22250265","Doplňujúce konštrukcie protihlukové steny kovové so sklom, akrylátom"]
[null,null,"22250265.301_1","Protihluková stena z hliníkových panelov a z plexiskla číreho v Al ráme hrúbky 15 mm, vrátane príslušenstva (ukončujúce lišty, tesniace profily) - nosná oceľová konštrukcia je uvedená osobitne pre stenu ako celok","m2",121.9,null,{"$f":"F1862*G1862","v":0}]
[null,null,"22250268","Doplňujúce konštrukcie protihlukové steny únikový východ"]
[null,null,"22250268.301_1","Únikový východ - komplet podľa projektu - dvere 900x1970 mm s rámom, zatváračom a kovaním, vrátane informatívnych dopravných značiek","kpl",2,null,0]
[null,null,"45.26.14_61","Izolatérske práce"]
[null,null,"61010101","Izolácia proti vode a zemnej vlhkosti náterivami a tmelmi"]
[null,null,"61010101.301_1","Izolácia proti zemnej vlhkosti za studena = 1 x penetračný náter + 2x asfaltový náter - pätky","m2",1440.38,null,0]
[null,null,"61010101.301_2","Izolácia proti zemnej vlhkosti za studena = 1 x penetračný náter + 2x asfaltový náter - nosníky/pásy","m2",591.54999999999995,null,0]
[null,null,"45.26.23_11","Betonárske práce"]
[null,null,"11010102","Základy pásy betón železový"]
[null,null,"11010102.301_1","Betón základových pásov, železový (bez výstuže), tr. C 35/45","m3",76.2,null,0]
[null,null,"11010111","Základy pásy debnenie"]
[null,null,"11010111.301_1","Debnenie stien základových pásov, zhotovenie","m2",739.44,null,0]
[null,null,"11010111.301_2","Debnenie stien základových pásov, odstránenie","m2",739.44,null,0]
[null,null,"11010121","Základy pásy výstuž z betonárskej ocele"]
[null,null,"11010121.301_1","Výstuž základových pásov, prahov, z betonárskej ocele B500B (10 505) ","t",6.7460000000000004,null,0]
[null,null,"11010202","Základy pätky betón železový"]
[null,null,"11010202.301_1","Betón základových pätiek, železový (bez výstuže), tr. C 30/37","m3",447.8,null,0]
[null,null,"11010211","Základy pätky debnenie"]
[null,null,"11010211.301_1","Debnenie stien základových pätiek, zhotovenie","m2",1064.28,null,0]
[null,null,"11010211.301_2","Debnenie stien základových pätiek, odstránenie","m2",1064.28,null,0]
[null,null,"11010221","Základy pätky výstuž z betonárskej ocele"]
[null,null,"11010221.301_1","Výstuž základových pätiek z ocele 10505","t",19.161999999999999,null,0]
[null,null,"11090102","Schodiskové konštrukcie kompletné betón železový"]
[null,null,"11090102.301_1","Schodiskové konštrukcie, betón železový tr. C 30/37","m3",11.8,null,{"$f":"F1885*G1885","v":0}]
[null,null,"11090121","Schodiskové konštrukcie kompletné výstuž z betonárskej ocele"]
[null,null,"11090121.301_1","Výstuž schodiskových konštrukcií zo zváraných sietí ","t",0.48,null,0]
[null,null,"11090211","Schodiskové konštrukcie debnenie"]
[null,null,"11090211.301_1","Debnenie na podstupňovej doske alebo na teréne - zhotovenie","m2",18.100000000000001,null,0]
[null,null,"11090211.301_2","Debnenie na podstupňovej doske alebo na teréne - odstránenie","m2",18.100000000000001,null,0]
[null,null,"11200101","Podkladné konštrukcie podkladné vrstvy betón prostý"]
[null,null,"11200101.301_1","Podkladová vrstva z betónu tr. C 16/20 hr. 100 mm - pätky","m3",52.557000000000002,null,0]
[null,null,"11200101.301_2","Podkladová vrstva z betónu tr. C 16/20 hr. 100 mm - nosníky/pásy","m3",14.58,null,0]
[]
[null,null,null,"302-00  Protihluková stena na ceste III/543 032 v km 0,204 vetvy 102-A",null,null,null,{"$f":"SUM(H1896:H1935)","v":0}]
[null,null,"00040222","Požiadavky Objednávateľa - DSRS"]
[null,null,"00040222.302_1","DSRS","kpl",1,null,{"$f":"F1897*G1897","v":0}]
[null,null,"45.11.20_01","Zemné práce"]
[null,null,"01030102","Hĺbené vykopávky jám nezapažených"]
[null,null,"01030102.302_1","Výkop nezapaženej jamy ","m3",753.6,null,0]
[null,null,"01040402","Konštrukcie z hornín zásypy so zhutnením"]
[null,null,"01040402.302_1","Zásyp sypaninou so zhutnením jám - zemina z výkopu","m3",168.8,null,0]
[null,null,"01060208","Premiestnenie vodorovné výkopku na medziskládku"]
[null,null,"01060208.302_1","Vodorovné premiestnenie odkopávky/výkopku na medziskládku","m3",753.6,null,0]
[null,null,"45.23.32_22","Práce na pozemných komunikáciach a letiskách"]
[null,null,"22250261","Doplňujúce konštrukcie protihlukové steny z betónových tvárnic"]
[null,null,"22250261.302_1","Protihluková stena - tvarovky z materiálu durisol s betónovou výplňou - plocha 810,1 m2, vrátane striešky a tesniacich profilov - nosná oceľová konštrukcia je uvedená osobitne pre stenu ako celok","m3",202.52500000000001,null,{"$f":"F1907*G1907","v":0}]
[null,null,"22250261.302_2","Výstuž panelov protihlukovej steny","t",17.7,null,0]
[null,null,"22250262","Doplňujúce konštrukcie protihlukové steny nosná konštrukcia"]
[null,null,"22250262.302_1","Stĺpiky protihlukovej steny oceľové s pätnými doskami, kotvené do základovej pätky chemickými kotvami, vrátane protikoróznej ochrany a náterov - celková hmotnosť nosnej oceľovej konštrukcie = 11,66 t","ks",67,null,0]
[null,null,"22250268","Doplňujúce konštrukcie protihlukové steny únikový východ"]
[null,null,"22250268.302_1","Únikový východ - komplet podľa projektu - dvere 900x1970 mm s rámom, zatváračom a kovaním, vrátane informatívnych dopravných značiek","kpl",1,null,0]
[null,null,"45.26.14_61","Izolatérske práce"]
[null,null,"61010101","Izolácia proti vode a zemnej vlhkosti náterivami a tmelmi"]
[null,null,"61010101.302_1","Izolácia proti zemnej vlhkosti za studena = 1 x penetračný náter + 2x asfaltový náter - pätky","m2",879.82,null,0]
[null,null,"61010101.302_2","Izolácia proti zemnej vlhkosti za studena = 1 x penetračný náter + 2x asfaltový náter - nosníky/pásy","m2",360.68,null,0]
[null,null,"45.26.23_11","Betonárske práce"]
[null,null,"11010102","Základy pásy betón železový"]
[null,null,"11010102.302_1","Betón základových pásov, železový (bez výstuže), tr. C 35/45","m3",46.6,null,0]
[null,null,"11010111","Základy pásy debnenie"]
[null,null,"11010111.302_1","Debnenie stien základových pásov, zhotovenie","m2",450.84,null,0]
[null,null,"11010111.302_2","Debnenie stien základových pásov, odstránenie","m2",450.84,null,0]
[null,null,"11010121","Základy pásy výstuž z betonárskej ocele"]
[null,null,"11010121.302_1","Výstuž základových pásov, prahov, z betonárskej ocele B500B (10 505) ","t",4.18,null,0]
[null,null,"11010202","Základy pätky betón železový"]
[null,null,"11010202.302_1","Betón základových pätiek, železový (bez výstuže), tr. C 30/37","m3",275.8,null,0]
[null,null,"11010211","Základy pätky debnenie"]
[null,null,"11010211.302_1","Debnenie stien základových pätiek, zhotovenie","m2",647.16,null,{"$f":"F1928*G1928","v":0}]
[null,null,"11010211.302_2","Debnenie stien základových pätiek, odstránenie","m2",647.16,null,0]
[null,null,"11010221","Základy pätky výstuž z betonárskej ocele"]
[null,null,"11010221.302_1","Výstuž základových pätiek z ocele 10505","t",11.726000000000001,null,0]
[null,null,"11200101","Podkladné konštrukcie podkladné vrstvy betón prostý"]
[null,null,"11200101.302_1","Podkladová vrstva z betónu tr. C 16/20 hr. 100 mm - pätky","m3",32.36,null,0]
[null,null,"11200101.302_2","Podkladová vrstva z betónu tr. C 16/20 hr. 100 mm - nosníky/pásy","m3",8.91,null,0]
[]
[null,null,null,"501-00  Úprava kanalizácie v km 0,510",null,null,null,{"$f":"SUM(H1937:H1964)","v":0}]
[null,null,"00040222","Požiadavky Objednávateľa - DSRS"]
[null,null,"00040222.501_1","DSRS","kpl",1,null,{"$f":"F1938*G1938","v":0}]
[null,null,"45.11.20_01","Zemné práce"]
[null,null,"01030202","Hĺbené vykopávky rýh š nad 600 mm"]
[null,null,"01030202.501_1","Výkop ryhy v hornine tr. 3 - 4","m3",253.8,null,0]
[null,null,"01040402","Konštrukcie z hornín zásypy so zhutnením"]
[null,null,"01040402.501_1","Zásyp ryhy štrkodrvinou fr. 0-32","m3",196.82,null,0]
[null,null,"01060208","Premiestnenie vodorovné výkopku na medziskládku"]
[null,null,"01060208.501_1","Vodorovné premiestnenie a uloženie prebytočného výkopku na medziskládku","m3",253.8,null,0]
[null,null,"45.23.13_11","Betonárske práce"]
[null,null,"11250902","Doplňujúce konštrukcie obetónovanie potrubia betón železový"]
[null,null,"11250902.501_1","Obetónovanie potrubia betónom železovým tr. C 16/20 v otvorenom výkope","m3",56.98,null,{"$f":"F1948*G1948","v":0}]
[null,null,"11250902.501_2","Monolitické dno kontrolnej šachty - betón tr. C 16/20 v otvorenom výkope ","m3",1.56,null,0]
[null,null,"11250911","Doplňujúce konštrukcie obetónovanie potrubia debnenie "]
[null,null,"11250911.501_1","Debnenie pre obetónovanie potrubia v otvorenom výkope","m2",116,null,0]
[null,null,"11250921","Doplňujúce konštrukcie obetónovanie potrubia výstuž z betonárskej ocele"]
[null,null,"11250921.501_1","Výstuž obetónovania potrubia zo zváraných sietí ","t",1.3759999999999999,null,0]
[null,null,"11251101","Doplňujúce konštrukcie výustný objekt kanalizácie "]
[null,null,"11251101.501_1","Výustný objekt kanalizácie DN 600 z betónu prostého tr. C 20/25 - objem = 3,6 m3, vrátane debnenia a štrkopieskového lôžka 1,02 m3","kpl",1,null,0]
[null,null,"45.23.13_27","Montážne práce na plynovodoch, vodovodoch, kanalizáciach"]
[null,null,"27031171","Kanalizácie ostatné konštrukcie šachty kanalizačné"]
[null,null,"27031171.501_1","Kontrolná kanalizačná šachta z betónových typových prefabrikátov - skruže DN 1000 mm,  kónus  DN 1000/600 mm, vyrovnávacie prstence DN 600 mm","ks",2,null,0]
[null,null,"27031174","Kanalizácie ostatné konštrukcie armatúry"]
[null,null,"27031174.501_1","Spätná klapka DN 600 so šikmým tanierom","ks",1,null,0]
[null,null,"27031176","Kanalizácie ostatné konštrukcie doplnky"]
[null,null,"27031176.501_1","Poklop kontrolnej kanalizačnej šachty DN 600 mm, trieda D 400, vrátane rámu","ks",2,null,0]
[null,null,"27031176.501_2","Zákrytová betónová doska na rušenú existujúcu šachtu","ks",1,null,{"$f":"F1963*G1963","v":0}]
[]
[null,null,null,"502-00  Preložka vodovodu DN 150 v križovatke Ľubovnianske kúpele",null,null,null,{"$f":"SUM(H1966:H2020)","v":0}]
[null,null,"00040222","Požiadavky Objednávateľa - DSRS"]
[null,null,"00040222.502_1","DSRS","kpl",1,null,{"$f":"F1967*G1967","v":0}]
[null,null,"45.11.20_01","Zemné práce"]
[null,null,"01030102","Hĺbené vykopávky jám nezapažených"]
[null,null,"01030102.502_1","Výkop nezapaženej jamy ","m3",1038.3,null,0]
[null,null,"01030202","Hĺbené vykopávky rýh š nad 600 mm"]
[null,null,"01030202.502_1","Výkop ryhy šírky 600-2000mm ","m3",253.2,null,0]
[null,null,"01040402","Konštrukcie z hornín zásypy so zhutnením"]
[null,null,"01040402.502_1","Zásyp sypaninou so zhutnením jám - zemina z výkopu","m3",642.6,null,{"$f":"F1974*G1974","v":0}]
[null,null,"01040402.502_2","Zásyp sypaninou so zhutnením rýh - zemina z výkopu","m3",183.6,null,0]
[null,null,"01040501","Konštrukcie z hornín obsypy bez zhutnenia"]
[null,null,"01040501.502_1","Obsyp potrubia štrkopieskom fr. 0-8 mm","m3",50.1,null,0]
[null,null,"01060208","Premiestnenie vodorovné výkopku na medziskládku"]
[null,null,"01060208.502_1","Vodorovné premiestnenie odkopávky/výkopku na medziskládku","m3",465.3,null,0]
[null,null,"45.23.13_11","Betonárske práce"]
[null,null,"11200301","Podkladné konštrukcie dosky, bloky, sedlá, betón prostý"]
[null,null,"11200301.502_1","Podkladná doska pod kolektor tr. C 16/20","m3",21,null,0]
[null,null,"11200301.502_2","Podkladné bloky potrubia v kolektore tr. C 16/20","m3",4.8,null,0]
[null,null,"11200301.502_3","Podkladné bloky pre potrubie a armatúry uložené v zemi","m3",1.6,null,0]
[null,null,"11200311","Podkladné konštrukcie dosky, bloky, sedlá, debnenie "]
[null,null,"11200311.502_1","Debnenie v otvorenom výkope dosiek","m2",15.84,null,0]
[null,null,"11200311.502_2","Debnenie blokov pod potrubie v kolektore","m2",48,null,0]
[null,null,"11200311.502_3","Debnenie blokov pod potrubie a armatúry v otvorenom výkope","m2",16,null,0]
[null,null,"45.23.13_27","Montážne práce na plynovodoch, vodovodoch, kanalizáciach"]
[null,null,"27020421","Vodovody rúry plastové PE, PP"]
[null,null,"27020421.502_1","Vodovodné potrubie HDPE PN16  SDR11 zvárané elektrotvarovkami D 160x14,6 mm","m",165,null,0]
[null,null,"27020423","Vodovody rúry plastové rúrové diely PE, PP"]
[null,null,"27020423.502_1","Tvarovky - dodanie a osadenie","kpl.",1,null,0]
[null,null,"27020533","Vodovody rúry liatinové tvarovky"]
[null,null,"27020533.502_1","Tvarovky - dodanie a osadenie ","kpl.",1,null,0]
[null,null,"27021174","Vodovody ostatné konštrukcie armatúry"]
[null,null,"27021174.502_1","Posúvač prírubový so zemnou súpravou DN 80, vrátane poklopu","ks",1,null,{"$f":"F1997*G1997","v":0}]
[null,null,"27021174.502_2","Posúvač s prírubami DN 150 na vodu","ks",2,null,0]
[null,null,"27021174.502_3","Podzemný hydrant  DN 80, dĺžka 1195 mm, vrátane poklopu","ks",1,null,0]
[null,null,"27021176","Vodovody ostatné konštrukcie doplnky"]
[null,null,"27021176.502_1","Signalizačný vodič na potrubí PVC DN do 150 mm, vrátane vyvedenia koncov v šachtách","m",170,null,0]
[null,null,"27021176.502_2","Označenie vodovodného potrubia výstražnou fóliou","m",170,null,0]
[null,null,"27031176","Kanalizácie ostatné konštrukcie doplnky"]
[null,null,"27031176.502_1","Poklop DN 600 mm, trieda D 400, vrátane rámu - hydrant a vstupy do kolektora ","ks",3,null,0]
[null,null,"27031176.502_2","Prechodová betónová skruž hr. steny 120 mm, rozmer 1000x625x580 mm - hydrant a vstupy do kolektora ","ks",3,null,0]
[null,null,"27031176.502_3","Skruž výšky 500 mm hr. steny 120 mm, rozmer 1000x500x120 mm - hydrant ","ks",1,null,0]
[null,null,"27201391","Podkladné konštrukcie pod potrubie, šachty, stoky atď. štrkopiesok"]
[null,null,"27201391.502_1","Lôžko pod potrubie","m3",17.399999999999999,null,0]
[null,null,"27201391.502_2","Lôžko pod podkladnú dosku kolektora hr. 120 mm, frakcia 8-32","m3",18.07,null,0]
[null,null,"27201391.502_3","Pieskový podsyp pod prefabrikáty kolektora hr. 30 mm","m3",4.2,null,0]
[null,null,"45.22.38_15","Montáže prefabrikovaných konštrukcií"]
[null,null,"15190702","Kompletné konštrukcie dielce železobetónové"]
[null,null,"15190702.502_1","Prefabrikovaný dielec kolektora - tvar U 2,4x2,1x5,0 m; hmotnosť 12 t","ks",9,null,0]
[null,null,"15190702.502_2","Prefabrikovaný dielec kolektora - koncový; hmotnosť 20 t","ks",2,null,0]
[null,null,"15190702.502_3","Prefabrikovaný stropný panel 2,4x5,0x0,18; hmotnosť 5,4 t","ks",9,null,0]
[null,null,"15190702.502_4","Prefabrikovaný stropný panel - koncový s otvorom 2,4x2,2,0x0,18; hmotnosť 2,4 t","ks",2,null,0]
[null,null,"45.26.14_61","Izolatérske práce"]
[null,null,"61010407","Izolácia proti vode a zemnej vlhkosti podzemných objektov "]
[null,null,"61010407.502_1","Izolácia telesa kolektora proti zemnej vlhkosti - izolačné súvrstvie - penetrečný náter, natavovaný asfaltový pás , ochranná geotextília, vrátane zhotovenia detailov","m2",446.4,null,{"$f":"F2019*G2019","v":0}]
[]
[null,null,null,"503-00  Preložka splaškovej kanalizácie v km 4,800-5,100",null,null,null,{"$f":"SUM(H2022:H2057)","v":0}]
[null,null,"00040222","Požiadavky Objednávateľa - DSRS"]
[null,null,"00040222.503_1","DSRS","kpl",1,null,{"$f":"F2023*G2023","v":0}]
[null,null,"45.11.20_01","Zemné práce"]
[null,null,"01020101","Odkopávky a prekopávky humóznej vrstvy ornice"]
[null,null,"01020101.503_1","Odstránenie ornice s naložením, premiestnením na dočasné skládky a uložením","m3",287,null,0]
[null,null,"01030202","Hĺbené vykopávky rýh š nad 600 mm"]
[null,null,"01030202.503_1","Výkop ryhy v hornine tr. 3 - 4","m3",892.67,null,0]
[null,null,"01040402","Konštrukcie z hornín zásypy so zhutnením"]
[null,null,"01040402.503_1","Zásyp ryhy prehodenou zeminou","m3",639.24,null,0]
[null,null,"01040501","Konštrukcie z hornín obsypy bez zhutnenia"]
[null,null,"01040501.503_1","Obsyp potrubia štrkopieskom fr. 0-8 mm","m3",172.67,null,0]
[null,null,"01060208","Premiestnenie vodorovné výkopku na medziskládku"]
[null,null,"01060208.503_1","Vodorovné premiestnenie a uloženie prebytočného výkopku na medziskládku","m3",253.43,null,{"$f":"F2034*G2034","v":0}]
[null,null,"45.11.23_01","Zemné práce"]
[null,null,"01080501","Povrchové úpravy terénu úpravy povrchov rozprestretím ornice"]
[null,null,"01080501.503_1","Rozprestretie ornice, hrúbka 200 mm, vrátane dovozu z medziskládky - objem 287,00 m3","m2",1435,null,0]
[null,null,"45.23.13_11","Betonárske práce"]
[null,null,"11250902","Doplňujúce konštrukcie obetónovanie potrubia betón železový"]
[null,null,"11250902.503_1","Obetónovanie potrubia betónom železovým tr. C 16/20 v otvorenom výkope","m3",36.380000000000003,null,0]
[null,null,"11250911","Doplňujúce konštrukcie obetónovanie potrubia debnenie "]
[null,null,"11250911.503_1","Debnenie pre obetónovanie potrubia v otvorenom výkope","m2",93.6,null,0]
[null,null,"11250921","Doplňujúce konštrukcie obetónovanie potrubia výstuž z betonárskej ocele"]
[null,null,"11250921.503_1","Výstuž obetónovania potrubia zo zváraných sietí KARI","t",4.2610000000000001,null,0]
[null,null,"45.23.13_27","Montážne práce na plynovodoch, vodovodoch, kanalizáciach"]
[null,null,"27030422","Kanalizácie rúry plastové PVC"]
[null,null,"27030422.503_1","Kanalizačné PVC potrubie hladké DN 300 SN 8, rúra d 315 x 9,2 mm","m",347,null,{"$f":"F2047*G2047","v":0}]
[null,null,"27031171","Kanalizácie ostatné konštrukcie šachty kanalizačné"]
[null,null,"27031171.503_1","Kontrolná kanalizačná šachta z betónových typových prefabrikátov - šachtové dno DN 1000 mm, skruže DN 1000 mm,  kónus  DN 1000/600 mm, vyrovnávacie prstence DN 600 mm","ks",8,null,0]
[null,null,"27031171.503_2","Výšková úprava existuijúcej kanalizačnej šachty z betónových typových prefabrikátov - šachtové dno DN 1000 mm, skruže DN 1000 mm,  kónus  DN 1000/600 mm, vyrovnávacie prstence DN 600 mm","ks",2,null,0]
[null,null,"27031175","Kanalizácie ostatné konštrukcie skúšky tesnosti"]
[null,null,"27031175.503_1","Skúška tesnosti kanalizácie D 300","m",347,null,0]
[null,null,"27031176","Kanalizácie ostatné konštrukcie doplnky"]
[null,null,"27031176.503_1","Poklop kontrolnej kanalizačnej šachty DN 600 mm, trieda D 400, vrátane rámu","ks",10,null,0]
[null,null,"27201391","Podkladné konštrukcie pod potrubie, šachty, stoky atď. štrkopiesok"]
[null,null,"27201391.503_1","Lôžko pod potrubie, stoky a drobné objekty, v otvorenom výkope z piesku a štrkopiesku","m3",32.229999999999997,null,0]
[]
[null,null,null,"610-00  Križovatka VVN-110 kV s cestou I/68 v km 0,900",null,null,null,{"$f":"SUM(H2059:H2072)","v":0}]
[null,null,"00040222","Požiadavky Objednávateľa - DSRS"]
[null,null,"00040222.610_1","DSRS","kpl",1,null,{"$f":"F2060*G2060","v":0}]
[null,null,"45.31.54_91","Montáž silnoprúdových rozvodov a zariadení"]
[null,null,"91060103","Vedenia nadzemné VVN 110 kV závesy"]
[null,null,"91060103.610_1","Izolátorový záves s kompozitnými izolátormi typu EUROINS H.110. 120. 1250. T. T. 19L 12256E vrátane nových spojovacích armatúr","ks",12,null,0]
[null,null,"91060103.610_2","Ochrana proti oblúku typu 118215/DE","ks",24,null,0]
[null,null,"91060120","Vedenia nadzemné VVN 110  - ostatné práce a činnosti"]
[null,null,"91060120.610_1","Zapnutie a vypnutie VVN vedenia","kpl",1,null,0]
[null,null,"91060120.610_2","Premeranie uzemnenia odpínača","kpl",1,null,0]
[null,null,"91060120.610_3","Úradná skúška","kpl",1,null,0]
[null,null,"91060120.610_4","Revízia","kpl",1,null,0]
[null,null,"91060199","Vedenia nadzemné VVN 110 kV  - demontáže"]
[null,null,"91060199.610_1","Demontáž jednoduchého nosného závesu - komplet, vrátane odvozu a likvidácie demontovaných hmôt","ks",6,null,0]
[]
[null,null,null,"611-00  Úprava VN-22 kV prípojok pre obec Plavnica",null,null,null,{"$f":"SUM(H2074:H2112)","v":0}]
[null,null,"00040222","Požiadavky Objednávateľa - DSRS"]
[null,null,"00040222.611_1","DSRS","kpl",1,null,{"$f":"F2075*G2075","v":0}]
[null,null,"45.11.20_01","Zemné práce"]
[null,null,"01030103","Hĺbené vykopávky jám pre stožiare, vrátane zásypov a zaistenia stien výkopu"]
[null,null,"01030102.611_1","Jama pre stožiar 10,5/12(15); 12/6 - rozmer 2,0x2,0x2,0 = 8,0 m3","ks",3,null,0]
[null,null,"01030102.611_2","Jama pre stožiar 15/20 - rozmer 2,2x4,8x2,2 = 23,30 m3","ks",2,null,0]
[null,null,"01030102.611_3","Jama pre stožiar 16,5/20; 18/20 - rozmer 2,4x5,0x2,4 = 28,80 m3","ks",4,null,0]
[null,null,"01060208","Premiestnenie vodorovné výkopku na medziskládku"]
[null,null,"01060208.611_1","Vodorovné premiestnenie odkopávky/výkopku na medziskládku","m3",78.44,null,0]
[null,null,"45.26.23_11","Betonárske práce"]
[null,null,"11010200","Základy pätky pre stožiare betón prostý"]
[null,null,"11010200.611_1","Betónový základ - pätka stožiara10,5/12(15), prostý betón tr. C 25/30, vrátane debnenia a osadenia kotevného roštu, ktorý je dodávkou stožiara - 2,0x1,3x1,3 = 3,38 m3","ks",3,null,{"$f":"F2085*G2085","v":0}]
[null,null,"11010200.611_2","Betónový základ - pätka stožiara 15/20, prostý betón tr. C 25/30, vrátane debnenia a osadenia kotevného roštu, ktorý je dodávkou stožiara - 2,2x4,1x1,5 = 13,53 m3","ks",2,null,0]
[null,null,"11010200.611_3","Betónový základ - pätka stožiara 16,5/20; 18/20, prostý betón tr. C 25/30, vrátane debnenia a osadenia kotevného roštu, ktorý je dodávkou stožiara - 2,4x4,3x1,7 = 17,54 m3","ks",4,null,0]
[null,null,"45.31.55_91","Montáž silnoprúdových rozvodov a zariadení"]
[null,null,"91040101","Vedenia nadzemné NN stožiare NN jednoduché betónové"]
[null,null,"91040101.611_1","Stožiar z predpätého betónu 10,5/12 - komplet s príslušenstvom podľa PD","ks",1,null,0]
[null,null,"91040101.611_2","Stožiar z predpätého betónu 10,5/15 - komplet s príslušenstvom podľa PD","ks",1,null,0]
[null,null,"91040101.611_3","Stožiar z predpätého betónu 12/6 - komplet s príslušenstvom podľa PD","ks",1,null,0]
[null,null,"91050103","Vedenia nadzemné VN stožiare VN jednoduché oceľové, priehradové, skrutkované"]
[null,null,"91050103.611_1","Stožiar priehradový oceľový 15,5/V39 - komplet s príslušenstvom podľa PD","ks",2,null,0]
[null,null,"91050103.611_2","Stožiar priehradový oceľový 18,5/V39 - komplet s príslušenstvom podľa PD","ks",4,null,0]
[null,null,"91090201","Káble VN silové"]
[null,null,"91090201.611_1","Vedenie 22 kV 3x35/7 AlFe ","m",279,null,0]
[null,null,"91090201.611_2","Vedenie 22 kV 3x42/7 AlFe","m",89,null,0]
[null,null,"91090201.611_3","Vedenie 24 kV AXCES 3x70/16","m",214,null,0]
[null,null,"91090299","Vedenia VN nadzemné - demontáže"]
[null,null,"91090299.611_1","Demontáž pôvodných podperných bodov - komplet s odvozom a likvidáciou demontovaných hmôt","ks",6,null,0]
[null,null,"91090299.611_2","Demontáž pôvodného VN vedenia - komplet s odvozom a likvidáciou demontovaných hmôt","m",583,null,0]
[null,null,"91090999","Vedenia nadzemné VN - ostatné práce a činnosti"]
[null,null,"91090999.611_1","Zapnutie a vypnutie VN vedenia","kpl",1,null,0]
[null,null,"91090999.611_2","Premeranie uzemnenia odpínača","kpl",1,null,0]
[null,null,"91090999.611_3","Úradná skúška","kpl",1,null,0]
[null,null,"91090999.611_4","Revízia","kpl",1,null,0]
[null,null,"91112703","Spínacie, spúšťacie  a regulačné ústrojenstvá odpínače VN "]
[null,null,"91112703.611_1","Odpínač 24kV/400A PO zvislý + OP + P","ks",2,null,{"$f":"F2109*G2109","v":0}]
[null,null,"91121003","Prístroje istiace pohony odpínačov"]
[null,null,"91121003.611_1","Pohon R na odpínač PO zvisly na PS 13,5m","ks",2,null,0]
[]
[null,null,null,"650-00  Preložka telekomunikačných káblov",null,null,null,{"$f":"SUM(H2114:H2134)","v":0}]
[null,null,"00040222","Požiadavky Objednávateľa - DSRS"]
[null,null,"00040222.650_1","DSRS","kpl",1,null,{"$f":"F2115*G2115","v":0}]
[null,null,"45.11.20_01","Zemné práce"]
[null,null,"01030203","Hĺbené výkopy a zásypy káblových rýh, vrátane doplňujúcich konštrukcií"]
[null,null,"01030203.650_1","Hĺbenie a zásyp káblovej ryhy 50 cm širokej a 120 cm hlbokej ","m",169,null,0]
[null,null,"01030203.650_2","Výstražná fólia v káblovej ryhe","m",169,null,0]
[null,null,"45.23.31_11","Betonárske práce"]
[null,null,"11251101","Doplňujúce konštrukcie obetónovanie kábelovodu betón prostý"]
[null,null,"11251101.650_1","Obetónovanie rezervných 2-otvorových chráničiek 2x110 PE betónom prostým v otvorenom výkope","m3",12.5,null,{"$f":"F2122*G2122","v":0}]
[null,null,"45.23.31_22","Práce na pozemných komunikáciach a letiskách"]
[null,null,"22251284","Doplňujúce konštrukcie kábelovody z rúr alebo dielcov plastových"]
[null,null,"22251284.650_1","Plastová 2-otvorová chránička 2x110 PE - dĺžky 24+24+40 m, vrátane utesnenia otvorov, plastová rúra celkom 2 x 88 = 176 m","m",88,null,0]
[null,null,"22251284.650_2","Delená plastová chránička existujúcich káblov typ KHSR 125/120 - dĺžky 24+24+33 m","m",81,null,0]
[null,null,"45.31.43_92","Montáž slaboprúdových rozvodov a zariadení"]
[null,null,"92020104","Vedenia vonkajšie vyhľadávací vodič"]
[null,null,"92020104.650_1","Vyhľadávací vodič pre lokalizáciu plastovej 2-otvorovej chráničky","m",105,null,0]
[null,null,"92031801","Vedenia vonkajšie označenia marker"]
[null,null,"92031801.650_1","Elektronický marker pre lokalizáciu koncov chráničiek","ks",6,null,0]
[null,null,"92031802","Vedenia vonkajšie doplňujúce činnosti kniha plánov"]
[null,null,"92031802.650_1","Spracovanie knihy plánov","súb.",1,null,0]
[]
[null,null,null,"651-00  Ochrana diaľkového kábla v km 4,878",null,null,null,{"$f":"SUM(H2136:H2162)","v":0}]
[null,null,"00040222","Požiadavky Objednávateľa - DSRS"]
[null,null,"00040222.651_1","DSRS","kpl",1,null,{"$f":"F2137*G2137","v":0}]
[null,null,"45.11.20_01","Zemné práce"]
[null,null,"01030102","Hĺbené vykopávky jám nezapažených, vrátane zásypov"]
[null,null,"01030102.651_1","Jama pre káblovú spojku - výkop, zásyp, vrátane zakrytia spojky pred zásypom","ks",2,null,0]
[null,null,"01030203","Hĺbené výkopy a zásypy káblových rýh, vrátane doplňujúcich konštrukcií"]
[null,null,"01030203.651_1","Hĺbenie a zásyp káblovej ryhy 35 cm širokej a 80 cm hlbokej ","m",108,null,0]
[null,null,"01030203.651_2","Hĺbenie a zásyp káblovej ryhy 50 cm širokej a 120 cm hlbokej ","m",55,null,{"$f":"F2143*G2143","v":0}]
[null,null,"01030203.651_3","Zriadenenie káblového lôžka v ryhe z piesku a tehál","m",163,null,0]
[null,null,"01030203.651_4","Výstražná fólia v káblovej ryhe","m",163,null,0]
[null,null,"45.23.31_22","Práce na pozemných komunikáciach a letiskách"]
[null,null,"22251284","Doplňujúce konštrukcie kábelovody z rúr alebo dielcov plastových"]
[null,null,"22251284.651_1","Plastová 3-otvorová chránička 3x110 PE - dĺžky 37+18 m, vrátane utesnenia otvorov - plastová rúra 3 x 55 =  165 m","m",55,null,0]
[null,null,"45.31.43_92","Montáž slaboprúdových rozvodov a zariadení"]
[null,null,"92020101","Vedenia vonkajšie káblové,  káble telekomunikačné"]
[null,null,"92020101.651_1","Kábel telekomunikačný zemný TCEPKPFLE 35XN0,8 - montáž a dodanie","m",170,null,0]
[null,null,"92020101.651_2","Kábel telekomunikačný DCKQYPY 1RP1,3+10DM0,9 - montáž a dodanie","m",170,null,0]
[null,null,"92020201","Vedenia vonkajšie káblové, spojky káblové rovné"]
[null,null,"92020201.651_1","Spojka káblová montovateľná za studena pre 20 až 50 párov - montáž a dodanie, vrátane pásky","ks",2,null,0]
[null,null,"92020201.651_2","Spojka káblová montovateľná za studena pre 50 až 100 párov - montáž a dodanie, vrátane pásky","ks",2,null,0]
[null,null,"92031504","Vedenia vonkajšie káblové, meranie za prevádzky záverečné, skrátené"]
[null,null,"92031504.651_1","Skrátené záverečné meranie v jednom smere za prevádzky 63 štvoríc","kpl.",1,null,0]
[null,null,"92031801","Vedenia vonkajšie označenia marker"]
[null,null,"92031801.651_1","Elektronický marker pre lokalizáciu koncov chráničiek","ks",4,null,0]
[null,null,"92031802","Vedenia vonkajšie doplňujúce činnosti kniha plánov"]
[null,null,"92031802.651_1","Spracovanie knihy plánov","súb.",1,null,0]
[]
[null,null,null,"652-00  Preložka telekomunikačného vzdušného vedenia v km 0,075 cesty III/543 032",null,null,null,{"$f":"SUM(H2164:H2208)","v":0}]
[null,null,"00040222","Požiadavky Objednávateľa - DSRS"]
[null,null,"00040222.652_1","DSRS","kpl",1,null,{"$f":"F2165*G2165","v":0}]
[null,null,"45.11.20_01","Zemné práce"]
[null,null,"01030102","Hĺbené vykopávky jám nezapažených, vrátane zásypov"]
[null,null,"01030102.652_1","Jama pre káblovú spojku - výkop, zásyp, vrátane zakrytia spojky pred zásypom","ks",1,null,0]
[null,null,"01030203","Hĺbené výkopy a zásypy káblových rýh, vrátane doplňujúcich konštrukcií"]
[null,null,"01030203.652_1","Hĺbenie a zásyp káblovej ryhy 35 cm širokej a 60 cm hlbokej ","m",28,null,0]
[null,null,"01030203.652_2","Hĺbenie a zásyp káblovej ryhy 35 cm širokej a 90 cm hlbokej ","m",67,null,0]
[null,null,"01030203.652_3","Hĺbenie a zásyp káblovej ryhy 50 cm širokej a 150 cm hlbokej ","m",5,null,0]
[null,null,"01030203.652_4","Zriadenenie káblového lôžka v ryhe z piesku a tehál","m",100,null,0]
[null,null,"01030203.652_5","Výstražná fólia v káblovej ryhe","m",100,null,0]
[null,null,"45.23.31_11","Betonárske práce"]
[null,null,"11251101","Doplňujúce konštrukcie obetónovanie kábelovodu betón prostý"]
[null,null,"11251101.652_1","Obetónovanie chráničiek betónom prostým v otvorenom výkope","m3",1.8,null,{"$f":"F2177*G2177","v":0}]
[null,null,"45.23.31_22","Práce na pozemných komunikáciach a letiskách"]
[null,null,"22251284","Doplňujúce konštrukcie kábelovody z rúr alebo dielcov plastových"]
[null,null,"22251284.652_1","Plastová chránička priemer110 mm, vrátane utesnenia otvorov ","m",17,null,0]
[null,null,"22251284.652_2","Plastová flexibilná chránička priemer 75 mm, vrátane utesnenia otvorov ","m",15,null,0]
[null,null,"45.31.43_92","Montáž slaboprúdových rozvodov a zariadení"]
[null,null,"92020101","Vedenia vonkajšie káblové,  káble telekomunikačné"]
[null,null,"92020101.652_1","Kábel telekomunikačný zemný TCEPKPSwFLE 25XN0,8 - montáž a dodanie","m",42,null,0]
[null,null,"92020101.652_2","Kábel telekomunikačný zemný TCEPKPSwFLE 25XN0,6 - montáž a dodanie","m",58,null,{"$f":"F2185*G2185","v":0}]
[null,null,"92020101.652_3","Kábel telekomunikačný závesný TCEKFLES 10XN0,8 - montáž a dodanie","m",47,null,0]
[null,null,"92020101.652_4","Kábel telekomunikačný závesný TCEKFLES 5XN0,4 - montáž a dodanie","m",47,null,0]
[null,null,"45.31.43_92","Montáž slaboprúdových rozvodov a zariadení"]
[null,null,"92010102","Vedenia nadzemné stožiare dvojité"]
[null,null,"92010102.652_1","Stožiar D združený, dĺžky 9-10 m, impregnovaný, nepätkovaný bez výstroje, vrátane zemných prác","ks",2,null,0]
[null,null,"92010104","Vedenia nadzemné stožiare kotvy"]
[null,null,"92010104.652_1","Stožiarová kotva pre existujúci stožiar, vrátane zemných prác","ks",1,null,0]
[null,null,"92010104.652_2","Stožiarová kotva pre nové stožiare, vrátane zemných prác","ks",2,null,0]
[null,null,"92010106","Vedenia nadzemné stožiare pätkovanie"]
[null,null,"92010106.652_1","Dodatočné pätkovanie J stožiara jednoduchého","ks",1,null,0]
[null,null,"92010120","Vedenia nadzemné, demontáž - stožiare, vedenie"]
[null,null,"92010120.652_1","Demontáž stožiara na rovine s pätkou - komplet, vrátane odvozu  a likvidácie","ks",1,null,0]
[null,null,"92010120.652_2","Demontáž vzdušného vedenia - komplet, vrátane odvozu a likvidácie","kpl",1,null,0]
[null,null,"92020203","Vedenia vonkajšie káblové, spojky káblové "]
[null,null,"92020203.652_1","Úplná montáž a dodanie spojky montovateľnej za studena pre káble telekominikačné","ks",1,null,0]
[null,null,"92021802","Vedenia vonkajšie káblové, skrine na stožiar"]
[null,null,"92021802.652_1","Telekomunikačný stĺpový rozvádzač typ GR pre 50 párov, vrátane montážnych plechov,  3 ks LSA pásikov, popisných štítkov, uzemnenia a súvisiacich činností na kábloch","ks",3,null,0]
[null,null,"92021802.652_2","Telekomunikačný stĺpový rozvádzač typ GR pre 100 párov, vrátane montážnych plechov,  10 ks LSA pásikov, popisných štítkov, uzemnenia a súvisiacich činností na kábloch","ks",1,null,0]
[null,null,"92031801","Vedenia vonkajšie označenia marker"]
[null,null,"92031801.652_1","Elektronický marker pre lokalizáciu vedení","ks",5,null,0]
[null,null,"92031802","Vedenia vonkajšie doplňujúce činnosti kniha plánov"]
[null,null,"92031802.652_1","Spracovanie knihy plánov","súb.",1,null,0]
[]
[null,null,null,"660-00  Preložka zabezpečovacieho vedenia ŽSR",null,null,null,{"$f":"SUM(H2210:H2296)","v":0}]
[null,null,"00040222","Požiadavky Objednávateľa - DSRS"]
[null,null,"00040222.660_1","DSRS","kpl",1,null,{"$f":"F2211*G2211","v":0}]
[null,null,"45.11.20_01","Zemné práce"]
[null,null,"01010004","Prípravné práce všeobecné "]
[null,null,"01010004.660_1","Vyznačenie podzemných inžinierskych sietí a vytýčenie stavebného objektu","kpl",1,null,0]
[null,null,"01010004.660_2","Zriadenie podvalového provizória pod koľajami","ks",2,null,0]
[null,null,"01010005","Dokončovacie práce všeobecné "]
[null,null,"01010005.660_1","Odstránenie podvalového provizória pod koľajami","ks",2,null,0]
[null,null,"01010005.660_2","Vyčistenie štrkového lôžka","m2",6,null,0]
[null,null,"01010005.660_3","Podbitie pražcov","ks",4,null,0]
[null,null,"01010005.660_4","Vyspravenie otvoru do budovy","ks",4,null,0]
[null,null,"01030102","Hĺbené vykopávky jám nezapažených, vrátane zásypov"]
[null,null,"01030102.660_1","Jama pre jednoduchý stožiar pätkovaný v rovine - odkopanie základu a zásyp po demontáži","ks",27,null,{"$f":"F2222*G2222","v":0}]
[null,null,"01030102.660_2","Jama pre stožiar A (kozlík) pätkovaný v rovine - odkopanie základu a zásyp po demontáži","ks",16,null,0]
[null,null,"01030102.660_3","Jama pre stožiarovú vzperu - výkop, zásyp","ks",2,null,0]
[null,null,"01030102.660_4","Jama pre káblovú spojku - výkop, zásyp, vrátane zakrytia spojky pred zásypom","ks",5,null,0]
[null,null,"01030102.660_5","Jamy pre pretlak - výkop a zásyp","ks",2,null,0]
[null,null,"01030203","Hĺbené výkopy a zásypy káblových rýh, vrátane doplňujúcich konštrukcií"]
[null,null,"01030203.660_1","Hĺbenie a zásyp káblovej ryhy 35 cm širokej a 80 cm hlbokej, vrátane provizórnej úpravy terénu","m",2064,null,0]
[null,null,"01030203.660_2","Hĺbenie a zásyp káblovej ryhy 50 cm širokej a 120 cm hlbokej, vrátane provizórnej úpravy terénu ","m",52,null,0]
[null,null,"01030203.660_3","Hĺbenie a zásyp káblovej ryhy 60 cm širokej a 150 cm hlbokej, vrátane provizórnej úpravy terénu ","m",15,null,0]
[null,null,"01030203.660_5","Zriadenenie káblového lôžka hr. 50 mm zo zeminy","m",2150,null,0]
[null,null,"01030203.660_6","Výstražná fólia v káblovej ryhe","m",2150,null,0]
[null,null,"01060208","Premiestnenie vodorovné výkopku na medziskládku"]
[null,null,"01060208.660_1","Vodorovné premiestnenie odkopávky/výkopku na medziskládku","m3",150,null,0]
[null,null,"01090101","Pretláčanie potrubia tr. hor. 1-4"]
[null,null,"01090101.660_1","Pretlačovanie otvorov strojovo do D 220 mm so zatiahnutím chráničky","m",16,null,0]
[null,null,"45.31.62_92","Montáž slaboprúdových rozvodov a zariadení"]
[null,null,"92010103","Vedenia nadzemné stožiare vzpery stožiarov"]
[null,null,"92010103.660_1","Postavenie stožiarovej vzpery dĺžky 6 m, náter, podloženie betónovým podvalom","ks",2,null,0]
[null,null,"92010120","Vedenia nadzemné, demontáž - stožiare, vedenie"]
[null,null,"92010120.660_1","Demontáž stožiara J na rovine s pätkou - komplet, vrátane odvozu  a likvidácie","ks",27,null,{"$f":"F2241*G2241","v":0}]
[null,null,"92010120.660_2","Demontáž stožiara A na rovine s pätkou - komplet, vrátane odvozu a likvidácie","ks",16,null,0]
[null,null,"92010120.660_3","Demontáž vzdušného vedenia - komplet, vrátane odvozu a likvidácie","m",2250,null,0]
[null,null,"92010208","Vedenia nadzemné výstroj stožiarov doplnenie"]
[null,null,"92010208.660_1","Držiak na stožiar rovný ","ks",2,null,0]
[null,null,"92010208.660_2","Objímka na stožiar pre lano","ks",2,null,0]
[null,null,"92010208.660_3","Poisťovací pás oceľového lana","ks",2,null,0]
[null,null,"92010208.660_4","Oceľové pozinkované lano dl. 10 m, vrátane zachytenia lana na koncovom stožiari","ks",2,null,0]
[null,null,"92020103","Vedenia vonkajšie káblové, káble oznamovacie"]
[null,null,"92020103.660_1","Kábel TCEPKPFLE 5XN0,8 - montáž a dodanie","m",2220,null,0]
[null,null,"92020104","Vedenia vonkajšie káblové, káble zabezpečovacie"]
[null,null,"92020104.660_1","Kábel TCEPKPFLE 7P1,0 - montáž a dodanie","m",100,null,0]
[null,null,"92020201","Vedenia vonkajšie káblové, spojky káblové rovné"]
[null,null,"92020201.660_1","Spojka rovná - oznamovací kábel - montáž a dodanie","ks",2,null,0]
[null,null,"92020201.660_2","Spojka rovná pre pupinačné jednotky - oznamovací kábel - montáž a dodanie","ks",1,null,0]
[null,null,"92020201.660_3","Spojka rovná - zabezpečovací kábel - montáž a dodanie","ks",2,null,0]
[null,null,"92020201.660_4","Prepojenie plášťov káblov","ks",5,null,0]
[null,null,"92020401","Vedenia vonkajšie káblové, káblovody z rúr"]
[null,null,"92020401.660_1","Ochranná plastová rúra 2 x 16 m PE 100 mm - dĺžka celkom 32 m","m",32,null,0]
[null,null,"92020403","Vedenia vonkajšie káblové, káblovody zo žľabov s poklopom"]
[null,null,"92020403.660_1","Káblový kanál z prefabrikovaných betónových žľabov neasfaltovaný TK1(17x14cm/10, 5x10 cm)","m",2100,null,0]
[null,null,"92021802","Vedenia vonkajšie káblové, skrine na stožiar"]
[null,null,"92021802.660_1","Káblová skrinka do 10 párov - prechod zo zemného vedenia na existujúce vzdušné, montáž a dodanie, vrátane záverečných prác v skrinke","ks",2,null,0]
[null,null,"92022501","Vedenia vonkajšie káblové, činnosti na kábloch"]
[null,null,"92022501.660_1","Jednosmerné meranie na miestnom oznamovacom kábli vrátane vypracovania meracieho protokolu","kpl",1,null,0]
[null,null,"92022701","Vedenia vonkajšie káblové, uzemnenie na kábloch"]
[null,null,"92022701.660_1","Uzemnenie ","kpl.",1,null,0]
[null,null,"92022705","Vedenia vonkajšie káblové, uzemnenie meranie zem.odporu"]
[null,null,"92022705.660_1","Zmeranie a zhodnotenie zemného odporu vrátane záznamu do protokolu","kpl.",1,null,0]
[null,null,"92022801","Vedenia vonkajšie káblové, vedenia uzemňovacie v zemi FeZn"]
[null,null,"92022801.660_1","Vedenie uzeňovacie z FeZn pásovina 30 x 4","m",50,null,0]
[null,null,"92022801.660_2","Tyč uzemňovacia ZT 1,5 m","ks",8,null,0]
[null,null,"92022801.660_3","Svorka SJ 02 k uzemňovacej tyči","ks",2,null,0]
[null,null,"92030702","Vedenia vonkajšie, káblové pupinačné jednotky"]
[null,null,"92030702.660_1","Montáž pupinačnej jednotky do spojky kábla","ks",3,null,0]
[null,null,"92030702.660_2","Dodanie pupinačnej jednotky do spojky kábla","ks",3,null,0]
[null,null,"92031301","Vedenia vonkajšie káblové, koncentrované vyrovnávanie káblov"]
[null,null,"92031301.660_1","Koncentrované vyrovnanie XN štvoriek oznamovacieho vedenia na základe vyhodnotenia záverečného merania v rozsahu zosilovacieho úseku","ks",1,null,{"$f":"F2278*G2278","v":0}]
[null,null,"92031504","Vedenia vonkajšie káblové, meranie za prevádzky záverečné, skrátené"]
[null,null,"92031504.660_1","Skrátené záverečné meranie v oboch smeroch za prevádzky na preložke oznamovacieho vedenia pred a po ukončení prác na piatich štvorkách","ks",2,null,0]
[null,null,"92031802","Vedenia vonkajšie doplňujúce činnosti kniha plánov"]
[null,null,"92031802.660_2","Spracovanie knihy plánov","súb.",1,null,0]
[null,null,"92031805","Vedenia vonkajšie doplňujúce činnosti na kábloch"]
[null,null,"92031805.660_1","Provizórne zaistenie káblov pri výkopových prácach","m",120,null,0]
[null,null,"92031805.660_2","Zatiahnutie kábla do tvárnicovej trasy","m",540,null,0]
[null,null,"92031805.660_3","Križovanie so silovým káblom, betón. žľab","ks",8,null,0]
[null,null,"92031806","Vedenia vonkajšie doplňujúce činnosti označník"]
[null,null,"92031806.660_1","Káblový prefabrikovaný označník - osadenie a dodanie, vrátane zemných prác","ks",2,null,0]
[null,null,"92040303","Slaboprúdové rozvody vodiče Cu, izolované silnoprúdové"]
[null,null,"92040303.660_1","Vodič (lano) silnoprúdový CY, CYA 6,0 zel/žltý","m",6,null,0]
[null,null,"92043102","Slaboprúdové rozvody skrine káblové"]
[null,null,"92043102.660_1","Skriňa káblová do 20 až 50 párov, upevnenie na stenu v dopravnej kancelárii, vrátane zárezových pásikov a 20 ks 3-pólových bleskoistiek","ks",1,null,0]
[null,null,"92043503","Slaboprúdové rozvody ukončenie vodičov"]
[null,null,"92043503.660_1","Ukončenie vodičov a lán, vrátane odizolovania, káblových ok, zapojenia na svorku do 16 mm","ks",6,null,0]
[null,null,"92043503.660_2","Štítok káblový","ks",6,null,0]
[]
[null,null,null,"701-00  Ochrana VTL DN 200 plynovodu",null,null,null,{"$f":"SUM(H2298:H2327)","v":0}]
[null,null,"00040222","Požiadavky Objednávateľa - DSRS"]
[null,null,"00040222.701_1","DSRS","kpl",1,null,{"$f":"F2299*G2299","v":0}]
[null,null,"45.11.20_01","Zemné práce"]
[null,null,"01030202","Hĺbené vykopávky rýh š nad 600 mm"]
[null,null,"01030202.701_1","Výkop ryhy šírky 600-2000mm, čiastočne ručne","m3",406.4,null,0]
[null,null,"01040402","Konštrukcie z hornín zásypy so zhutnením"]
[null,null,"01040402.701_1","Zásyp sypaninou so zhutnením jám - zemina z výkopu","m3",406.4,null,0]
[null,null,"01040501","Konštrukcie z hornín obsypy bez zhutnenia"]
[null,null,"01040501.701_1","Obsyp potrubia štrkopieskom fr. 0-8 mm","m3",44,null,0]
[null,null,"45.23.12_27","Montážne práce na plynovodoch"]
[null,null,"27070102","Chráničky rúry oceľové delená"]
[null,null,"27070102.701_1","Pozdľžne delená oceľová chráničika D x t 530 x 8 - 2 úseky 50 m + 33 m","m",83,null,0]
[null,null,"27070102.701_2","Klzné objímky","ks",56,null,{"$f":"F2310*G2310","v":0}]
[null,null,"27070102.701_3","Utesnenie koncov chráničky - manžeta model C - delená","ks",4,null,0]
[null,null,"27070192","Chráničky rúry plastové"]
[null,null,"27070192.701_1","Chránička HDPE D 110 mm - pre kábel KaO","m",71,null,0]
[null,null,"27011283","Plynovody ostatné montážne práce doplňujúce činnosti"]
[null,null,"27011283.701_1","Čuchačka na chráničke - dĺ. 3,2 m, vrátane antikoróznej ochrany a náterov a ochrannej konštrukcie - betónová skruž vyplnená kamenivom","ks",2,null,0]
[null,null,"27011284","Plynovody ostatné montážne práce nedeštruktívne skúšky"]
[null,null,"27011284.701_1","Vizuálna kontrola zvarových spojov v plnom rozsahu - chránička dl. 50 m","kpl",1,null,0]
[null,null,"27011284.701_2","Vizuálna kontrola zvarových spojov v plnom rozsahu - chránička dl. 33 m","kpl",1,null,0]
[null,null,"27011285","Plynovody ostatné montážne práce tlak. skúšky tesnosti potrubia"]
[null,null,"27011285.701_1","Skúška tesnosti chráničky pretlakom vzduchu 5,0 kPa - chránička dl. 50 m","kpl",1,null,0]
[null,null,"27011285.701_2","Skúška tesnosti chráničky pretlakom vzduchu 5,0 kPa - chránička dl. 33 m","kpl",1,null,0]
[null,null,"27011286","Plynovody ostatné montážne práce katodická ochrana porubia"]
[null,null,"27011286.701_1","Kontrolný merací vývod - komplet podľa projektu","ks",2,null,0]
[null,null,"45.26.14_61","Izolatérske práce"]
[null,null,"61010302","Izolácia proti vode a zemnej vlhkosti potrubí pásmi"]
[null,null,"61010302.701_1","Izolácia potrubia chráničky asfaltovými pásmi pritavením ","m2",250.2,null,{"$f":"F2326*G2326","v":0}]
[]
[]
[]
[]
[null,null,null,"I/68 Plavnica, preložka cesty",""]
[null,null,null,"000-00 Všeobecné položky",null,null,null,{"$f":"H6","v":0}]
[null,null,null,"031-00  Rekultivácia dočasne zabratej pôdy",null,null,null,{"$f":"H16","v":0}]
[null,null,null,"060-00  Vegetačné úpravy cesty I/68",null,null,null,{"$f":"H36","v":0}]
[null,null,null,"100-00  Cesta I/68",null,null,null,{"$f":"H66","v":0}]
[null,null,null,"101-00  Križovatka Ľubovnianske kúpele",null,null,null,{"$f":"H236","v":0}]
[null,null,null,"102-00  Križovatka Hajtovka",null,null,null,{"$f":"H315","v":0}]
[null,null,null,"103-00  Križovatka Plavnica",null,null,null,{"$f":"H419","v":0}]
[null,null,null,"130-00  Prístupové cesty v katastrálnom území obce Chmelnica",null,null,null,{"$f":"H487","v":0}]
[null,null,null,"131-00  Prístupové cesty v katastrálnom území obce Plavnica",null,null,null,{"$f":"H532","v":0}]
[null,null,null,"201-00  Most cez potok Ľubovnianka v km 0,555",null,null,null,{"$f":"H633","v":0}]
[null,null,null,"202-00  Most cez rieku Poprad v km 1,100",null,null,null,{"$f":"H782","v":0}]
[null,null,null,"203-00  Most cez rieku Poprad v km 1,637",null,null,null,{"$f":"H992","v":0}]
[null,null,null,"204-00  Most nad poľnou cestou v km 2,316",null,null,null,{"$f":"H1222","v":0}]
[null,null,null,"205-00  Most cez potok Šambronka v km 5,111",null,null,null,{"$f":"H1295","v":0}]
[null,null,null,"206-00  Most na ceste III/543 032 nad cestou I/68 a traťou ŽSR v km 4,622",null,null,null,{"$f":"H1473","v":0}]
[null,null,null,"230-00  Úprava rieky Poprad",null,null,null,{"$f":"H1697","v":0}]
[null,null,null,"231-00  Úprava potoka Ľubovnianka",null,null,null,{"$f":"H1716","v":0}]
[null,null,null,"232-00  Úprava potoka Jasenok",null,null,null,{"$f":"H1745","v":0}]
[null,null,null,"233-00  Úprava potoka Šambronka",null,null,null,{"$f":"H1796","v":0}]
[null,null,null,"301-00  Protihluková stena na ceste I/68 v km 4,950",null,null,null,{"$f":"H1848","v":0}]
[null,null,null,"302-00  Protihluková stena na ceste III/543 032 v km 0,204 vetvy 102-A",null,null,null,{"$f":"H1895","v":0}]
[null,null,null,"501-00  Úprava kanalizácie v km 0,510",null,null,null,{"$f":"H1936","v":0}]
[null,null,null,"502-00  Preložka vodovodu DN 150 v križovatke Ľubovnianske kúpele",null,null,null,{"$f":"H1965","v":0}]
[null,null,null,"503-00  Preložka splaškovej kanalizácie v km 4,800-5,100",null,null,null,{"$f":"H2021","v":0}]
[null,null,null,"610-00  Križovatka VVN-110 kV s cestou I/68 v km 0,900",null,null,null,{"$f":"H2058","v":0}]
[null,null,null,"611-00  Úprava VN-22 kV prípojok pre obec Plavnica",null,null,null,{"$f":"H2073","v":0}]
[null,null,null,"650-00  Preložka telekomunikačných káblov",null,null,null,{"$f":"H2113","v":0}]
[null,null,null,"651-00  Ochrana diaľkového kábla v km 4,878",null,null,null,{"$f":"H2135","v":0}]
[null,null,null,"652-00  Preložka telekomunikačného vzdušného vedenia v km 0,075 cesty III/543 032",null,null,null,{"$f":"H2163","v":0}]
[null,null,null,"660-00  Preložka zabezpečovacieho vedenia ŽSR",null,null,null,{"$f":"H2209","v":0}]
[null,null,null,"701-00  Ochrana VTL DN 200 plynovodu",null,null,null,{"$f":"H2297","v":0}]
[]
[]
[]
[]
[]
[null,null,null,"SPOLU BEZ DPH :",null,null,null,{"$f":"H2332+H2333+H2334+H2335+H2336+H2337+H2338+H2339+H2340+H2341+H2342+H2343+H2344+H2345+H2346+H2347+H2348+H2349+H2350+H2351+H2352+H2353+H2354+H2355+H2356+H2357+H2358+H2359+H2360+H2361+H2362","v":0}]
[]
[null,null,null,"DPH 20 % :",null,null,null,{"$f":"H2368*0.2","v":0}]
[]
[null,null,null,"SPOLU S DPH 20 % :",null,null,null,{"$f":"H2368+H2370","v":0}]